Departmental Family,Entity,Date,Expense Type,Expense Area,Supplier,Transaction Number,Amount,Description,Supplier Postcode,
Department for Transport,Department for Transport,02/03/2015,Agency Staff Costs,Group Finance,MICHAEL PAGE INTERNATIONAL,2000024412,3420,#,SL1 3SA,
Department for Transport,Department for Transport,02/03/2015,Agency Staff Costs,Rail Commercial & Programme Office,MORGAN HUNT UK LTD,2000024409,4703.33,#,EC4M 7EG,
Department for Transport,Department for Transport,02/03/2015,Agency Staff Costs,Rail Commercial & Programme Office,MORGAN HUNT UK LTD,2000024409,4703.33,#,EC4M 7EG,
Department for Transport,Department for Transport,02/03/2015,Agency Staff Costs,Network Rail Sponsorship,CAPITA BUSINESS SERVICES LTD,2000024405,2773.32,#,DL1 9HN,
Department for Transport,Department for Transport,02/03/2015,Agency Staff Costs,Network Rail Sponsorship,CAPITA BUSINESS SERVICES LTD,2000024405,1386.66,#,DL1 9HN,
Department for Transport,Department for Transport,02/03/2015,Agency Staff Costs,Network Rail Sponsorship,CAPITA BUSINESS SERVICES LTD,2000024405,1386.66,#,DL1 9HN,
Department for Transport,Department for Transport,02/03/2015,Agency Staff Costs,Network Rail Sponsorship,CAPITA BUSINESS SERVICES LTD,2000024405,1468.26,#,DL1 9HN,
Department for Transport,Department for Transport,02/03/2015,Cap Grt Pri Sec-Cos.,Rail Strategy & Funding,Network Rail Istre (Capital Grants),2000024413,287493147.8,NR Network Grant Payment,NW1 2DN,
Department for Transport,Department for Transport,02/03/2015,Cap Grt Pri Sec-Cos.,"Policy, Legislation and Funding",Eversheds LLP,2000024419,3605267.69,#,CF10 5BT,
Department for Transport,Department for Transport,02/03/2015,Contract Cleaning,Rail Accident Investigation Branch,OFFICE CARE LTD,2000024417,1303.52,#,DE24 8AN,
Department for Transport,Department for Transport,02/03/2015,CurrGrtPriSec-P&NPIS,"Energy, Technology and International",LOW CARBON VEHICLE PARTNERSHIP,2000024415,54000,"""LowCVP Jan Claim #54,000 DfT payment""",SW1H 9JJ,
Department for Transport,Department for Transport,02/03/2015,HR Consultancy,Group Human Resource,BENEFEX LIMITED,2000024414,22670.9,#,SO15 2JU,
Department for Transport,Department for Transport,02/03/2015,HR Consultancy,Group Human Resource,BENEFEX LIMITED,2000024414,22670.9,#,SO15 2JU,
Department for Transport,Department for Transport,02/03/2015,Legal Consultancy,Group Human Resource,TREASURY SOLICITOR,2000024402,8830.8,#,WC2B 4TS,
Department for Transport,Department for Transport,02/03/2015,Other Advertising,Local,PENNA COMMUNICATIONS,2000024416,8915.24,#,EC4M 7RD,
Department for Transport,Department for Transport,02/03/2015,Photography,Rail Franchising,ALAMY LTD,2000024406,764.4,#,OX14 4SA,
Department for Transport,Department for Transport,02/03/2015,Printing,"Motoring, Freight & London",PRINT STATION (HASTINGS) LTD,2000024410,537.6,#,TN39 3PB,
Department for Transport,Department for Transport,02/03/2015,Prog&ProjMgmt Consul,Group Procurement & Estate,MACE Limited,2000024428,12631.58,#,EC2M 6X,
Department for Transport,Department for Transport,02/03/2015,Prog&ProjMgmt Consul,Group Procurement & Estate,MACE Limited,2000024428,11779.8,#,EC2M 6X,
Department for Transport,Department for Transport,02/03/2015,Research,Local,ATKINS LTD (TRANSPORT PLANNING),2000024407,24694.56,#,WR5 1TX,
Department for Transport,Department for Transport,02/03/2015,Research,Rail Strategy & Funding,BRITISH TRANSPORT POLICE FEDERATION,100030147,59966.4,#,NW1 9LN,
Department for Transport,Department for Transport,02/03/2015,Research,Rail Strategy & Funding,BRITISH TRANSPORT POLICE FEDERATION,100030147,-59966.4,#,NW1 9LN,
Department for Transport,Department for Transport,02/03/2015,Research,Aviation,MARKET & OPINION RESEARCH,2000024404,70000,#,SE1 1FY,
Department for Transport,Department for Transport,02/03/2015,Small Software,Motoring Services,SOFTWARE BOX LTD,2000024403,8353.75,#,YO61 1ET,
Department for Transport,Department for Transport,02/03/2015,Training,Group Finance,Kaplan Financial,2000024408,1132.62,#,NE1 3PA,
Department for Transport,Department for Transport,03/03/2015,Agency Staff Costs,Local,BROOK STREET (UK) LIMITED,2000024486,987.84,#,AL1 4JB,
Department for Transport,Department for Transport,03/03/2015,Agency Staff Costs,Group Human Resource,BROOK STREET (UK) LIMITED,2000024486,502.42,#,AL1 4JB,
Department for Transport,Department for Transport,03/03/2015,Agency Staff Costs,Motoring Services,BROOK STREET (UK) LIMITED,2000024486,895.55,#,AL1 4JB,
Department for Transport,Department for Transport,03/03/2015,Agency Staff Costs,Rail Commercial & Programme Office,BROOK STREET (UK) LIMITED,2000024486,874.34,#,AL1 4JB,
Department for Transport,Department for Transport,03/03/2015,Agency Staff Costs,Rail Commercial & Programme Office,CAPITA BUSINESS SERVICES LTD,2000024479,2585.94,#,DL1 9HN,
Department for Transport,Department for Transport,03/03/2015,Agency Staff Costs,Major Projects & Growth,BROOK STREET (UK) LIMITED,2000024486,905.52,#,AL1 4JB,
Department for Transport,Department for Transport,03/03/2015,Agency Staff Costs,"Policy, Legislation and Funding",ADVANTAGE RESOURCING UK LTD,2000024494,4320,#,RG21 4FF,
Department for Transport,Department for Transport,03/03/2015,Agency Staff Costs,Highspeed 2,SPRING TECHNOLOGY LTD  ALSO T/A,2000024490,4650,#,B37 7YE,
Department for Transport,Department for Transport,03/03/2015,Agency Staff Costs,Highspeed 2,SPRING TECHNOLOGY LTD  ALSO T/A,2000024490,4200,#,B37 7YE,
Department for Transport,Department for Transport,03/03/2015,Agents Fees,Strategic Roads & Smart Ticketing,NORTHGATE INFORMATION SOLUTIONS,2000024474,234495.22,#,HP2 4NW,
Department for Transport,Department for Transport,03/03/2015,Cap Grt Pri Sec-Cos.,"Energy, Technology and International",Audi UK,2000024499,55000,4018221 Audi UK,MK14 5AN,
Department for Transport,Department for Transport,03/03/2015,Cap Grt Pri Sec-Cos.,"Policy, Legislation and Funding",Eversheds LLP,2000024497,626458.51,#,CF10 5BT,
Department for Transport,Department for Transport,03/03/2015,Car Hire and Leasing,Group Finance,ENTERPRISE RENT-A-CAR,2000024492,4343.36,Enterprise - Car Hire -Nov 2014,TW20 8RX,
Department for Transport,Department for Transport,03/03/2015,Contract Cleaning,Marine Accident Investigation Branch,PROGRESS CLEANING SERVICES,2000024477,702,#,SO30 2FQ,
Department for Transport,Department for Transport,03/03/2015,CurrGrtPriSec-P&NPIS,Maritime,Lagan Search & Rescue,2000024473,65000,LIFEBOAT RESCUE GRANT AWARDS,BT5 4BA,
Department for Transport,Department for Transport,03/03/2015,CurrGrtPriSec-P&NPIS,Maritime,Severn Area Rescue Association,2000024500,221046,LIFEBOAT RESCUE GRANT AWARDS,NP16 7HH,
Department for Transport,Department for Transport,03/03/2015,Eurotunnel Admin Pay,Rail Commercial & Programme Office,SNCF Caisse Generale,2000024452,4984375.43,#,93633,
Department for Transport,Department for Transport,03/03/2015,Eurotunnel Admin Pay,Rail Commercial & Programme Office,SNCF TRESORERIE ENC RHT VFE,2000024453,4531618.83,#,75014,
Department for Transport,Department for Transport,03/03/2015,Financial Consultanc,Group Finance,DELOITTE LLP,2000024481,10155.6,#,MK9 1FD,
Department for Transport,Department for Transport,03/03/2015,Legal Consultancy,"Motoring, Freight & London",xxxxxx,2000024485,2145,#,xxxxxx,
Department for Transport,Department for Transport,03/03/2015,Publicity,Group Communication,FORSTER LAMOND LTD,2000024493,9897.5,#,SE1 1RU,
Department for Transport,Department for Transport,03/03/2015,Rent - L&B (non-PFI),Group Procurement & Estate,ENVIRONMENT AGENCY,2000024491,46451.45,#,PE2 8YD,
Department for Transport,Department for Transport,03/03/2015,Research,"Motoring, Freight & London",TRL LTD,2000024478,23250,#,RG40 3GA,
Department for Transport,Department for Transport,03/03/2015,Research,"Motoring, Freight & London",TRL LTD,2000024478,47000,#,RG40 3GA,
Department for Transport,Department for Transport,03/03/2015,Research,Analysis & Strategy,xxxxxx,2000024475,1000,#,xxxxxx,
Department for Transport,Department for Transport,03/03/2015,Support Services,Group Finance,DD ACCRAILWAY PENS TRUSTEE,2000024488,720.9,#,DL3 6XR,
Department for Transport,Department for Transport,03/03/2015,Support Services,Group Finance,RAILWAYS PENSION MANAGEMENT LT,2000024489,950000,#,DL3 6EH,
Department for Transport,Department for Transport,03/03/2015,Training,Group Human Resource,Capita Business Services Ltd,2000024476,8500.04,#,B1 3RB,
Department for Transport,Department for Transport,03/03/2015,Training,Group Human Resource,Capita Business Services Ltd,2000024476,7804.88,#,B1 3RB,
Department for Transport,Department for Transport,03/03/2015,Transport  Consult,Local,ATKINS LTD (TRANSPORT PLANNING),2000024480,14232.06,#,WR5 1TX,
Department for Transport,Department for Transport,03/03/2015,Transport  Consult,Centrally held prog-NATs,Ashurst LLP,2000024498,2658,#,EC2A 2HA,
Department for Transport,Department for Transport,04/03/2015,Agency Staff Costs,Local,BROOK STREET (UK) LIMITED,2000024556,642.02,#,AL1 4JB,
Department for Transport,Department for Transport,04/03/2015,Agency Staff Costs,Local,BROOK STREET (UK) LIMITED,2000024556,649.14,#,AL1 4JB,
Department for Transport,Department for Transport,04/03/2015,Agency Staff Costs,Major Projects & Growth,BROOK STREET (UK) LIMITED,2000024556,752.64,#,AL1 4JB,
Department for Transport,Department for Transport,04/03/2015,Agency Staff Costs,Rail Franchising,Capita Resourcing Limited,2000024568,13359.65,#,EC4A 1EN,
Department for Transport,Department for Transport,04/03/2015,Cap Grt Loc Auth,"Motoring, Freight & London",Reading Borough Council,2000024534,13670.9,Final POSSE Grant payment to Reading BC,RG1 2LU,
Department for Transport,Department for Transport,04/03/2015,Cap Grt Loc Auth,Local,Birmingham City Council,2000024558,1023191.53,Q3 Grant Payments - LA Major Schemes,B2 2AJ,
Department for Transport,Department for Transport,04/03/2015,Cap Grt Loc Auth,Local,BLACKBURN WITH DARWEN BC,2000024539,2916054,Q3 Grant Payments - LA Major Schemes,BB1 7DY,
Department for Transport,Department for Transport,04/03/2015,Cap Grt Loc Auth,Local,BRISTOL CITY COUNCIL,2000024527,355409,Q3 Grant Payments - LA Major Schemes,BS99 7BL,
Department for Transport,Department for Transport,04/03/2015,Cap Grt Loc Auth,Local,CAMBRIDGESHIRE COUNTY COUNCIL,2000024528,5173553.96,Q3 Grant Payments - LA Major Schemes,CB3 0AP,
Department for Transport,Department for Transport,04/03/2015,Cap Grt Loc Auth,Local,CHESHIRE EAST BOROUGH COUNCIL,2000024571,3572813.24,Q3 Grant Payments - LA Major Schemes,CW11 1HZ,
Department for Transport,Department for Transport,04/03/2015,Cap Grt Loc Auth,Local,Cornwall Council,2000024572,3477468,Q3 Grant Payments - LA Major Schemes,TR1 3AY,
Department for Transport,Department for Transport,04/03/2015,Cap Grt Loc Auth,Local,COVENTRY CITY COUNCIL,2000024559,1579106.57,Q3 Grant Payments - LA Major Schemes,CV1 2QL,
Department for Transport,Department for Transport,04/03/2015,Cap Grt Loc Auth,Local,DEVON COUNTY COUNCIL,2000024529,6205806,Q3 Grant Payments - LA Major Schemes,EX2 4QJ,
Department for Transport,Department for Transport,04/03/2015,Cap Grt Loc Auth,Local,DONCASTER MBC,2000024560,360159,Q3 Grant Payments - LA Major Schemes,DN1 1ER,
Department for Transport,Department for Transport,04/03/2015,Cap Grt Loc Auth,Local,DUDLEY MBC,2000024561,13172,Q3 Grant Payments - LA Major Schemes,DY1 1HF,
Department for Transport,Department for Transport,04/03/2015,Cap Grt Loc Auth,Local,GREATER MANCHESTER,2000024573,80000000,Q3 Grant Payments - LA Major Schemes,M60 2JR,
Department for Transport,Department for Transport,04/03/2015,Cap Grt Loc Auth,Local,HALTON BC,2000024530,875695.97,Q3 Grant Payments - LA Major Schemes,WA8 6NB,
Department for Transport,Department for Transport,04/03/2015,Cap Grt Loc Auth,Local,LANCASHIRE COUNTY COUNCIL,2000024531,12684903,Q3 Grant Payments - LA Major Schemes,PR1 0LD,
Department for Transport,Department for Transport,04/03/2015,Cap Grt Loc Auth,Local,LEEDS CITY COUNCIL,2000024564,2612862,Q3 Grant Payments - LA Major Schemes,LS2 8JR,
Department for Transport,Department for Transport,04/03/2015,Cap Grt Loc Auth,Local,LEICESTERSHIRE COUNTY COUNCIL,2000024540,713698.39,Q3 Grant Payments - LA Major Schemes,LE3 8RB,
Department for Transport,Department for Transport,04/03/2015,Cap Grt Loc Auth,Local,NORFOLK COUNTY COUNCIL,2000024535,4578300,Q3 Grant Payments - LA Major Schemes,NR1 2UG,
Department for Transport,Department for Transport,04/03/2015,Cap Grt Loc Auth,Local,North Somerset Council,2000024532,8338428,Q3 Grant Payments - LA Major Schemes,BS23 1UJ,
Department for Transport,Department for Transport,04/03/2015,Cap Grt Loc Auth,Local,NORTH YORKSHIRE CC,2000024565,1986021.22,Q3 Grant Payments - LA Major Schemes,DL7 8AL,
Department for Transport,Department for Transport,04/03/2015,Cap Grt Loc Auth,Local,NOTTINGHAM CITY COUNCIL,2000024569,1419862.64,Q3 Grant Payments - LA Major Schemes,NG1 5NT,
Department for Transport,Department for Transport,04/03/2015,Cap Grt Loc Auth,Local,OXFORDSHIRE CC,2000024533,5555127,Q3 Grant Payments - LA Major Schemes,OX1 1TH,
Department for Transport,Department for Transport,04/03/2015,Cap Grt Loc Auth,Local,SEFTON MBC,2000024536,3069424,Q3 Grant Payments - LA Major Schemes,PR8 1DA,
Department for Transport,Department for Transport,04/03/2015,Cap Grt Loc Auth,Local,SOLIHULL MBC,2000024566,1009204.92,Q3 Grant Payments - LA Major Schemes,B91 9EG,
Department for Transport,Department for Transport,04/03/2015,Cap Grt Loc Auth,Local,SOMERSET COUNTY COUNCIL,2000024537,2283767.68,Q3 Grant Payments - LA Major Schemes,TA1 4DY,
Department for Transport,Department for Transport,04/03/2015,Cap Grt Loc Auth,Local,SOUTH YORKSHIRE PTE,2000024570,2711933.24,Q3 Grant Payments - LA Major Schemes,S1 2BQ,
Department for Transport,Department for Transport,04/03/2015,Cap Grt Loc Auth,Local,SUFFOLK COUNTY COUNCIL (GRANTS),2000024542,697190,Q3 Grant Payments - LA Major Schemes,IP1 2DH,
Department for Transport,Department for Transport,04/03/2015,Cap Grt Loc Auth,Local,WALSALL MBC,2000024538,2821175,Q3 Grant Payments - LA Major Schemes,WS1 1TW,
Department for Transport,Department for Transport,04/03/2015,Cap Grt Loc Auth,Local,West Yorkshire Combined Authority,2000024584,6010983.1,Q3 Grant Payments - LA Major Schemes,LS1 2DE,
Department for Transport,Department for Transport,04/03/2015,Cap Grt Loc Auth,Local,WOLVERHAMPTON CITY COUNCIL,2000024567,865193.85,Q3 Grant Payments - LA Major Schemes,WRV 1RL,
Department for Transport,Department for Transport,04/03/2015,Cap Grt Loc Auth,Local,WORCESTERSHIRE COUNTY COUNCIL,2000024541,1535753,Q3 Grant Payments - LA Major Schemes,WR5 2NP,
Department for Transport,Department for Transport,04/03/2015,Cars Maintenance,Motoring Services,Quarterman Windscreen Ltd,2000024578,540,#,DA1 1JZ,
Department for Transport,Department for Transport,04/03/2015,Conferences / Semina,Rail Franchising,Norwich City Football Club plc,2000024590,3333.33,#,NR1 1JE,
Department for Transport,Department for Transport,04/03/2015,CurrGrtPriSec-P&NPIS,"Motoring, Freight & London",Analytical Services,2000024591,148336,FSP Payments,SW17 0RE,
Department for Transport,Department for Transport,04/03/2015,CurrGrtPriSec-P&NPIS,"Motoring, Freight & London",LGC Limited,2000024588,8250,FSP: LGC Bal Payment,TW11 0LY,
Department for Transport,Department for Transport,04/03/2015,CurrGrtPriSec-P&NPIS,"Motoring, Freight & London",Orchid Cellmark Ltd,2000024589,8300,FSP: 2nd CellMark payment,OX14 1DY,
Department for Transport,Department for Transport,04/03/2015,CurrGrtPriSec-P&NPIS,"Motoring, Freight & London",Orchid Cellmark Ltd,2000024589,21810,FSP: CellMark Accreditation,OX14 1DY,
Department for Transport,Department for Transport,04/03/2015,CurrGrtPriSec-P&NPIS,"Energy, Technology and International",ENERGY SAVING TRUST,2000024562,206530,"""EST Jan 2014-15 #206,530 (DfT)""",SW1H 9BP,
Department for Transport,Department for Transport,04/03/2015,Eurotunnel Admin Pay,Rail Commercial & Programme Office,Eurotunnel,2000024512,4109622.05,Eurotunnel Opex & Usage Charges - Feb 15 (EURO),CT18 8XX,
Department for Transport,Department for Transport,04/03/2015,Eurotunnel Admin Pay,Rail Commercial & Programme Office,EUROTUNNEL,2000024511,4370896.19,Eurotunnel Opex & Usage Charges - Feb 15,CT18 8XY,
Department for Transport,Department for Transport,04/03/2015,Financial Consultanc,Rail Franchising,ERNST & YOUNG LLP,2000024547,6412.31,#,SE1 2AF,
Department for Transport,Department for Transport,04/03/2015,Further Educ Cost,Rail Accident Investigation Branch,CRANFIELD UNIVERSITY,2000024546,5300,#,MK43 0AL,
Department for Transport,Department for Transport,04/03/2015,L&B Excl Dwellings,Maritime,Guideline Lift Services Ltd,2000024592,85274.64,#,BR8 7AG,
Department for Transport,Department for Transport,04/03/2015,Legal Consultancy,Rail Commercial & Programme Office,Eversheds LLP,2000024575,558,#,EC2V 7WS,
Department for Transport,Department for Transport,04/03/2015,Legal Consultancy,Transport Security Strategy,PHELPS DUNBAR LLP,2000024593,7712.97,#,70130,
Department for Transport,Department for Transport,04/03/2015,Legal Consultancy,Rail Franchising,Eversheds LLP,2000024575,9511.8,#,EC2V 7WS,
Department for Transport,Department for Transport,04/03/2015,Recruitment Fees,Portfolio Office,Talent Q Ltd,2000024586,21600,#,OX9 3AJ,
Department for Transport,Department for Transport,04/03/2015,Research,Analysis & Strategy,BUILDING RESEARCH ESTABLISHMENT,2000024545,26678,#,WD25 9XX,
Department for Transport,Department for Transport,04/03/2015,Research,"Motoring, Freight & London",WSP UK Limited T/A WSP Civils,2000024554,43479.01,#,GL20 8SJ,
Department for Transport,Department for Transport,04/03/2015,Research,Local,TRANSPORT RESEARCH LABORATORY,2000024552,2671.93,#,RG40 3GA,
Department for Transport,Department for Transport,04/03/2015,Research,Local,WSP UK Limited T/A WSP Civils,2000024554,2723,#,GL20 8SJ,
Department for Transport,Department for Transport,04/03/2015,Research,Local,WSP UK Limited T/A WSP Civils,2000024554,10873.18,#,GL20 8SJ,
Department for Transport,Department for Transport,04/03/2015,Small Software,General Counsel's Office,CAPITA BUSINESS SERVICES LTD,2000024544,21600,#,DL1 9HN,
Department for Transport,Department for Transport,04/03/2015,Subsidies Private Se,"Motoring, Freight & London",APPIAN TRADING LTD,2000024582,6000,Reducing Traffic Sign Clutter Award - CIHT 2015,N1 7JE,
Department for Transport,Department for Transport,04/03/2015,Subsidies Private Se,"Motoring, Freight & London",Mode Shift Grant Payment,2000024563,172801.35,#,#,
Department for Transport,Department for Transport,04/03/2015,Subsidies Private Se,"Motoring, Freight & London",Mode Shift Grant Payment,2000024563,24345.48,#,#,
Department for Transport,Department for Transport,04/03/2015,Training,Group Human Resource,Capita Business Services Ltd,2000024543,6312.59,#,B1 3RB,
Department for Transport,Department for Transport,04/03/2015,Transport  Consult,Rail Strategy & Funding,MOTT MACDONALD,2000024549,1800,#,CR9 2UL,
Department for Transport,Department for Transport,04/03/2015,Transport  Consult,Rail Commercial & Programme Office,PARSONS BRINCKERHOFF LTD,2000024550,11969.74,#,NE4 7YQ,
Department for Transport,Department for Transport,04/03/2015,Transport  Consult,Aviation,Brunel Planning Ltd,2000024587,3780,#,TN4 9LZ,
Department for Transport,Department for Transport,04/03/2015,Transport  Consult,Rail Franchising,ERNST & YOUNG LLP,2000024547,4391.05,#,SE1 2AF,
Department for Transport,Department for Transport,04/03/2015,Transport  Consult,Rail Franchising,PARSONS BRINCKERHOFF LTD,2000024550,88910.06,#,NE4 7YQ,
Department for Transport,Department for Transport,04/03/2015,Travel Expenses UK,Rail Accident Investigation Branch,CRANFIELD UNIVERSITY,2000024546,1770,#,MK43 0AL,
Department for Transport,Department for Transport,04/03/2015,YR-Dental,Human Resources,National Dental Plan Limited,2000024603,1015.5,3rd Party Payment Feb 2015,EC3N 1DY,
Department for Transport,Department for Transport,05/03/2015,Agency Staff Costs,Strategic Roads & Smart Ticketing,Experis Ltd,100031949,13999.86,#,EC2M 2RB,
Department for Transport,Department for Transport,05/03/2015,Agency Staff Costs,Strategic Roads & Smart Ticketing,Experis Ltd,100031949,-13999.86,#,EC2M 2RB,
Department for Transport,Department for Transport,05/03/2015,Agency Staff Costs,Group Finance,Allen Lane,2000024662,4036.38,#,SW1Y 6RJ,
Department for Transport,Department for Transport,05/03/2015,Agency Staff Costs,Group Finance,Allen Lane,2000024662,4036.38,#,SW1Y 6RJ,
Department for Transport,Department for Transport,05/03/2015,Agency Staff Costs,Group Finance,Badenoch & Clark c/o Lauren Rogers,2000024666,4032,#,B37 7YE,
Department for Transport,Department for Transport,05/03/2015,Agency Staff Costs,Group Finance,Badenoch & Clark c/o Lauren Rogers,2000024666,4032,#,B37 7YE,
Department for Transport,Department for Transport,05/03/2015,Agency Staff Costs,Group Finance,Badenoch & Clark c/o Lauren Rogers,2000024666,4032,#,B37 7YE,
Department for Transport,Department for Transport,05/03/2015,Agency Staff Costs,Major Projects & Growth,NETWORKERS INTERNATIONAL (UK) PLC,2000024683,4266.24,#,BR1 1HP,
Department for Transport,Department for Transport,05/03/2015,Agency Staff Costs,Rail Commercial & Programme Office,Badenoch & Clark c/o Lauren Rogers,2000024666,3180,#,B37 7YE,
Department for Transport,Department for Transport,05/03/2015,Agency Staff Costs,Rail Commercial & Programme Office,Badenoch & Clark c/o Lauren Rogers,2000024666,3816,#,B37 7YE,
Department for Transport,Department for Transport,05/03/2015,Agency Staff Costs,Group Finance,Allen Lane,2000024662,2463.84,#,SW1Y 6RJ,
Department for Transport,Department for Transport,05/03/2015,Agency Staff Costs,Group Finance,CAPITA BUSINESS SERVICES LTD,2000024660,1098.02,#,DL1 9HN,
Department for Transport,Department for Transport,05/03/2015,Agency Staff Costs,Group Finance,CAPITA BUSINESS SERVICES LTD,2000024660,3631.08,#,DL1 9HN,
Department for Transport,Department for Transport,05/03/2015,Agency Staff Costs,Group Finance,CAPITA BUSINESS SERVICES LTD,2000024660,3713.58,#,DL1 9HN,
Department for Transport,Department for Transport,05/03/2015,Agency Staff Costs,Rail Franchising,Badenoch & Clark c/o Lauren Rogers,2000024666,3786.66,#,B37 7YE,
Department for Transport,Department for Transport,05/03/2015,Agency Staff Costs,Rail Franchising,Badenoch & Clark c/o Lauren Rogers,2000024666,3786.66,#,B37 7YE,
Department for Transport,Department for Transport,05/03/2015,Agency Staff Costs,Rail Franchising,Badenoch & Clark c/o Lauren Rogers,2000024666,3786.66,#,B37 7YE,
Department for Transport,Department for Transport,05/03/2015,Agency Staff Costs,Rail Franchising,Badenoch & Clark c/o Lauren Rogers,2000024666,3786.66,#,B37 7YE,
Department for Transport,Department for Transport,05/03/2015,Cap Grt Loc Auth,Major Projects & Growth,NEXUS,2000024678,1294000,NEXUS P09 CAPITAL,NE1 4AX,
Department for Transport,Department for Transport,05/03/2015,Car Tax & Insurance,Motoring Services,THE PCC FOR AVON & SOMERSET,2000024699,488.32,#,BS20 8QJ,
Department for Transport,Department for Transport,05/03/2015,Cars Maintenance,Motoring Services,CAMBRIA AUTOMOBILES SOUTH EAST LTD,2000024697,1395,#,CR2 6EE,
Department for Transport,Department for Transport,05/03/2015,Computer equipment,Air Accident Investigation Branch,DARKE & TAYLOR LTD,2000024669,2097.67,#,OX5 1LH,
Department for Transport,Department for Transport,05/03/2015,CurrGrt Las in AEF/A,"Motoring, Freight & London",GREATER LONDON AUTHORITY,2000024707,136522181.3,GLA Transport Grant - Mar 14/15,SE1 2UT,
Department for Transport,Department for Transport,05/03/2015,CurrGrtOth to NDPBs,Group Finance,"HSBC BANK PLC, LONDON",2000024685,28050000,LCR Finco Payment 9 Mar 2015 - XS0150670551,E14 5HQ,
Department for Transport,Department for Transport,05/03/2015,Data Supply - TD,Transport Direct&Travel,BASEMAP LIMITED,2000024689,2936.8,#,GU2 7YG,
Department for Transport,Department for Transport,05/03/2015,Financial Consultanc,Group Finance,Baker Tilly Tax & Accounting Ltd,2000024705,4500,#,EC4A 4AB,
Department for Transport,Department for Transport,05/03/2015,Financial Consultanc,Rail Franchising,GRANT THORNTON UK LLP,2000024682,52959.58,#,NN4 7YE,
Department for Transport,Department for Transport,05/03/2015,HR Consultancy,Group Human Resource,ATOS IT Services UK Ltd,2000024665,589.06,#,WV10 6UH,
Department for Transport,Department for Transport,05/03/2015,IT Consultancy,Major Projects & Growth,TRANSPORT RESEARCH LABORATORY,2000024677,15400,#,RG40 3GA,
Department for Transport,Department for Transport,05/03/2015,IT Consultancy,Portfolio Office,Analystic Limited,2000024679,11424,#,SE1 1EN,
Department for Transport,Department for Transport,05/03/2015,IT Equip Cap Cost,Air Accident Investigation Branch,BASSOM COMPUTER CONSULTANCY,2000024667,10503.9,#,GU9 8LS,
Department for Transport,Department for Transport,05/03/2015,Legal Consultancy,Group Finance,Blackstone Chambers Ltd,2000024703,1084,#,EC4Y 9BW,
Department for Transport,Department for Transport,05/03/2015,Legal Consultancy,Group Finance,Blackstone Chambers Ltd,2000024703,690,#,EC4Y 9BW,
Department for Transport,Department for Transport,05/03/2015,Legal Consultancy,Group Finance,Blackstone Chambers Ltd,2000024703,1380,#,EC4Y 9BW,
Department for Transport,Department for Transport,05/03/2015,Legal Consultancy,Strategic Roads & Smart Ticketing,DLA PIPER UK LLP,2000024670,5169.88,#,M2 3DL,
Department for Transport,Department for Transport,05/03/2015,Legal Consultancy,"Policy, Legislation and Funding",xxxxxx,2000024691,10800,#,xxxxxx,
Department for Transport,Department for Transport,05/03/2015,Legal Consultancy,"Policy, Legislation and Funding",Thirty Nine Essex Street,2000024692,38208,#,WC2R 3AT,
Department for Transport,Department for Transport,05/03/2015,Machinery Rental,Air Accident Investigation Branch,CANON (UK) LTD,2000024668,897.34,#,RH2 8BF,
Department for Transport,Department for Transport,05/03/2015,Other Advertising,Local,PENNA COMMUNICATIONS,2000024684,3316.27,#,EC4M 7RD,
Department for Transport,Department for Transport,05/03/2015,Publicity,"Motoring, Freight & London",ATKINS LTD (TRANSPORT PLANNING),2000024664,36000,#,WR5 1TX,
Department for Transport,Department for Transport,05/03/2015,Recruitment,"Motoring, Freight & London",OFFICE FOR NATIONAL STATISTICS,2000024709,2000,#,NP10 8XG,
Department for Transport,Department for Transport,05/03/2015,Research,Analysis & Strategy,SAMI Consulting Ltd,2000024702,8021.76,#,RG14 1DY,
Department for Transport,Department for Transport,05/03/2015,Research,"Motoring, Freight & London",OVE ARUP & PARTNERS,2000024675,14325.49,#,NE1 3PL,
Department for Transport,Department for Transport,05/03/2015,Research,Local,NATIONAL CENTRE FOR SOCIAL RESEARCH,2000024673,27739.6,#,EC1V 0AX,
Department for Transport,Department for Transport,05/03/2015,Research,Analysis & Strategy,Systra Ltd,2000024672,19984.5,#,GU21 5BH,
Department for Transport,Department for Transport,05/03/2015,Research,Anallysis & Strategy,NATIONAL CENTRE FOR SOCIAL RESEARCH,2000024673,10134,#,EC1V 0AX,
Department for Transport,Department for Transport,05/03/2015,Small Software,Motoring Services,SOFTWARE BOX LTD,2000024659,3009.6,#,YO61 1ET,
Department for Transport,Department for Transport,05/03/2015,Support Services,"Motoring, Freight & London",HIGHWAYS AGENCY,2000024711,5065.61,#,B1 1RN,
Department for Transport,Department for Transport,05/03/2015,Support Services,Aviation,NORWICH AIRPORT LTD,2000024674,30378,#,NR6 6JA,
Department for Transport,Department for Transport,05/03/2015,Support Services,Marine Accident Investigation Branch,Marine Data Ltd,2000024686,4343.08,#,GU32 2AE,
Department for Transport,Department for Transport,05/03/2015,Support Services,Aviation,Civil Aviation Authority,100031950,127500,#,RH6 0YR,
Department for Transport,Department for Transport,05/03/2015,Support Services,Aviation,Civil Aviation Authority,100031950,-127500,#,RH6 0YR,
Department for Transport,Department for Transport,05/03/2015,Support Services,Group Finance,DD ACCRAILWAY PENS TRUSTEE,2000024680,3416.95,#,DL3 6XR,
Department for Transport,Department for Transport,05/03/2015,Support Services,Group Finance,DD ACCRAILWAY PENS TRUSTEE,2000024680,3636.39,#,DL3 6XR,
Department for Transport,Department for Transport,05/03/2015,Support Services,Group Finance,EXEL PLC,2000024681,420000,#,MK40 2UB,
Department for Transport,Department for Transport,05/03/2015,Support Services,General Counsel's Office,Harrowells Limited,2000024708,188748.8,#,YO30 4WK,
Department for Transport,Department for Transport,05/03/2015,Support Services,General Counsel's Office,Irwin Mitchell,2000024701,104687.5,#,S3 8DT,
Department for Transport,Department for Transport,05/03/2015,Training,Air Accident Investigation Branch,Blink Ltd,2000024687,2500,#,GU17 9LQ,
Department for Transport,Department for Transport,05/03/2015,Training,Rail Strategy & Funding,Systra Ltd,2000024672,3750,#,GU21 5BH,
Department for Transport,Department for Transport,05/03/2015,Transport  Consult,Rail Franchising,PARSONS BRINCKERHOFF LTD,2000024676,24189.89,#,NE4 7YQ,
Department for Transport,Department for Transport,05/03/2015,Transport  Consult,Rail Franchising,TRANSPORT RESEARCH LABORATORY,2000024677,38445.31,#,RG40 3GA,
Department for Transport,Department for Transport,05/03/2015,Travel Expenses UK,Marine Accident Investigation Branch,Rainbow Executive Cars Limited,2000024700,548.4,#,SP10 2HP,
Department for Transport,Department for Transport,06/03/2015,Agency Staff Costs,Group Finance,MICHAEL PAGE INTERNATIONAL,2000024769,3240,#,SL1 3SA,
Department for Transport,Department for Transport,06/03/2015,Agency Staff Costs,Group Finance,MICHAEL PAGE INTERNATIONAL,2000024769,3420,#,SL1 3SA,
Department for Transport,Department for Transport,06/03/2015,Agency Staff Costs,Group Finance,MICHAEL PAGE INTERNATIONAL,2000024769,3240,#,SL1 3SA,
Department for Transport,Department for Transport,06/03/2015,Agency Staff Costs,Group Finance,MICHAEL PAGE INTERNATIONAL,2000024769,3594,#,SL1 3SA,
Department for Transport,Department for Transport,06/03/2015,Agency Staff Costs,Group Finance,NETWORKERS INTERNATIONAL (UK) PLC,2000024772,6782.52,#,BR1 1HP,
Department for Transport,Department for Transport,06/03/2015,Agency Staff Costs,Major Projects & Growth,Experis Ltd,2000024756,7248.02,#,EC2M 2RB,
Department for Transport,Department for Transport,06/03/2015,Agency Staff Costs,Rail Commercial & Programme Office,Badenoch & Clark c/o Lauren Rogers,2000024751,3180,#,B37 7YE,
Department for Transport,Department for Transport,06/03/2015,Agency Staff Costs,Group Finance,NETWORKERS INTERNATIONAL (UK) PLC,2000024772,1925.7,#,BR1 1HP,
Department for Transport,Department for Transport,06/03/2015,Agency Staff Costs,Group Finance,NETWORKERS INTERNATIONAL (UK) PLC,2000024772,1722,#,BR1 1HP,
Department for Transport,Department for Transport,06/03/2015,Agency Staff Costs,Rail Franchising,Badenoch & Clark c/o Lauren Rogers,2000024751,3786.66,#,B37 7YE,
Department for Transport,Department for Transport,06/03/2015,Agency Staff Costs,Rail Franchising,Badenoch & Clark c/o Lauren Rogers,2000024751,3786.66,#,B37 7YE,
Department for Transport,Department for Transport,06/03/2015,Agency Staff Costs,Rail Franchising,Badenoch & Clark c/o Lauren Rogers,2000024751,1704,#,B37 7YE,
Department for Transport,Department for Transport,06/03/2015,Agency Staff Costs,Rail Franchising,Badenoch & Clark c/o Lauren Rogers,2000024751,1893.34,#,B37 7YE,
Department for Transport,Department for Transport,06/03/2015,Agency Staff Costs,Transport Security Strategy,Capita Resourcing Limited,2000024770,7979.33,#,EC4A 1EN,
Department for Transport,Department for Transport,06/03/2015,Agency Staff Costs,Rail Commercial & Programme Office,MICHAEL PAGE INTERNATIONAL,2000024769,723.9,#,SL1 3SA,
Department for Transport,Department for Transport,06/03/2015,Agency Staff Costs,HS2 Pre. Re-Organisation,NETWORKERS INTERNATIONAL (UK) PLC,2000024772,3837.84,#,BR1 1HP,
Department for Transport,Department for Transport,06/03/2015,Agency Staff Costs,Rail Strategy & Funding,NETWORKERS INTERNATIONAL (UK) PLC,2000024772,1822.98,#,BR1 1HP,
Department for Transport,Department for Transport,06/03/2015,Agency Staff Costs,HS2 Pre. Re-Organisation,Veredus (trading name for,2000024784,26880,#,DL1 9HN,
Department for Transport,Department for Transport,06/03/2015,Computer equipment,Air Accident Investigation Branch,SOFTWARE BOX LTD,2000024746,18302.28,#,YO61 1ET,
Department for Transport,Department for Transport,06/03/2015,Computer equipment,Motoring Services,SOFTWARE BOX LTD,2000024765,1034.28,#,YO61 1ET,
Department for Transport,Department for Transport,06/03/2015,CurrGrtPriSec-P&NPIS,Maritime,East Sutherland Rescue Association,2000024788,46000,LIFEBOAT RESCUE GRANT AWARDS,IV25 3PF,
Department for Transport,Department for Transport,06/03/2015,CurrGrtPriSec-P&NPIS,Maritime,Maryport Inshore Rescue Boat,2000024787,20530,LIFEBOAT RESCUE GRANT AWARDS,CA15 8AB,
Department for Transport,Department for Transport,06/03/2015,CurrGrtPriSec-P&NPIS,Maritime,Mercia Inshore Search & Rescue,2000024789,67230,LIFEBOAT RESCUE GRANT AWARDS,WR8 0PB,
Department for Transport,Department for Transport,06/03/2015,CurrGrtPriSec-P&NPIS,Maritime,The National Trust,2000024786,13409,LIFEBOAT RESCUE GRANT AWARDS,LA22 9Q,
Department for Transport,Department for Transport,06/03/2015,Data Supply - TD,Transport Direct&Travel,LANDMARK INFORMATION GROUP LTD,2000024759,15050.6,#,EX2 7HY,
Department for Transport,Department for Transport,06/03/2015,Investigation Servic,Rail Accident Investigation Branch,Sira Defence & Security Limited,2000024782,936,#,EC4N 4SJ,
Department for Transport,Department for Transport,06/03/2015,IT Ser Running Costs,Analysis & Strategy,NETFUNDI LTD,2000024762,810,#,LA1 1SQ,
Department for Transport,Department for Transport,06/03/2015,IT Ser Running Costs,Analysis & Strategy,NETFUNDI LTD,2000024762,810,#,LA1 1SQ,
Department for Transport,Department for Transport,06/03/2015,Prog&ProjMgmt Consul,"Motoring, Freight & London",ATKINS LTD (TRANSPORT PLANNING),2000024750,1200,#,WR5 1TX,
Department for Transport,Department for Transport,06/03/2015,Property Maintenance,Rail Accident Investigation Branch,Interserve,2000024776,1306.16,#,B70 1DA,
Department for Transport,Department for Transport,06/03/2015,Publications for Res,Group Communication,WILLIAMS LEA LIMITED,2000024778,790.18,#,NR3 1PD,
Department for Transport,Department for Transport,06/03/2015,Publications for Res,Group Communication,WILLIAMS LEA LIMITED,2000024778,785.74,#,NR3 1PD,
Department for Transport,Department for Transport,06/03/2015,Publications for Res,Group Communication,WILLIAMS LEA LIMITED,2000024778,785.74,#,NR3 1PD,
Department for Transport,Department for Transport,06/03/2015,Publications for Res,Rail Franchising,WILLIAMS LEA LIMITED,2000024778,714.64,#,NR3 1PD,
Department for Transport,Department for Transport,06/03/2015,Recruitment Fees,Group Human Resource,Rockpools Global Res & Cons Ltd,2000024763,9060,#,CV1 2TT,
Department for Transport,Department for Transport,06/03/2015,Rent - L&B (non-PFI),Group Procurement & Estate,Network Rail Infra Ltd (Property),2000024748,330000,#,M60 3BP,
Department for Transport,Department for Transport,06/03/2015,Rent - L&B (non-PFI),Group Procurement & Estate,GMN No2 Limited,2000024781,1729455,Rent at GMH 25/3/15 - 23/6/15,W1G 0PN,
Department for Transport,Department for Transport,06/03/2015,Research,Analysis & Strategy,TRANSPORT RESEARCH LABORATORY,2000024768,15000,#,RG40 3GA,
Department for Transport,Department for Transport,06/03/2015,Research,Local,NATIONAL CENTRE FOR SOCIAL RESEARCH,2000024761,126620,#,EC1V 0AX,
Department for Transport,Department for Transport,06/03/2015,Security,General Counsel's Office,FCO SERVICES,2000024791,1240.8,#,MK19 7BH,
Department for Transport,Department for Transport,06/03/2015,Security,General Counsel's Office,FCO SERVICES,2000024791,9177.6,#,MK19 7BH,
Department for Transport,Department for Transport,06/03/2015,Small Software,Group Procurement & Estate,PROCSERVE SHARED SERVICES LTD,2000024777,199368,#,SW1W 9SR,
Department for Transport,Department for Transport,06/03/2015,Small Software,Motoring Services,SOFTWARE BOX LTD,2000024765,15468.48,#,YO61 1ET,
Department for Transport,Department for Transport,06/03/2015,Subscriptions to Pro,Group Procurement & Estate,CHARTERED INST OF PURCHASING & SUPP,2000024755,5400,#,PE9 3NZ,
Department for Transport,Department for Transport,06/03/2015,Support Services,Air Accident Investigation Branch,BASSOM COMPUTER CONSULTANCY,2000024752,793.99,BASSOM COMPONENTS BLANKET CART,GU9 8LS,
Department for Transport,Department for Transport,06/03/2015,Support Services,Aviation,ENVIRONMENT AGENCY,2000024774,17770,#,PE2 8YD,
Department for Transport,Department for Transport,06/03/2015,Support Services,Aviation,ENVIRONMENT AGENCY,2000024774,38500,#,PE2 8YD,
Department for Transport,Department for Transport,06/03/2015,Support Services,Aviation,ENVIRONMENT AGENCY,2000024774,22250,#,PE2 8YD,
Department for Transport,Department for Transport,06/03/2015,Support Services,Aviation,ENVIRONMENT AGENCY,2000024774,15020,#,PE2 8YD,
Department for Transport,Department for Transport,06/03/2015,Support Services,General Counsel's Office,Crawford & Co Adjusters (UK) Ltd,2000024780,395437.96,#,B2 2PF,
Department for Transport,Department for Transport,06/03/2015,Support Services,Group Finance,DD ACCRAILWAY PENS TRUSTEE,2000024771,1040.17,#,DL3 6XR,
Department for Transport,Department for Transport,06/03/2015,Support Services,General Counsel's Office,Digby Brown LLP,2000024785,60600,Industrial Injury Claim ,EH9 1PR,
Department for Transport,Department for Transport,06/03/2015,Training,Air Accident Investigation Branch,FLIGHTSAFETY INTERNATIONAL,2000024757,1680,#,GU14 6XA,
Department for Transport,Department for Transport,06/03/2015,Training,Group Human Resource,THE MANCHESTER COLLEGE,2000024773,7995,#,M11 2WH,
Department for Transport,Department for Transport,06/03/2015,Transport  Consult,Rail Commercial & Programme Office,PARSONS BRINCKERHOFF LTD,100031978,6412.85,#,NE4 7YQ,
Department for Transport,Department for Transport,06/03/2015,Transport  Consult,Rail Commercial & Programme Office,PARSONS BRINCKERHOFF LTD,100031978,-6412.85,#,NE4 7YQ,
Department for Transport,Department for Transport,06/03/2015,Transport  Consult,Aviation,Systra Ltd,2000024760,22779.9,#,GU21 5BH,
Department for Transport,Department for Transport,06/03/2015,Travel Expenses UK,Rail Accident Investigation Branch,A1 RUSHMOOR RADIO TAXIS LTD,2000024779,736.9,#,GU11 1SJ,
Department for Transport,Department for Transport,09/03/2015,Agency Staff Costs,Motoring Services,BROOK STREET (UK) LIMITED,2000024866,895.55,#,AL1 4JB,
Department for Transport,Department for Transport,09/03/2015,Agency Staff Costs,Local,BROOK STREET (UK) LIMITED,2000024866,666.34,#,AL1 4JB,
Department for Transport,Department for Transport,09/03/2015,Agency Staff Costs,Rail Commercial & Programme Office,BROOK STREET (UK) LIMITED,2000024866,874.34,#,AL1 4JB,
Department for Transport,Department for Transport,09/03/2015,Agency Staff Costs,Rail Franchising,Badenoch & Clark c/o Lauren Rogers,2000024858,3786.66,#,B37 7YE,
Department for Transport,Department for Transport,09/03/2015,Agency Staff Costs,Rail Franchising,Badenoch & Clark c/o Lauren Rogers,2000024858,1893.34,#,B37 7YE,
Department for Transport,Department for Transport,09/03/2015,Agency Staff Costs,Rail Franchising,Badenoch & Clark c/o Lauren Rogers,2000024858,3786.66,#,B37 7YE,
Department for Transport,Department for Transport,09/03/2015,Agency Staff Costs,Rail Franchising,Badenoch & Clark c/o Lauren Rogers,2000024858,3786.66,#,B37 7YE,
Department for Transport,Department for Transport,09/03/2015,Agency Staff Costs,Rail Franchising,Badenoch & Clark c/o Lauren Rogers,2000024858,3786.66,#,B37 7YE,
Department for Transport,Department for Transport,09/03/2015,Agency Staff Costs,Rail Franchising,Badenoch & Clark c/o Lauren Rogers,2000024858,3786.66,#,B37 7YE,
Department for Transport,Department for Transport,09/03/2015,Agency Staff Costs,Rail Franchising,Badenoch & Clark c/o Lauren Rogers,2000024858,3786.66,#,B37 7YE,
Department for Transport,Department for Transport,09/03/2015,Agency Staff Costs,Rail Franchising,Badenoch & Clark c/o Lauren Rogers,2000024858,3786.66,#,B37 7YE,
Department for Transport,Department for Transport,09/03/2015,Agency Staff Costs,Rail Franchising,Capita Resourcing Limited,2000024868,17520,#,EC4A 1EN,
Department for Transport,Department for Transport,09/03/2015,Agency Staff Costs,Rail Franchising,Capita Resourcing Limited,2000024868,22848,#,EC4A 1EN,
Department for Transport,Department for Transport,09/03/2015,Agents Fees,Transport Direct & Travel,Driver & Vehicle Licensing Agency,2000024860,24216.58,#,SA6 7JL,
Department for Transport,Department for Transport,09/03/2015,Building Service Cha,Group Procurement & Estate,Amey Community Ltd,2000024882,12712.85,#,OX4 4DQ,
Department for Transport,Department for Transport,09/03/2015,Home Phone Charges,Rail Accident Investigation Branch,MAIN-TEL,2000024862,621.37,#,TS17 0AQ,
Department for Transport,Department for Transport,09/03/2015,Investigation Servic,Motoring Services,Procordia Ltd,2000024877,1007.5,#,TN39 4SR,
Department for Transport,Department for Transport,09/03/2015,Investigation Servic,Motoring Services,Procordia Ltd,2000024877,1397.5,#,TN39 4SR,
Department for Transport,Department for Transport,09/03/2015,IT Ser Running Costs,Group Communication,Intelogy Limited,2000024879,1554,#,TW16 7DY,
Department for Transport,Department for Transport,09/03/2015,Legal Consultancy,Major Projects & Growth,DLA PIPER UK LLP,2000024859,28608.29,#,M2 3DL,
Department for Transport,Department for Transport,09/03/2015,Legal Consultancy,General Counsel's Office,xxxxxx,2000024881,1500,#,xxxxxx,
Department for Transport,Department for Transport,09/03/2015,Legal Consultancy,Aviation,Dentons UKMEA LLP,2000024870,2233.2,#,EC4M 7WS,
Department for Transport,Department for Transport,09/03/2015,Legal Consultancy,"Policy, Legislation and Funding",TREASURY SOLICITOR,2000024854,11803.02,#,WC2B 4TS,
Department for Transport,Department for Transport,09/03/2015,Prog&ProjMgmt Consul,"Policy, Legislation and Funding",MACE Limited,2000024883,14376,#,EC2M 6X,
Department for Transport,Department for Transport,09/03/2015,Publicity,Group Communication,FORSTER LAMOND LTD,2000024873,5500,#,SE1 1RU,
Department for Transport,Department for Transport,09/03/2015,Publicity,Group Communication,TNS UK LTD,2000024864,20580,#,W5 1UA,
Department for Transport,Department for Transport,09/03/2015,Rent - L&B (non-PFI),Group Procurement & Estate,EUROSTAR (UK) LTD,2000024869,135000,Rent at Orient Way Sidings 25/3/15 - 23/6/15,SE1 8SE,
Department for Transport,Department for Transport,09/03/2015,Rent - L&B (non-PFI),Rail Accident Investigation Branch,TRUSTEES OF MAJOR & BARNES LTD,2000024856,36600,Major & Barnes - 25.03.2015 - 24.06.2015,BS8 2BJ,
Department for Transport,Department for Transport,09/03/2015,Research,Local,OFFICE FOR NATIONAL STATISTICS,2000024855,37654,#,NP10 8XG,
Department for Transport,Department for Transport,09/03/2015,Subscriptions to Pro,Group Human Resource,WHITEHALL & INDUSTRY GROUP,2000024865,5520,#,SW1H 9AA,
Department for Transport,Department for Transport,09/03/2015,Support Services,General Counsel's Office,Charles Lucas & Marshall,2000024878,59803.59,Industrial Injury,RG14 5EU,
Department for Transport,Department for Transport,09/03/2015,Support Services,"Policy, Legislation and Funding",TREASURY SOLICITOR,2000024854,500,#,WC2B 4TS,
Department for Transport,Department for Transport,09/03/2015,Training,Group Internal Audit,Matthew Leitch Associates Ltd,2000024880,3171.6,#,KT19 8LD,
Department for Transport,Department for Transport,09/03/2015,Training,Group Human Resource,Capita Business Services Ltd,2000024857,18000,#,B1 3RB,
Department for Transport,Department for Transport,09/03/2015,Travel Expenses UK,Air Accident Investigation Branch,REDFERN TRAVEL LTD,2000024871,15036.97,Redfern Feb 2015,BD1 3AZ,
Department for Transport,Department for Transport,10/03/2015,Agency Staff Costs,Corporate Governance,PARITY RESOURCES LTD,2000025013,14464.66,#,SW19 3RU,
Department for Transport,Department for Transport,10/03/2015,Agency Staff Costs,Corporate Governance,PARITY RESOURCES LTD,2000025013,14464.66,#,SW19 3RU,
Department for Transport,Department for Transport,10/03/2015,Agency Staff Costs,Corporate Governance,PARITY RESOURCES LTD,2000025013,8035.92,#,SW19 3RU,
Department for Transport,Department for Transport,10/03/2015,Agency Staff Costs,Local,BROOK STREET (UK) LIMITED,2000025009,799.68,#,AL1 4JB,
Department for Transport,Department for Transport,10/03/2015,Agency Staff Costs,Group Finance,NETWORKERS INTERNATIONAL (UK) PLC,2000025014,3391.26,#,BR1 1HP,
Department for Transport,Department for Transport,10/03/2015,Agency Staff Costs,Rail Commercial & Programme Office,CAPITA BUSINESS SERVICES LTD,2000024997,2585.94,#,DL1 9HN,
Department for Transport,Department for Transport,10/03/2015,Agency Staff Costs,Rail Commercial & Programme Office,MORGAN HUNT UK LTD,2000025003,3919.44,#,EC4M 7EG,
Department for Transport,Department for Transport,10/03/2015,Agency Staff Costs,Local,CAPITA BUSINESS SERVICES LTD,2000024997,2698.06,#,DL1 9HN,
Department for Transport,Department for Transport,10/03/2015,Agency Staff Costs,Major Projects & Growth,BROOK STREET (UK) LIMITED,2000025009,782.04,#,AL1 4JB,
Department for Transport,Department for Transport,10/03/2015,Agency Staff Costs,Group Finance,CAPITA BUSINESS SERVICES LTD,2000024997,2680.14,#,DL1 9HN,
Department for Transport,Department for Transport,10/03/2015,Agency Staff Costs,Group Finance,CAPITA BUSINESS SERVICES LTD,2000024997,2679.3,#,DL1 9HN,
Department for Transport,Department for Transport,10/03/2015,Agency Staff Costs,Group Finance,NETWORKERS INTERNATIONAL (UK) PLC,2000025014,861,#,BR1 1HP,
Department for Transport,Department for Transport,10/03/2015,Agency Staff Costs,Group Finance,NETWORKERS INTERNATIONAL (UK) PLC,2000025014,1925.7,#,BR1 1HP,
Department for Transport,Department for Transport,10/03/2015,Agency Staff Costs,Rail Strategy & Funding,CAPITA BUSINESS SERVICES LTD,2000024997,2160.54,#,DL1 9HN,
Department for Transport,Department for Transport,10/03/2015,Agency Staff Costs,Rail Strategy & Funding,CAPITA BUSINESS SERVICES LTD,2000024997,4510.62,#,DL1 9HN,
Department for Transport,Department for Transport,10/03/2015,Agency Staff Costs,Rail Strategy & Funding,CAPITA BUSINESS SERVICES LTD,2000024997,4874.64,#,DL1 9HN,
Department for Transport,Department for Transport,10/03/2015,Agency Staff Costs,Rail Strategy & Funding,CAPITA BUSINESS SERVICES LTD,2000024997,4510.62,#,DL1 9HN,
Department for Transport,Department for Transport,10/03/2015,Agency Staff Costs,Rail Strategy & Funding,CAPITA BUSINESS SERVICES LTD,2000024997,4930.86,#,DL1 9HN,
Department for Transport,Department for Transport,10/03/2015,Agency Staff Costs,Rail Strategy & Funding,CAPITA BUSINESS SERVICES LTD,2000024997,10572.84,#,DL1 9HN,
Department for Transport,Department for Transport,10/03/2015,Agency Staff Costs,Rail Strategy & Funding,CAPITA BUSINESS SERVICES LTD,2000024997,2680.14,#,DL1 9HN,
Department for Transport,Department for Transport,10/03/2015,Agency Staff Costs,Rail Strategy & Funding,NETWORKERS INTERNATIONAL (UK) PLC,2000025014,959.46,#,BR1 1HP,
Department for Transport,Department for Transport,10/03/2015,Agency Staff Costs,HS2 Pre. Re-Organisation,Veredus (trading name for,2000025037,20160,#,DL1 9HN,
Department for Transport,Department for Transport,10/03/2015,Cap Grt Loc Auth,"Energy, Technology and International",NORTHUMBERLAND CC,2000025011,300000,2013/14 NORTHUMBERLAND #300K Rapid Chargepoints,NE61 2EF,
Department for Transport,Department for Transport,10/03/2015,Cap Grt NDPBs & CG,"Energy, Technology and International",KIRKLEES MBC,2000024990,4308.15,201314 kirklees #4308.15 Public Sector,HD1 2YU,
Department for Transport,Department for Transport,10/03/2015,Cap Grt Pri Sec-Cos.,"Energy, Technology and International",Chargemaster,2000025031,900,Chargemaster SEP 2014 #900,LU1 3LU,
Department for Transport,Department for Transport,10/03/2015,Cap Grt Pri Sec-Cos.,"Energy, Technology and International",EV Charging Solutions Ltd,2000025034,900,EV Charging Solutions Ltd,NG14 7ES,
Department for Transport,Department for Transport,10/03/2015,Cap Grt Pri Sec-Cos.,"Energy, Technology and International",Rolec Services Limited,2000025030,8100,ROLEC Dec 2015 #8100,PE20 1Q,
Department for Transport,Department for Transport,10/03/2015,Cap Grt Pri Sec-Cos.,"Energy, Technology and International",Rolec Services Limited,2000025030,900,ROLEC SEP 2015 #900,PE20 1Q,
Department for Transport,Department for Transport,10/03/2015,Car Hire and Leasing,Motoring Services,Saltco Ltd T/A Kelly Executive,2000025028,643.5,#,SE15 4RF,
Department for Transport,Department for Transport,10/03/2015,Courier Charges,Group Procurement & Estate,DX NETWORK SERVICES LTD,2000024996,1720.8,#,NN3 6YG,
Department for Transport,Department for Transport,10/03/2015,CurrGrtOth to NDPBs,Strategic Roads & Smart Ticketing,ITSO LTD,2000025018,288000,Development of approach to utilise HCE,MK13 8LW,
Department for Transport,Department for Transport,10/03/2015,Investigation Servic,Motoring Services,CH&I Associates Ltd,2000025027,1502.28,#,SK11 8AA,
Department for Transport,Department for Transport,10/03/2015,Investigation Servic,Motoring Services,CH&I Associates Ltd,2000025027,3984.24,#,SK11 8AA,
Department for Transport,Department for Transport,10/03/2015,IT Consultancy,Rail Strategy & Funding,Lockheed Martin Business,2000025036,4950,#,PA4 9LH,
Department for Transport,Department for Transport,10/03/2015,IT Ser Running Costs,Motoring Services,Department for Education,2000025033,6011.28,#,CF14 3UW,
Department for Transport,Department for Transport,10/03/2015,IT Ser Running Costs,Motoring Services,DAVIES AND ROBSON LOGISTICS LTD,2000025022,16083.79,#,NN7 4QG,
Department for Transport,Department for Transport,10/03/2015,Legal Consultancy,Rail Franchising,NORTON ROSE LLP,2000025015,67585.88,#,SE1 2AQ,
Department for Transport,Department for Transport,10/03/2015,Maintenance Other,"Motoring, Freight & London",TDC SYSTEMS LIMITED,2000025008,3250,#,BS24 9BP,
Department for Transport,Department for Transport,10/03/2015,Maintenance Other,"Motoring, Freight & London",TDC SYSTEMS LIMITED,2000025008,1490,#,BS24 9BP,
Department for Transport,Department for Transport,10/03/2015,Maintenance Other,"Motoring, Freight & London",TDC SYSTEMS LIMITED,2000025008,515,#,BS24 9BP,
Department for Transport,Department for Transport,10/03/2015,Maintenance Other,"Motoring, Freight & London",TDC SYSTEMS LIMITED,2000025008,3450,#,BS24 9BP,
Department for Transport,Department for Transport,10/03/2015,Maintenance Other,"Motoring, Freight & London",TDC SYSTEMS LIMITED,2000025008,480,#,BS24 9BP,
Department for Transport,Department for Transport,10/03/2015,Maintenance Other,"Motoring, Freight & London",TDC SYSTEMS LIMITED,2000025008,2030,#,BS24 9BP,
Department for Transport,Department for Transport,10/03/2015,Maintenance Other,"Motoring, Freight & London",TDC SYSTEMS LIMITED,2000025008,3450,#,BS24 9BP,
Department for Transport,Department for Transport,10/03/2015,Maintenance Other,"Motoring, Freight & London",TDC SYSTEMS LIMITED,2000025008,2220,#,BS24 9BP,
Department for Transport,Department for Transport,10/03/2015,Maintenance Other,"Motoring, Freight & London",TDC SYSTEMS LIMITED,2000025008,2960,#,BS24 9BP,
Department for Transport,Department for Transport,10/03/2015,Maintenance Other,"Motoring, Freight & London",TDC SYSTEMS LIMITED,2000025008,1407,#,BS24 9BP,
Department for Transport,Department for Transport,10/03/2015,Maintenance Other,"Motoring, Freight & London",TDC SYSTEMS LIMITED,2000025008,3035,#,BS24 9BP,
Department for Transport,Department for Transport,10/03/2015,Marketing,Analysis & Strategy,OVE ARUP & PARTNERS,2000025005,40858.81,#,NE1 3PL,
Department for Transport,Department for Transport,10/03/2015,Mobile Phone charges,Group Finance,VODAFONE LTD,2000025010,6996.34,Vodafone - Various - Feb 2015,RG14 5FF,
Department for Transport,Department for Transport,10/03/2015,Other Professional F,"Motoring, Freight & London",OFFICE FOR NATIONAL STATISTICS,2000024993,23940,#,NP10 8XG,
Department for Transport,Department for Transport,10/03/2015,Other Professional F,"Motoring, Freight & London",ORDNANCE SURVEY,2000025004,2400000,#,SO16 4XH,
Department for Transport,Department for Transport,10/03/2015,Prog&ProjMgmt Consul,Local,ATKINS LTD (TRANSPORT PLANNING),2000024998,13333.33,#,WR5 1TX,
Department for Transport,Department for Transport,10/03/2015,Prog&ProjMgmt Consul,Motoring Services,Grange Car Wash,2000025041,1290,#,SE1 3AD,
Department for Transport,Department for Transport,10/03/2015,Prog&ProjMgmt Consul,Motoring Services,MACE Limited,2000025043,13050.84,#,EC2M 6X,
Department for Transport,Department for Transport,10/03/2015,Publications for Res,Group Human Resource,CREATIVE CHOICE CIC,2000025019,1150,#,SW1H 0DJ,
Department for Transport,Department for Transport,10/03/2015,Publications for Res,Group Communication,CREATIVE CHOICE CIC,2000025019,450,#,SW1H 0DJ,
Department for Transport,Department for Transport,10/03/2015,Purchasing Card Char,RTL DG's Office,BARCLAYS BANK PLC,2000024999,3767.8,Barclays - Feburary 2015 - DFT/RT&L,NN4 7SG,
Department for Transport,Department for Transport,10/03/2015,Purchasing Card Char,RTL DG's Office,BARCLAYS BANK PLC,2000024999,18215.51,Barclays - Feburary 2015 - DFT/RT&L,NN4 7SG,
Department for Transport,Department for Transport,10/03/2015,Purchasing Card Char,Centrally held prog-NATs,BARCLAYS BANK PLC,2000024999,37590.02,Barclays - Feburary 2015 - DFT/ISE,NN4 7SG,
Department for Transport,Department for Transport,10/03/2015,Purchasing Card Char,Centrally held prog-NATs,BARCLAYS BANK PLC,2000024999,13548.11,Barclays - Feburary 2015 - DFT/ISE,NN4 7SG,
Department for Transport,Department for Transport,10/03/2015,Purchasing Card Char,Group Finance,BARCLAYS BANK PLC,2000024999,810.51,Barclays - Feburary 2015 - DFT/R&S,NN4 7SG,
Department for Transport,Department for Transport,10/03/2015,Purchasing Card Char,Group Finance,BARCLAYS BANK PLC,2000024999,35365.55,Barclays - Feburary 2015 - DFT/R&S,NN4 7SG,
Department for Transport,Department for Transport,10/03/2015,Purchasing Card Char,Group Finance,BARCLAYS BANK PLC,2000024999,1275.32,Barclays - Feburary 2015 - DFT/Rail Group,NN4 7SG,
Department for Transport,Department for Transport,10/03/2015,Purchasing Card Char,Group Finance,BARCLAYS BANK PLC,2000024999,5168.2,Barclays - Feburary 2015 - DFT/Rail Group,NN4 7SG,
Department for Transport,Department for Transport,10/03/2015,Research,"Motoring, Freight & London",HALCROW GROUP LTD,2000025001,17171.03,#,W6 7EF,
Department for Transport,Department for Transport,10/03/2015,Small Software,Group Communication,"Zendesk, Inc",2000024994,4718.69,Enterprise Annual Service 04/02/2015-04/01/2016,94103,
Department for Transport,Department for Transport,10/03/2015,Subsidies Private Se,Local,Telfords Coaches Ltd,2000024991,633.01,Telfords Coaches Ltd,TD9 0QP,
Department for Transport,Department for Transport,10/03/2015,Training,Motoring Services,ROSPA ENTERPRISES LTD,2000025012,1300,#,B15 1RP,
Department for Transport,Department for Transport,10/03/2015,Training Aids,Analysis & Strategy,Department for Education,1700000109,-1200,#,CF14 3UW,
Department for Transport,Department for Transport,10/03/2015,Training Aids,Analysis & Strategy,Department for Education,1700000109,1200,#,CF14 3UW,
Department for Transport,Department for Transport,10/03/2015,Transport  Consult,Aviation,xxxxxx,2000025032,4200,#,xxxxxx,
Department for Transport,Department for Transport,10/03/2015,Travel Expenses UK,Group Finance,REDFERN TRAVEL LTD,2000025017,143733.96,Redfern Feb 2015,BD1 3AZ,
Department for Transport,Department for Transport,11/03/2015,Agency Staff Costs,Local,BROOK STREET (UK) LIMITED,2000025178,642.02,#,AL1 4JB,
Department for Transport,Department for Transport,11/03/2015,Agency Staff Costs,Group Communication,CAPITA BUSINESS SERVICES LTD,2000025161,607.06,#,DL1 9HN,
Department for Transport,Department for Transport,11/03/2015,Agency Staff Costs,Group Human Resource,NETWORKERS INTERNATIONAL (UK) PLC,2000025184,1013.52,#,BR1 1HP,
Department for Transport,Department for Transport,11/03/2015,Agency Staff Costs,Group Human Resource,NETWORKERS INTERNATIONAL (UK) PLC,2000025184,1013.52,#,BR1 1HP,
Department for Transport,Department for Transport,11/03/2015,Agency Staff Costs,Group Finance,CAPITA BUSINESS SERVICES LTD,2000025161,5490.12,#,DL1 9HN,
Department for Transport,Department for Transport,11/03/2015,Agency Staff Costs,Environment & International Transport Analysis,CAPITA BUSINESS SERVICES LTD,2000025161,3573.24,#,DL1 9HN,
Department for Transport,Department for Transport,11/03/2015,Agency Staff Costs,Rail Commercial & Programme Office,CAPITA BUSINESS SERVICES LTD,2000025161,3297.12,#,DL1 9HN,
Department for Transport,Department for Transport,11/03/2015,Agency Staff Costs,Rail Commercial & Programme Office,Capita Resourcing Limited,2000025181,18720,#,EC4A 1EN,
Department for Transport,Department for Transport,11/03/2015,Agency Staff Costs,Major Projects & Growth,CAPITA BUSINESS SERVICES LTD,2000025161,3168.91,#,DL1 9HN,
Department for Transport,Department for Transport,11/03/2015,Agency Staff Costs,Group Finance,CAPITA BUSINESS SERVICES LTD,2000025161,3329.64,#,DL1 9HN,
Department for Transport,Department for Transport,11/03/2015,Agency Staff Costs,Group Finance,CAPITA BUSINESS SERVICES LTD,2000025161,5300.28,#,DL1 9HN,
Department for Transport,Department for Transport,11/03/2015,Agency Staff Costs,Group Finance,CAPITA BUSINESS SERVICES LTD,2000025161,2063.1,#,DL1 9HN,
Department for Transport,Department for Transport,11/03/2015,Agency Staff Costs,Rail Franchising,BROOK STREET (UK) LIMITED,2000025178,823.2,#,AL1 4JB,
Department for Transport,Department for Transport,11/03/2015,Agency Staff Costs,Rail Franchising,CAPITA BUSINESS SERVICES LTD,2000025161,11880,#,DL1 9HN,
Department for Transport,Department for Transport,11/03/2015,Agency Staff Costs,Rail Commercial & Programme Office,CAPITA BUSINESS SERVICES LTD,2000025161,1734.08,#,DL1 9HN,
Department for Transport,Department for Transport,11/03/2015,Agency Staff Costs,Rail Commercial & Programme Office,CAPITA BUSINESS SERVICES LTD,2000025161,2452.8,#,DL1 9HN,
Department for Transport,Department for Transport,11/03/2015,Agency Staff Costs,Rail Commercial & Programme Office,CAPITA BUSINESS SERVICES LTD,2000025161,3654.36,#,DL1 9HN,
Department for Transport,Department for Transport,11/03/2015,Agency Staff Costs,Network Rail Sponsorship,CAPITA BUSINESS SERVICES LTD,2000025161,2936.52,#,DL1 9HN,
Department for Transport,Department for Transport,11/03/2015,Agency Staff Costs,Rail Franchising,CAPITA BUSINESS SERVICES LTD,2000025161,2777.52,#,DL1 9HN,
Department for Transport,Department for Transport,11/03/2015,Agency Staff Costs,Rail Commercial & Programme Office,CAPITA BUSINESS SERVICES LTD,2000025161,2452.8,#,DL1 9HN,
Department for Transport,Department for Transport,11/03/2015,Agency Staff Costs,Rail Franchising,CAPITA BUSINESS SERVICES LTD,2000025161,3809.71,#,DL1 9HN,
Department for Transport,Department for Transport,11/03/2015,Building Service Cha,Rail Accident Investigation Branch,INNES ENGLAND LTD,2000025171,5340,Innes - The Wharf - 25.03.2015 - 23.06.2015,DE1 1BT,
Department for Transport,Department for Transport,11/03/2015,Cap Grt Pri Sec-Cos.,"Policy, Legislation and Funding",Eversheds LLP,2000025199,19906.8,HS2 Property Purchase,CF10 5BT,
Department for Transport,Department for Transport,11/03/2015,Cap Grt Pri Sec-Cos.,"Policy, Legislation and Funding",Eversheds LLP,2000025199,1202.7,Legal Costs ,CF10 5BT,
Department for Transport,Department for Transport,11/03/2015,Cap Grt Pri Sec-Cos.,"Policy, Legislation and Funding",Eversheds LLP,2000025199,109310,HS2 Property Purchase,CF10 5BT,
Department for Transport,Department for Transport,11/03/2015,Car Tax & Insurance,Motoring Services,JLC Ltd,2000025191,2442.02,#,SE24 OHL,
Department for Transport,Department for Transport,11/03/2015,Cars Fuel,Motoring Services,ALLSTAR BUSINESS SOLUTIONS LIMITED,2000025166,12663.31,#,SN5 6PS,
Department for Transport,Department for Transport,11/03/2015,Cars Maintenance,Motoring Services,ATS Euromaster Ltd,2000025162,801.64,#,EN11 1HH,
Department for Transport,Department for Transport,11/03/2015,Cars Maintenance,Motoring Services,Stapletons Tyre Services,2000025193,570.4,#,SG6 2HU,
Department for Transport,Department for Transport,11/03/2015,Computer equipment,Motoring Services,Probrand Ltd,2000025164,6,Privacy Filters - Shipping,B1 3BP,
Department for Transport,Department for Transport,11/03/2015,Computer equipment,Motoring Services,Probrand Ltd,2000025164,742.2,#,B1 3BP,
Department for Transport,Department for Transport,11/03/2015,CurrGrt Las in AEF/A,"Motoring, Freight & London",GREATER LONDON AUTHORITY,2000025208,1000000,Section 31 TfL Grant,SE1 2UT,
Department for Transport,Department for Transport,11/03/2015,CurrGrt Las in AEF/A,Local,HALTON BC,2000025207,266597,Q3 Revenue Payment - Mersey Gateway Bridge,WA8 6NB,
Department for Transport,Department for Transport,11/03/2015,CurrGrt Las in AEF/A,Local,COMMUNITIES AND LOCAL GOVERNMENT,2000025315,75569811,Transfer of PFI grant for payment to LAs,HP2 4XN,
Department for Transport,Department for Transport,11/03/2015,CurrGrtPriSec-P&NPIS,"Motoring, Freight & London",Environmental Scientifics,2000025205,56940,FSP Payments - ESG,DE15 0YZ,
Department for Transport,Department for Transport,11/03/2015,IT Equip Cap Cost,Motoring Services,Probrand Ltd,2000025164,5339.86,#,B1 3BP,
Department for Transport,Department for Transport,11/03/2015,IT Ser Running Costs,Group Communication,SELEX ES Ltd,2000025185,3906.68,#,BS16 1EJ,
Department for Transport,Department for Transport,11/03/2015,IT Ser Running Costs,Group Communication,SELEX ES Ltd,2000025185,4596.48,#,BS16 1EJ,
Department for Transport,Department for Transport,11/03/2015,Legal Consultancy,Major Projects & Growth,FRESHFIELDS,100032164,-67143.9,#,EC4Y 1HS,
Department for Transport,Department for Transport,11/03/2015,Legal Consultancy,Major Projects & Growth,FRESHFIELDS,100032164,-156222.63,#,EC4Y 1HS,
Department for Transport,Department for Transport,11/03/2015,Legal Consultancy,Major Projects & Growth,FRESHFIELDS,100032164,-177179.62,#,EC4Y 1HS,
Department for Transport,Department for Transport,11/03/2015,Legal Consultancy,Major Projects & Growth,FRESHFIELDS,100032164,-203785.96,#,EC4Y 1HS,
Department for Transport,Department for Transport,11/03/2015,Legal Consultancy,Major Projects & Growth,FRESHFIELDS,100032164,67143.9,#,EC4Y 1HS,
Department for Transport,Department for Transport,11/03/2015,Legal Consultancy,Major Projects & Growth,FRESHFIELDS,100032164,203785.96,#,EC4Y 1HS,
Department for Transport,Department for Transport,11/03/2015,Legal Consultancy,Major Projects & Growth,FRESHFIELDS,100032164,156222.63,#,EC4Y 1HS,
Department for Transport,Department for Transport,11/03/2015,Legal Consultancy,Major Projects & Growth,FRESHFIELDS,100032164,177179.62,#,EC4Y 1HS,
Department for Transport,Department for Transport,11/03/2015,Legal Consultancy,Rail Franchising,Field Fisher Waterhouse LLP,2000025198,27624.24,#,EC3N 2AA,
Department for Transport,Department for Transport,11/03/2015,Maintenance Other,"Motoring, Freight & London",TDC SYSTEMS LIMITED,2000025176,690,#,BS24 9BP,
Department for Transport,Department for Transport,11/03/2015,Maintenance Other,"Motoring, Freight & London",TDC SYSTEMS LIMITED,2000025176,690,#,BS24 9BP,
Department for Transport,Department for Transport,11/03/2015,Maintenance Other,Motoring Services,ARVAL,2000025163,857.4,#,SN5 6PE,
Department for Transport,Department for Transport,11/03/2015,Maintenance Other,Motoring Services,ARVAL,2000025163,6112.35,#,SN5 6PE,
Department for Transport,Department for Transport,11/03/2015,Management Consultan,Strategic Roads & Smart Ticketing,Rail Settlement Plan,2000025174,398765.74,#,EC1A 4HD,
Department for Transport,Department for Transport,11/03/2015,Management Consultan,Strategic Roads & Smart Ticketing,Rail Settlement Plan,2000025174,49048.5,#,EC1A 4HD,
Department for Transport,Department for Transport,11/03/2015,Management Consultan,Strategic Roads & Smart Ticketing,Rail Settlement Plan,2000025174,84054.37,#,EC1A 4HD,
Department for Transport,Department for Transport,11/03/2015,Management Consultan,Strategic Roads & Smart Ticketing,Rail Settlement Plan,2000025174,305166.25,#,EC1A 4HD,
Department for Transport,Department for Transport,11/03/2015,Management Consultan,Strategic Roads & Smart Ticketing,Rail Settlement Plan,2000025174,460291.2,#,EC1A 4HD,
Department for Transport,Department for Transport,11/03/2015,Minor Developments,"Motoring, Freight & London",Kindred Agency,2000025197,975,#,WC2E 9RA,
Department for Transport,Department for Transport,11/03/2015,Other Professional F,"Energy, Technology and International",RICARDO - AEA LIMITED,2000025186,3776,#,OX11 0PQ,
Department for Transport,Department for Transport,11/03/2015,Publicity,Group Communication,ABBOTT MEAD VICKERS BBDO LTD,2000025165,9524,#,NW1 5QE,
Department for Transport,Department for Transport,11/03/2015,Subsidies Private Se,"Motoring, Freight & London",Mode Shift Grant Payment,2000025179,49581.01,#,#,
Department for Transport,Department for Transport,11/03/2015,Subsidies Private Se,"Motoring, Freight & London",Mode Shift Grant Payment,2000025179,56321.28,#,#,
Department for Transport,Department for Transport,11/03/2015,Subsidies Private Se,"Motoring, Freight & London",Mode Shift Grant Payment,2000025180,740495.35,#,#,
Department for Transport,Department for Transport,11/03/2015,Support Services,Aviation,Civil Aviation Authority,2000025169,132482,#,RH6 0YR,
Department for Transport,Department for Transport,11/03/2015,Support Services,"Policy, Legislation and Funding",DEPARTMENT FOR ENVIRONMENT,2000025170,1138,#,YO1 7PX,
Department for Transport,Department for Transport,11/03/2015,Training,Group Human Resource,Capita Business Services Ltd,2000025159,1086,#,B1 3RB,
Department for Transport,Department for Transport,11/03/2015,Training,Rail Franchising,Prosell Learning Limited,2000025203,6000,#,TW2 5AG,
Department for Transport,Department for Transport,11/03/2015,Transport  Consult,Analysis & Strategy,WSP UK Limited T/A WSP Civils,2000025177,4358.92,#,GL20 8SJ,
Department for Transport,Department for Transport,11/03/2015,Transport  Consult,Analysis & Strategy,WSP UK Limited T/A WSP Civils,2000025177,28896.36,#,GL20 8SJ,
Department for Transport,Department for Transport,11/03/2015,Transport  Consult,Rail Franchising,FIRST CLASS PARTNERSHIPS LTD,2000025182,9120,#,YO10 3EB,
Department for Transport,Department for Transport,11/03/2015,Transport  Consult,Rail Franchising,Pricewaterhouse Coopers LLP,2000025173,74134.8,#,SE1 2RD,
Department for Transport,Department for Transport,12/03/2015,Agency Staff Costs,Group Finance,MICHAEL PAGE INTERNATIONAL,2000025359,6420,#,SL1 3SA,
Department for Transport,Department for Transport,12/03/2015,Agency Staff Costs,Rail Strategy & Funding,Experis Ltd,2000025349,1779.82,#,EC2M 2RB,
Department for Transport,Department for Transport,12/03/2015,Agency Staff Costs,Rail Franchising,CAPITA BUSINESS SERVICES LTD,2000025344,5698.14,#,DL1 9HN,
Department for Transport,Department for Transport,12/03/2015,Agency Staff Costs,Rail Franchising,CAPITA BUSINESS SERVICES LTD,2000025344,4187.4,#,DL1 9HN,
Department for Transport,Department for Transport,12/03/2015,Agency Staff Costs,Rail Commercial & Programme Office,CAPITA BUSINESS SERVICES LTD,2000025344,2887.92,#,DL1 9HN,
Department for Transport,Department for Transport,12/03/2015,Agency Staff Costs,Transport Security Strategy,Capita Resourcing Limited,2000025360,6839.42,#,EC4A 1EN,
Department for Transport,Department for Transport,12/03/2015,Agency Staff Costs,Rail Franchising,Experis Ltd,2000025349,4470.72,#,EC2M 2RB,
Department for Transport,Department for Transport,12/03/2015,Agency Staff Costs,Highspeed 2,Experis Ltd,2000025349,9332.4,#,EC2M 2RB,
Department for Transport,Department for Transport,12/03/2015,Agency Staff Costs,Rail Commercial & Programme Office,MICHAEL PAGE INTERNATIONAL,2000025359,723.9,#,SL1 3SA,
Department for Transport,Department for Transport,12/03/2015,Agency Staff Costs,Highspeed 2,SPRING TECHNOLOGY LTD  ALSO T/A,2000025364,4650,#,B37 7YE,
Department for Transport,Department for Transport,12/03/2015,Agency Staff Costs,Highspeed 2,SPRING TECHNOLOGY LTD  ALSO T/A,2000025364,4200,#,B37 7YE,
Department for Transport,Department for Transport,12/03/2015,Audit Fees (cash),Aviation,Pricewaterhouse Coopers LLP,2000025353,9900,#,SE1 2RD,
Department for Transport,Department for Transport,12/03/2015,Cap Grt Loc Auth,Local,Cheshire West & Chester Council,2000025365,2243000,Local Pinch Point Fund Grant March 2015,CH1 1SE,
Department for Transport,Department for Transport,12/03/2015,Cap Grt Loc Auth,Local,LEICESTERSHIRE COUNTY COUNCIL,2000025378,2247000,Local Pinch Point Fund Grant March 2015,LE3 8RB,
Department for Transport,Department for Transport,12/03/2015,Electricity,Air Accident Investigation Branch,MINISTRY OF DEFENCE,2000025361,10823.57,MOD - AAIB - 30.09.14 to 30.01.2015,L2 3YL,
Department for Transport,Department for Transport,12/03/2015,Financial Consultanc,Group Finance,RPMI,2000025372,2510.4,#,DL3 6EH,
Department for Transport,Department for Transport,12/03/2015,IT Consultancy,Major Projects & Growth,TRANSPORT RESEARCH LABORATORY,2000025355,13200,#,RG40 3GA,
Department for Transport,Department for Transport,12/03/2015,IT Ser Running Costs,Group Communication,Kainos Software Ltd,2000025351,1134,#,BT7 1NT,
Department for Transport,Department for Transport,12/03/2015,Legal Consultancy,Rail Franchising,BEVAN BRITTAN,2000025346,10474.2,#,BS2 0HQ,
Department for Transport,Department for Transport,12/03/2015,Management Consultan,General Counsel's Office,Crawford & Co Adjusters (UK) Ltd,2000025375,17401.2,#,B2 2PF,
Department for Transport,Department for Transport,12/03/2015,Other Advertising,Rail Franchising,StreetPR UK Ltd,2000025377,1360,#,WC2H 7JA,
Department for Transport,Department for Transport,12/03/2015,Prog&ProjMgmt Consul,Major Projects & Growth,EAST COAST MAIN LINE,2000025368,34831.51,#,YO1 6DH,
Department for Transport,Department for Transport,12/03/2015,Publications for Res,Group Communication,CREATIVE CHOICE CIC,2000025371,1650,#,SW1H 0DJ,
Department for Transport,Department for Transport,12/03/2015,Rent - L&B (non-PFI),Group Procurement & Estate,Salisbury Ltd Directors Retirement,2000025376,35517.81,Rent ,W1G 9TB,
Department for Transport,Department for Transport,12/03/2015,Research,Analysis & Strategy,2CV LTD,2000025345,38300,#,WC2H 8DL,
Department for Transport,Department for Transport,12/03/2015,Research,Anallysis & Strategy,ECONOMIC & SOCIAL RESEARCH CNCL,2000025341,17500,#,SN2 1UJ,
Department for Transport,Department for Transport,12/03/2015,Security,Transport Security Strategy,Security Services Group,2000025342,922.1,#,SN6 8LA,
Department for Transport,Department for Transport,12/03/2015,Subsidies Private Se,Local,CITY OF CHICHESTER COACHES LTD,2000025373,95481.6,City of Chichester Coaches Ltd,RH12 4TB,
Department for Transport,Department for Transport,12/03/2015,Support Services,Aviation,CARDIFF INTNL AIRPORT LTD,2000025347,24819.6,#,CF62 3BD,
Department for Transport,Department for Transport,12/03/2015,Support Services,Aviation,HUMBERSIDE INT AIRPORT LTD,2000025363,30378,#,DN39 6YH,
Department for Transport,Department for Transport,12/03/2015,Support Services,"Policy, Legislation and Funding",DEPARTMENT FOR ENVIRONMENT,2000025348,17655.09,#,YO1 7PX,
Department for Transport,Department for Transport,12/03/2015,Support Services,Aviation,MINISTRY OF DEFENCE,2000025361,7763.2,#,L2 3YL,
Department for Transport,Department for Transport,12/03/2015,Transport  Consult,Rail Commercial & Programme Office,Directly Operated Railways Ltd,2000025367,30000,#,EC4A 1BL,
Department for Transport,Department for Transport,12/03/2015,Travel Expenses UK,Group Finance,RAIL STAFF TRAVEL LTD,2000025362,2667.52,#,WC1N 1BY,
Department for Transport,Department for Transport,13/03/2015,Agency Staff Costs,Group Finance,MICHAEL PAGE INTERNATIONAL,2000025441,3240,#,SL1 3SA,
Department for Transport,Department for Transport,13/03/2015,Agency Staff Costs,Group Finance,MICHAEL PAGE INTERNATIONAL,2000025441,2052,#,SL1 3SA,
Department for Transport,Department for Transport,13/03/2015,Agency Staff Costs,Major Projects & Growth,Experis Ltd,2000025433,4793.46,#,EC2M 2RB,
Department for Transport,Department for Transport,13/03/2015,Agency Staff Costs,Rail Commercial & Programme Office,Capita Resourcing Limited,2000025442,10270.66,#,EC4A 1EN,
Department for Transport,Department for Transport,13/03/2015,Agency Staff Costs,Transport Security Strategy,Capita Resourcing Limited,2000025442,3799.68,#,EC4A 1EN,
Department for Transport,Department for Transport,13/03/2015,Agency Staff Costs,Highspeed 2,Experis Ltd,2000025433,6163.02,#,EC2M 2RB,
Department for Transport,Department for Transport,13/03/2015,Agents Fees,Strategic Roads & Smart Ticketing,NORTHGATE INFORMATION SOLUTIONS,2000025461,179100,#,HP2 4NW,
Department for Transport,Department for Transport,13/03/2015,Cap Grt Pri Sec-Cos.,"Policy, Legislation and Funding",Eversheds LLP,2000025389,235275,50% Payment upon exchange of contracts,CF10 5BT,
Department for Transport,Department for Transport,13/03/2015,Cap Grt Pri Sec-Cos.,"Policy, Legislation and Funding",Eversheds LLP,2000025389,25392.03,MantGC2/PEARCEN additional disturbance,CF10 5BT,
Department for Transport,Department for Transport,13/03/2015,Cars Fuel,Air Accident Investigation Branch,ALLSTAR BUSINESS SOLUTIONS LIMITED,2000025427,759.87,#,SN5 6PS,
Department for Transport,Department for Transport,13/03/2015,CurrGrt Las in AEF/A,Local,Worcestershire County Council,2000025462,14259.98,Worcestershire County Council - Diesel,WR5 2NP,
Department for Transport,Department for Transport,13/03/2015,Data Supply - TD,Group Human Resource,ECA International Ltd,2000025432,13008,#,WC2B 5DG,
Department for Transport,Department for Transport,13/03/2015,Investigation Servic,Rail Accident Investigation Branch,Environmental Scientifics Group,2000025424,714,#,OX9 3SZ,
Department for Transport,Department for Transport,13/03/2015,IT Ser Running Costs,General Counsel's Office,Actica Consulting Limited,2000025447,1020,#,GU1 4AF,
Department for Transport,Department for Transport,13/03/2015,IT Ser Running Costs,General Counsel's Office,Actica Consulting Limited,2000025447,5100,#,GU1 4AF,
Department for Transport,Department for Transport,13/03/2015,IT Ser Running Costs,Motoring Services,SOFTWARE BOX LTD,2000025439,47862.6,#,YO61 1ET,
Department for Transport,Department for Transport,13/03/2015,Legal Consultancy,Group Procurement & Estate,Field Fisher Waterhouse LLP,100032265,-23757.6,#,EC4R 3TT,
Department for Transport,Department for Transport,13/03/2015,Legal Consultancy,Group Procurement & Estate,Field Fisher Waterhouse LLP,100032265,23757.6,#,EC4R 3TT,
Department for Transport,Department for Transport,13/03/2015,Legal Consultancy,Rail Franchising,Eversheds LLP,2000025450,25093.8,#,EC2V 7WS,
Department for Transport,Department for Transport,13/03/2015,Occup Health Scheme,Group Human Resource,Capita Health and Wellbeing Ltd,100032276,-1329,Credit re 93638503,CO4 4QR,
Department for Transport,Department for Transport,13/03/2015,Occup Health Scheme,Group Human Resource,Capita Health and Wellbeing Ltd,100032276,1329,See 5106000037,CO4 4QR,
Department for Transport,Department for Transport,13/03/2015,Prog&ProjMgmt Consul,Marine Accident Investigation Branch,MACE Limited,2000025460,34326,#,EC2M 6X,
Department for Transport,Department for Transport,13/03/2015,Property Maintenance,Rail Accident Investigation Branch,Interserve,2000025451,899.07,#,B70 1DA,
Department for Transport,Department for Transport,13/03/2015,Recruitment Fees,Group Human Resource,HM REVENUE & CUSTOMS,2000025423,3428.72,#,BN12 4XH,
Department for Transport,Department for Transport,13/03/2015,Research,Transport Security Strategy,DEFENCE SCIENCE & TECHNOLOGY,2000025431,7156.8,#,PO14 9HL,
Department for Transport,Department for Transport,13/03/2015,Research,Rail Strategy & Funding,ATOC Limited,2000025446,40000,#,EC1A 4HD,
Department for Transport,Department for Transport,13/03/2015,Research,Analysis & Strategy,ATKINS LTD (TRANSPORT PLANNING),2000025428,22068,#,WR5 1TX,
Department for Transport,Department for Transport,13/03/2015,Services prov by OGD,"Motoring, Freight & London",VEHICLE CERTIFICATION AGENCY,2000025440,12906.16,#,BS5 6XX,
Department for Transport,Department for Transport,13/03/2015,Services prov by OGD,"Motoring, Freight & London",VEHICLE CERTIFICATION AGENCY,2000025440,14817.98,#,BS5 6XX,
Department for Transport,Department for Transport,13/03/2015,Subscriptions to Pro,Group Communication,PROFILE GROUP (UK) LTD,2000025437,3480.05,#,EC1N 8JS,
Department for Transport,Department for Transport,13/03/2015,Subsidies Private Se,Local,ALINE COACHES,2000025209,869.4,A LINE COACHES,NE10 0UW,
Department for Transport,Department for Transport,13/03/2015,Subsidies Private Se,Local,APPLEGATES SUPREME COACHES,2000025210,1511.7,APPLEGATES SUPREME COACHES,GL13 9PL,
Department for Transport,Department for Transport,13/03/2015,Subsidies Private Se,Local,ASTONS COACHES LIMITED,2000025211,5114.75,ASTONS COACHES LIMITED,WR5 3HR,
Department for Transport,Department for Transport,13/03/2015,Subsidies Private Se,Local,AVON COACHES,2000025212,68790.12,AVON COACHES,CH43 3DT,
Department for Transport,Department for Transport,13/03/2015,Subsidies Private Se,Local,BEAVER BUS,2000025215,5955.58,BEAVER BUS LTD,LE18 4UQ,
Department for Transport,Department for Transport,13/03/2015,Subsidies Private Se,Local,Bethell and Partner,2000025303,6468.91,Bethell & Partner t/a South Staffs,B78 3LG,
Department for Transport,Department for Transport,13/03/2015,Subsidies Private Se,Local,BRYLAINE TRAVEL,2000025216,54884.86,BRYLAINE TRAVEL LTD,PE21 7DD,
Department for Transport,Department for Transport,13/03/2015,Subsidies Private Se,Local,C BANNISTER & SON,2000025217,7194.57,C Bannister & Son (t/a Isle Coaches),DN9 1RL,
Department for Transport,Department for Transport,13/03/2015,Subsidies Private Se,Local,C PEELING & SONS,2000025218,511.28,C Peeling & Sons,PE32 2RQ,
Department for Transport,Department for Transport,13/03/2015,Subsidies Private Se,Local,Carmel Coaches Bristol,2000025304,2344.25,Carmel Coaches Bristol,BS48 1JN,
Department for Transport,Department for Transport,13/03/2015,Subsidies Private Se,Local,Centrebus Holdings Ltd,2000025290,37631.5,Centrebus Holdings Ltd,LE4 8PH,
Department for Transport,Department for Transport,13/03/2015,Subsidies Private Se,Local,CENTREBUS LTD,2000025219,94518.25,Centrebus Ltd,LE4 9HU,
Department for Transport,Department for Transport,13/03/2015,Subsidies Private Se,Local,CHAPEL END COACHES,2000025220,834.17,CHAPEL END COACHES,CV11 6JX,
Department for Transport,Department for Transport,13/03/2015,Subsidies Private Se,Local,Charlton Services,2000025221,2003.12,Charlton Services,OX5 2UQ,
Department for Transport,Department for Transport,13/03/2015,Subsidies Private Se,Local,CHESTER'S COACHES LTD,2000025222,5103.17,CHESTER'S COACHES LTD,M28 5LX,
Department for Transport,Department for Transport,13/03/2015,Subsidies Private Se,Local,CLARIBEL COACHES LTD,2000025223,36709.69,CLARIBEL COACHES LTD,B33 0JT,
Department for Transport,Department for Transport,13/03/2015,Subsidies Private Se,Local,Coastal Red Ltd T/A Lynx,2000025305,7029.07,Coastal Red Ltd t/a Lynx,PE34 3HN,
Department for Transport,Department for Transport,13/03/2015,Subsidies Private Se,Local,COMMUNITY TRANSPORT SOUTH WILTSHIRE,2000025224,549.15,Community Transport South Wiltshire,SP2 7NP,
Department for Transport,Department for Transport,13/03/2015,Subsidies Private Se,Local,CUMFYBUS LTD,2000025226,36097.89,CUMFYBUS LTD,PR9 7PL,
Department for Transport,Department for Transport,13/03/2015,Subsidies Private Se,Local,DELAINE BUSES LTD,2000025228,37267.87,DELAINE BUSES LIMITED,PE10 9LE,
Department for Transport,Department for Transport,13/03/2015,Subsidies Private Se,Local,DIAL-A-BUS,2000025229,14202.75,DIAL-A-BUS,TQ4 7BL,
Department for Transport,Department for Transport,13/03/2015,Subsidies Private Se,Local,DRM (BROMYARD) LTD,2000025231,15435.8,DRM (BROMYARD) LTD,HR7 4NT,
Department for Transport,Department for Transport,13/03/2015,Subsidies Private Se,Local,ENSIGN BUS COMPANY LTD,2000025232,68695,Ensign Bus Co Ltd,RM15 4YF,
Department for Transport,Department for Transport,13/03/2015,Subsidies Private Se,Local,Eurotaxis Ltd,2000025234,2741.87,EUROTAXIS LTD,BS37 5NH,
Department for Transport,Department for Transport,13/03/2015,Subsidies Private Se,Local,FAIRBROTHERS LTD,2000025236,6581.94,FAIRBROTHERS LTD,WA2 9UY,
Department for Transport,Department for Transport,13/03/2015,Subsidies Private Se,Local,FIRST LEICESTER BUSES LTD,2000025239,223811.48,First Leicester,LE4 0DA,
Department for Transport,Department for Transport,13/03/2015,Subsidies Private Se,Local,First Provincial,2000025238,239087.34,FIRST PROVINCIAL,SO14 0JW,
Department for Transport,Department for Transport,13/03/2015,Subsidies Private Se,Local,FORD COACHES,2000025241,2183.44,Fords Coaches Ltd,CM3 6BZ,
Department for Transport,Department for Transport,13/03/2015,Subsidies Private Se,Local,FREEDOM TRAVEL NORTH LTD,2000025295,2464.88,Smiths of Marple,SK23 0PJ,
Department for Transport,Department for Transport,13/03/2015,Subsidies Private Se,Local,FROME MINIBUSES LTD,2000025242,522.26,FROME MINIBUSES LTD,BA11 4RP,
Department for Transport,Department for Transport,13/03/2015,Subsidies Private Se,Local,GRAND PRIX SERVICES,2000025244,1924.29,GRAND PRIX SERVICES,CA17 4AY,
Department for Transport,Department for Transport,13/03/2015,Subsidies Private Se,Local,HATCH GREEN COACHES,2000025291,786.78,HATCH GREEN COACHES,TA3 6TN,
Department for Transport,Department for Transport,13/03/2015,Subsidies Private Se,Local,Hawkes Tours Derby Ltd,2000025302,1468.71,Hawkes Tours (Derby) Ltd,DE1 3EE,
Department for Transport,Department for Transport,13/03/2015,Subsidies Private Se,Local,HUNTER BROTHERS (TANTOBIE) LTD,2000025246,1919.21,Hunter Bros (Tantobie) Ltd,DH9 9TG,
Department for Transport,Department for Transport,13/03/2015,Subsidies Private Se,Local,HUTCHINSONS,2000025247,1226.23,Hutchinsons,YO61 3EF,
Department for Transport,Department for Transport,13/03/2015,Subsidies Private Se,Local,J.W Lodge & Sons Ltd,2000025300,1149.21,J.W  Lodge & Son's Ltd T/A Lodge Coaches,CM1 4QR,
Department for Transport,Department for Transport,13/03/2015,Subsidies Private Se,Local,JIM STONES COACHES,2000025248,13476.49,Jim Stones Coaches,WA3 5LH,
Department for Transport,Department for Transport,13/03/2015,Subsidies Private Se,Local,JOHN RIGBY TRAVEL & TRANSPORT,2000025249,641.75,JOHN RIGBY TRAVEL,WF17 6JL,
Department for Transport,Department for Transport,13/03/2015,Subsidies Private Se,Local,JOHNSONS HENLEY,2000025250,30399.59,Johnsons Coach & Bus Travel,B95 5QS,
Department for Transport,Department for Transport,13/03/2015,Subsidies Private Se,Local,JUDDS TRAVEL LTD,2000025251,2869.71,JUDDS TRAVEL LTD,PE13 4ED,
Department for Transport,Department for Transport,13/03/2015,Subsidies Private Se,Local,K B Coaches,2000025252,2520.32,K B Coaches,GL10 3AJ,
Department for Transport,Department for Transport,13/03/2015,Subsidies Private Se,Local,Ken Miller Buses,2000025253,1620.81,KEN MILLER BUSES,B77 3NE,
Department for Transport,Department for Transport,13/03/2015,Subsidies Private Se,Local,Konectbus,2000025255,100546.13,KONECTBUS LTD,NR19 1SY,
Department for Transport,Department for Transport,13/03/2015,Subsidies Private Se,Local,LEVEN VALLEY COACHES,2000025256,22306.47,Leven Valley Coaches,TS9 6PD,
Department for Transport,Department for Transport,13/03/2015,Subsidies Private Se,Local,MACPHERSON COACHES LTD,2000025257,927.47,MACPHERSON COACHES LTD,DE12 7PL,
Department for Transport,Department for Transport,13/03/2015,Subsidies Private Se,Local,MARK BLAND TRAVEL LTD,2000025258,3490.98,MARK BLAND TRAVEL,PE9 4JN,
Department for Transport,Department for Transport,13/03/2015,Subsidies Private Se,Local,Mullany's Coaches (UK) Ltd,2000025261,12795.72,MULLANY'S COACHES (UK) LIMITED,WD25 0GB,
Department for Transport,Department for Transport,13/03/2015,Subsidies Private Se,Local,N B M HIRE LTD,2000025262,2321.16,NBM HIRE LTD,CA11 7JW,
Department for Transport,Department for Transport,13/03/2015,Subsidies Private Se,Local,NATIONAL EXPRESS LTD,2000025263,122495.64,NATIONAL EXPRESS LTD (CAMBRIDGE COACH SERVICES),B5 6DD,
Department for Transport,Department for Transport,13/03/2015,Subsidies Private Se,Local,NIBSBUSES LTD,2000025264,19369.46,Nibsbuses Ltd,SS11 8BZ,
Department for Transport,Department for Transport,13/03/2015,Subsidies Private Se,Local,Nottingham Minibuses & Coaches Ltd,2000025293,5073.58,Nottingham Minibuses & Coaches Ltd,NG4 1AG,
Department for Transport,Department for Transport,13/03/2015,Subsidies Private Se,Local,PC COACHES OF LINCOLN LTD,2000025265,14399.36,P C COACHES OF LINCOLN LTD,LN3 4NL,
Department for Transport,Department for Transport,13/03/2015,Subsidies Private Se,Local,REAYS COACHES LTD,2000025266,2542.44,REAYS COACHES LTD,CA7 9NE,
Department for Transport,Department for Transport,13/03/2015,Subsidies Private Se,Local,Reays Ltd,2000025298,75570.81,Reays Limited,CA7 9NE,
Department for Transport,Department for Transport,13/03/2015,Subsidies Private Se,Local,RICHARDSON TRAVEL LTD,2000025267,4526.95,RICHARDSON TRAVEL LTD,GU29 9RA,
Department for Transport,Department for Transport,13/03/2015,Subsidies Private Se,Local,RIDLERS LTD,2000025268,2061.36,RIDLERS LTD,TA22 9EJ,
Department for Transport,Department for Transport,13/03/2015,Subsidies Private Se,Local,ROAD RUNNER BUS AND COACH,2000025297,12711.67,Roadrunner Bus and Coach,YO26 8BE,
Department for Transport,Department for Transport,13/03/2015,Subsidies Private Se,Local,SANDERS COACHES LIMITED,2000025269,81186.35,SANDERS COACHES LTD,NR25 6ER,
Department for Transport,Department for Transport,13/03/2015,Subsidies Private Se,Local,SCARLET BAND BUS & COACH LTD,2000025270,13964.18,Scarlet Band Bus & Coach Ltd,DL17 9LA,
Department for Transport,Department for Transport,13/03/2015,Subsidies Private Se,Local,SHARPES OF NOTTINGHAM,2000025271,3507.46,SHARPE'S OF NOTTINGHAM LTD,NG12 3BE,
Department for Transport,Department for Transport,13/03/2015,Subsidies Private Se,Local,STAGECOACH BUSWAYS,2000025273,866475.6,Stagecoach Busways,SK3 0DU,
Department for Transport,Department for Transport,13/03/2015,Subsidies Private Se,Local,Stagecoach Midland Red South Ltd,2000025260,357681.98,STAGECOACH MIDLAND RED (SOUTH) LTD,NN4 8ES,
Department for Transport,Department for Transport,13/03/2015,Subsidies Private Se,Local,Stagecoach North East,2000025274,62934.36,STAGECOACH HARTLEPOOL,SR5 1AQ,
Department for Transport,Department for Transport,13/03/2015,Subsidies Private Se,Local,Stagecoach North East,2000025274,181050.45,Stagecoach Transit,SR5 1AQ,
Department for Transport,Department for Transport,13/03/2015,Subsidies Private Se,Local,STAR TRAVEL SERVICES,2000025275,2901.91,Star Travel Services,HP21 7RR,
Department for Transport,Department for Transport,13/03/2015,Subsidies Private Se,Local,STEPHENSONS COACHES LTD,2000025276,44728.03,Stephensons Coaches,SS4 1BS,
Department for Transport,Department for Transport,13/03/2015,Subsidies Private Se,Local,SWANAGE TAXIS LTD,2000025277,1464.16,SWANAGE TAXIS LTD,BH19 3EB,
Department for Transport,Department for Transport,13/03/2015,Subsidies Private Se,Local,THE GREEN BUS COMPANY LIMITED,2000025292,13404.01,THE GREEN BUS COMPANY LTD,B18 5ST,
Department for Transport,Department for Transport,13/03/2015,Subsidies Private Se,Local,THE GREEN TRANSPORT COMPANY LIMITED,2000025245,21242.88,THE GREEN TRANSPORT COMPANY LTD,B18 5ST,
Department for Transport,Department for Transport,13/03/2015,Subsidies Private Se,Local,TLC TRAVEL LTD,2000025279,1526.27,TLC TRAVEL LTD,BD4 7EZ,
Department for Transport,Department for Transport,13/03/2015,Subsidies Private Se,Local,TRAVEL WRIGHT LTD,2000025281,2846.66,Travel Wright Ltd,NG24 2AG,
Department for Transport,Department for Transport,13/03/2015,Subsidies Private Se,Local,TYNE VALLEY COACHES LTD,2000025282,1888.43,Tyne Valley Coaches Ltd,NE46 4QT,
Department for Transport,Department for Transport,13/03/2015,Subsidies Private Se,Local,WEARDALE MOTOR SERVICES,2000025284,6288.48,Weardale Motor Services Ltd,DL13 2YQ,
Department for Transport,Department for Transport,13/03/2015,Subsidies Private Se,Local,WIGAN BUSES LTD,2000025286,515.57,WIGAN BUSES LTD,WN2 1HF,
Department for Transport,Department for Transport,13/03/2015,Subsidies Private Se,Local,WILFREDA LUXURY COACHES,2000025287,4718.62,Wilfreda Luxury Coaches Ltd,DN6 7AY,
Department for Transport,Department for Transport,13/03/2015,Subsidies Private Se,Local,XELABUS LIMITED,2000025296,15406,Xelabus Limited,SO50 6RR,
Department for Transport,Department for Transport,13/03/2015,Subsidies Private Se,Local,Yelloway Coaches Limited,2000025225,2842.16,YELLOWAY COACHES LIMITED,OL9 9ER,
Department for Transport,Department for Transport,13/03/2015,Subsidies Private Se,Local,Yorkshire Tiger Ltd,2000025289,179676.68,Yorkshire Tiger Ltd,HX5 9HD,
Department for Transport,Department for Transport,13/03/2015,Subsidies Private Se,Local,Z & S Transport Ltd,2000025288,10562.12,Z & S Transport Ltd,HP19 8DY,
Department for Transport,Department for Transport,13/03/2015,Support Services,General Counsel's Office,TREASURY SOLICITOR,2000025422,50,#,WC2B 4TS,
Department for Transport,Department for Transport,13/03/2015,Support Services,General Counsel's Office,Crombie Wilkinson Solicitors Ltd,2000025459,115430.9,Industrial Injury Claim ,YO1 9RJ,
Department for Transport,Department for Transport,13/03/2015,Support Services,Group Finance,DD ACCRAILWAY PENS TRUSTEE,2000025443,2763.75,#,DL3 6XR,
Department for Transport,Department for Transport,13/03/2015,Support Services,Group Finance,DD ACCRAILWAY PENS TRUSTEE,2000025443,681.24,#,DL3 6XR,
Department for Transport,Department for Transport,13/03/2015,Support Services,Aviation,MINISTRY OF DEFENCE,2000025444,38631.8,#,L2 3YL,
Department for Transport,Department for Transport,13/03/2015,Support Services,Aviation,MINISTRY OF DEFENCE,2000025444,5947.4,#,L2 3YL,
Department for Transport,Department for Transport,13/03/2015,Support Services,Aviation,MINISTRY OF DEFENCE,2000025444,19565.9,#,L2 3YL,
Department for Transport,Department for Transport,13/03/2015,Telephone charges,Air Accident Investigation Branch,ALTERNATIVE NETWORKS PLC,2000025449,2410.19,#,SW11 3UL,
Department for Transport,Department for Transport,13/03/2015,Training,Air Accident Investigation Branch,CRANFIELD UNIVERSITY,2000025430,13450,#,MK43 0AL,
Department for Transport,Department for Transport,13/03/2015,Training,Air Accident Investigation Branch,CRANFIELD UNIVERSITY,2000025430,766,#,MK43 0AL,
Department for Transport,Department for Transport,13/03/2015,Training,Air Accident Investigation Branch,CRANFIELD UNIVERSITY,2000025430,13450,#,MK43 0AL,
Department for Transport,Department for Transport,13/03/2015,Training,Group Communication,BESPOKE SPEECHWRITING SERVICES LTD,2000025448,2100,#,W10 4RB,
Department for Transport,Department for Transport,13/03/2015,Training,Marine Accident Investigation Branch,The Retirement Counselling Service,2000025438,1385,#,HP6 5AE,
Department for Transport,Department for Transport,13/03/2015,Transport  Consult,Analysis & Strategy,ATKINS LTD (TRANSPORT PLANNING),2000025428,4875.6,#,WR5 1TX,
Department for Transport,Department for Transport,13/03/2015,Transport  Consult,Rail Franchising,Pricewaterhouse Coopers LLP,2000025436,31611.6,#,SE1 2RD,
Department for Transport,Department for Transport,13/03/2015,Travel Expenses UK,Marine Accident Investigation Branch,Clyde Travel Management,2000025429,681.03,Clyde  25 & 29.03.2015,G52 4JQ,
Department for Transport,Department for Transport,13/03/2015,Travel Expenses UK,Marine Accident Investigation Branch,Clyde Travel Management,2000025429,783.62, 27.02.2015 - Case 291989,G52 4JQ,
Department for Transport,Department for Transport,13/03/2015,Treasury Solicitors,General Counsel's Office,TREASURY SOLICITOR,2000025422,24993.64,#,WC2B 4TS,
Department for Transport,Department for Transport,16/03/2015,Agency Staff Costs,Major Projects & Growth,Experis Ltd,2000025537,6040.02,#,EC2M 2RB,
Department for Transport,Department for Transport,16/03/2015,Agency Staff Costs,Rail Commercial & Programme Office,Capita Resourcing Limited,2000025543,13843.06,#,EC4A 1EN,
Department for Transport,Department for Transport,16/03/2015,Agency Staff Costs,Rail Commercial & Programme Office,Experis Ltd,2000025537,6505.42,#,EC2M 2RB,
Department for Transport,Department for Transport,16/03/2015,Agency Staff Costs,Rail Franchising,Capita Resourcing Limited,2000025543,40788.65,#,EC4A 1EN,
Department for Transport,Department for Transport,16/03/2015,Agency Staff Costs,Rail Franchising,Capita Resourcing Limited,2000025543,23587.52,#,EC4A 1EN,
Department for Transport,Department for Transport,16/03/2015,Agency Staff Costs,Rail Franchising,Experis Ltd,2000025537,4470.72,#,EC2M 2RB,
Department for Transport,Department for Transport,16/03/2015,Agency Staff Costs,Group Finance,Experis Ltd,2000025537,7700.64,#,EC2M 2RB,
Department for Transport,Department for Transport,16/03/2015,Agency Staff Costs,Rail Franchising,Experis Ltd,2000025537,4451.04,#,EC2M 2RB,
Department for Transport,Department for Transport,16/03/2015,Audit Fees (cash),Group Internal Audit,High Speed Two (HS2) Ltd,2000025550,40000,#,E14 5AB,
Department for Transport,Department for Transport,16/03/2015,Cap Grt Pri Sec-Cos.,"Energy, Technology and International",Leeds University,2000025556,36794.77,Leeds Uni FEB 2015 #36794.77,LS2 9JT,
Department for Transport,Department for Transport,16/03/2015,Cap Grt Pri Sec-Cos.,"Energy, Technology and International",Open University,2000025557,15000,Open Uni FEB 2015 #15000,MK7 6AA,
Department for Transport,Department for Transport,16/03/2015,Computer equipment,Air Accident Investigation Branch,SOFTWARE BOX LTD,2000025530,11654.93,SBL NON ETHOS DATACENTRE LICENCE 3 10/02,YO61 1ET,
Department for Transport,Department for Transport,16/03/2015,CurrGrt Las in AEF/A,Rail Strategy & Funding,TRANSPORT FOR LONDON,2000025544,1835393.48,TfL LOROL Grant - March 15,SW1H 0TL,
Department for Transport,Department for Transport,16/03/2015,CurrGrtPriSec-P&NPIS,Maritime,RLSS Poole Lifeguard,2000025558,7000,LIFEBOAT RESCUE GRANT AWARDS,BH21 1UQ,
Department for Transport,Department for Transport,16/03/2015,Investigation Servic,Motoring Services,CH&I Associates Ltd,2000025554,1166.88,#,SK11 8AA,
Department for Transport,Department for Transport,16/03/2015,Legal Consultancy,"Policy, Legislation and Funding",Thirty Nine Essex Street,2000025551,20064,#,WC2R 3AT,
Department for Transport,Department for Transport,16/03/2015,Management Consultan,General Counsel's Office,Crawford & Co Adjusters (UK) Ltd,2000025555,17401.2,#,B2 2PF,
Department for Transport,Department for Transport,16/03/2015,Non Stock Machine Co,Motoring Services,XMA LIMITED GOSC,2000025553,923.04,A33K150 Konica Minolta Bizhub C224e /C28,NG11 7EP,
Department for Transport,Department for Transport,16/03/2015,Non Stock Machine Co,Motoring Services,XMA LIMITED GOSC,2000025553,738.43,A33K150 Konica Minolta Bizhub C224e /C28,NG11 7EP,
Department for Transport,Department for Transport,16/03/2015,Other Advertising,Local,PENNA COMMUNICATIONS,2000025545,13851.97,#,EC4M 7RD,
Department for Transport,Department for Transport,16/03/2015,Publications for Res,Strategic Roads & Smart Ticketing,CREATIVE CHOICE CIC,2000025547,65,#,SW1H 0DJ,
Department for Transport,Department for Transport,16/03/2015,Publications for Res,Strategic Roads & Smart Ticketing,CREATIVE CHOICE CIC,2000025547,685,#,SW1H 0DJ,
Department for Transport,Department for Transport,16/03/2015,Publicity,Group Communication,ABBOTT MEAD VICKERS BBDO LTD,2000025533,138112.38,#,NW1 5QE,
Department for Transport,Department for Transport,16/03/2015,Publicity,Group Communication,FORSTER LAMOND LTD,2000025549,27423,#,SE1 1RU,
Department for Transport,Department for Transport,16/03/2015,Recruitment Fees,Group Human Resource,HM REVENUE & CUSTOMS,2000025526,3944.2,#,BN12 4XH,
Department for Transport,Department for Transport,16/03/2015,Recruitment Fees,Group Human Resource,HM REVENUE & CUSTOMS,2000025526,108730.8,#,BN12 4XH,
Department for Transport,Department for Transport,16/03/2015,Research,"Energy, Technology and International",OVE ARUP & PARTNERS,2000025540,24875.1,#,NE1 3PL,
Department for Transport,Department for Transport,16/03/2015,Security,Group Human Resource,HM REVENUE & CUSTOMS,2000025526,1364,#,BN12 4XH,
Department for Transport,Department for Transport,16/03/2015,Security,Group Human Resource,HM REVENUE & CUSTOMS,2000025526,4950,#,BN12 4XH,
Department for Transport,Department for Transport,16/03/2015,Security,Group Human Resource,HM REVENUE & CUSTOMS,2000025526,2175,#,BN12 4XH,
Department for Transport,Department for Transport,16/03/2015,Security,Group Human Resource,HM REVENUE & CUSTOMS,2000025526,2244,#,BN12 4XH,
Department for Transport,Department for Transport,16/03/2015,Services prov by OGD,Group Human Resource,HM REVENUE & CUSTOMS,2000025526,58745.52,#,BN12 4XH,
Department for Transport,Department for Transport,16/03/2015,Services prov by OGD,Aviation,International Aviation &,2000025527,12585,#,80113,
Department for Transport,Department for Transport,16/03/2015,Stationery (Non-stk),Rail Accident Investigation Branch,DERBY OFFICE MACHINES LTD,2000025536,562.8,155834 Nobo Floor Standing Screen,DE1 3QB,
Department for Transport,Department for Transport,16/03/2015,Stationery (Non-stk),Rail Accident Investigation Branch,DERBY OFFICE MACHINES LTD,2000025536,12,Carriage,DE1 3QB,
Department for Transport,Department for Transport,16/03/2015,Subsidies Private Se,Local,Green Triangle Buses Ltd,2000025528,53438.81,GREEN TRIANGLE BUSES LTD,ST14 7JD,
Department for Transport,Department for Transport,16/03/2015,Subsidies Private Se,Maritime,SPORT NORTHERN IRELAND,2000025548,3234.76,Mountain Rescue Grants for UK Regions,BT9 5LA,
Department for Transport,Department for Transport,16/03/2015,Telephone Line Rent,"Motoring, Freight & London",BT Payment SVCS Ltd (T/phone Bills),2000025541,5641.11,BT - Trfc C'ting -arch 2015,DH98 1BT,
Department for Transport,Department for Transport,16/03/2015,Training,Group Human Resource,Capita Business Services Ltd,2000025529,2255.61,#,B1 3RB,
Department for Transport,Department for Transport,16/03/2015,Training,Group Human Resource,Capita Business Services Ltd,2000025529,1494,#,B1 3RB,
Department for Transport,Department for Transport,16/03/2015,Training,Group Human Resource,Capita Business Services Ltd,2000025529,752,#,B1 3RB,
Department for Transport,Department for Transport,16/03/2015,Training,Group Human Resource,Capita Business Services Ltd,2000025529,4939.02,#,B1 3RB,
Department for Transport,Department for Transport,16/03/2015,Training,Group Human Resource,Capita Business Services Ltd,2000025529,988,#,B1 3RB,
Department for Transport,Department for Transport,16/03/2015,Training,Group Human Resource,Capita Business Services Ltd,2000025529,1010,#,B1 3RB,
Department for Transport,Department for Transport,16/03/2015,Training,Group Human Resource,Capita Business Services Ltd,2000025529,4689,#,B1 3RB,
Department for Transport,Department for Transport,16/03/2015,Training,Group Human Resource,Capita Business Services Ltd,2000025529,1091.46,#,B1 3RB,
Department for Transport,Department for Transport,16/03/2015,Training,Group Human Resource,Capita Business Services Ltd,2000025529,1252,#,B1 3RB,
Department for Transport,Department for Transport,16/03/2015,Training,Group Human Resource,Capita Business Services Ltd,2000025529,708,#,B1 3RB,
Department for Transport,Department for Transport,16/03/2015,Training,Group Human Resource,Capita Business Services Ltd,2000025529,676.83,#,B1 3RB,
Department for Transport,Department for Transport,16/03/2015,Training,Group Human Resource,Capita Business Services Ltd,2000025529,550,#,B1 3RB,
Department for Transport,Department for Transport,16/03/2015,Training,Group Human Resource,Capita Business Services Ltd,2000025529,661,#,B1 3RB,
Department for Transport,Department for Transport,16/03/2015,Training,Group Human Resource,Capita Business Services Ltd,2000025529,757.32,#,B1 3RB,
Department for Transport,Department for Transport,16/03/2015,Transport  Consult,Local,ATKINS LTD (TRANSPORT PLANNING),2000025535,16246.06,#,WR5 1TX,
Department for Transport,Department for Transport,16/03/2015,Transport  Consult,Rail Strategy & Funding,MOTT MACDONALD,2000025539,7800,#,CR9 2UL,
Department for Transport,Department for Transport,16/03/2015,Transport  Consult,Rail Franchising,ERNST & YOUNG LLP,2000025538,14798.57,#,SE1 2AF,
Department for Transport,Department for Transport,17/03/2015,Agency Staff Costs,Group Finance,CAPITA BUSINESS SERVICES LTD,2000025608,2745.06,#,DL1 9HN,
Department for Transport,Department for Transport,17/03/2015,Agency Staff Costs,Rail Commercial & Programme Office,CAPITA BUSINESS SERVICES LTD,2000025608,3297.12,#,DL1 9HN,
Department for Transport,Department for Transport,17/03/2015,Agency Staff Costs,Rail Commercial & Programme Office,CAPITA BUSINESS SERVICES LTD,2000025608,4913.29,#,DL1 9HN,
Department for Transport,Department for Transport,17/03/2015,Agency Staff Costs,Rail Commercial & Programme Office,MORGAN HUNT UK LTD,2000025621,3919.44,#,EC4M 7EG,
Department for Transport,Department for Transport,17/03/2015,Agency Staff Costs,Motoring Services,CAPITA BUSINESS SERVICES LTD,2000025608,4436.02,#,DL1 9HN,
Department for Transport,Department for Transport,17/03/2015,Agency Staff Costs,Group Finance,CAPITA BUSINESS SERVICES LTD,2000025608,2679.3,#,DL1 9HN,
Department for Transport,Department for Transport,17/03/2015,Agency Staff Costs,Group Finance,CAPITA BUSINESS SERVICES LTD,2000025608,2412.13,#,DL1 9HN,
Department for Transport,Department for Transport,17/03/2015,Agency Staff Costs,Group Finance,CAPITA BUSINESS SERVICES LTD,2000025608,3329.64,#,DL1 9HN,
Department for Transport,Department for Transport,17/03/2015,Agency Staff Costs,Group Finance,CAPITA BUSINESS SERVICES LTD,2000025608,2650.14,#,DL1 9HN,
Department for Transport,Department for Transport,17/03/2015,Agency Staff Costs,Group Finance,CAPITA BUSINESS SERVICES LTD,2000025608,2063.1,#,DL1 9HN,
Department for Transport,Department for Transport,17/03/2015,Agency Staff Costs,Group Finance,CAPITA BUSINESS SERVICES LTD,2000025608,1815.54,#,DL1 9HN,
Department for Transport,Department for Transport,17/03/2015,Agency Staff Costs,Rail Commercial & Programme Office,CAPITA BUSINESS SERVICES LTD,2000025608,3654.36,#,DL1 9HN,
Department for Transport,Department for Transport,17/03/2015,Agency Staff Costs,Group Finance,CAPITA BUSINESS SERVICES LTD,2000025608,4378.8,#,DL1 9HN,
Department for Transport,Department for Transport,17/03/2015,Agency Staff Costs,Group Finance,CAPITA BUSINESS SERVICES LTD,2000025608,2187,#,DL1 9HN,
Department for Transport,Department for Transport,17/03/2015,Agency Staff Costs,Rail Strategy & Funding,CAPITA BUSINESS SERVICES LTD,2000025608,4833.9,#,DL1 9HN,
Department for Transport,Department for Transport,17/03/2015,Agency Staff Costs,Rail Strategy & Funding,CAPITA BUSINESS SERVICES LTD,2000025608,4874.64,#,DL1 9HN,
Department for Transport,Department for Transport,17/03/2015,Agency Staff Costs,Rail Strategy & Funding,CAPITA BUSINESS SERVICES LTD,2000025608,2160.54,#,DL1 9HN,
Department for Transport,Department for Transport,17/03/2015,Agency Staff Costs,Rail Commercial & Programme Office,CAPITA BUSINESS SERVICES LTD,2000025608,2890.14,#,DL1 9HN,
Department for Transport,Department for Transport,17/03/2015,Agency Staff Costs,Rail Franchising,CAPITA BUSINESS SERVICES LTD,2000025608,2777.52,#,DL1 9HN,
Department for Transport,Department for Transport,17/03/2015,Agency Staff Costs,Rail Strategy & Funding,CAPITA BUSINESS SERVICES LTD,2000025608,2680.14,#,DL1 9HN,
Department for Transport,Department for Transport,17/03/2015,Agency Staff Costs,Rail Strategy & Funding,CAPITA BUSINESS SERVICES LTD,2000025608,5286.42,#,DL1 9HN,
Department for Transport,Department for Transport,17/03/2015,Agency Staff Costs,Rail Strategy & Funding,CAPITA BUSINESS SERVICES LTD,2000025608,4510.62,#,DL1 9HN,
Department for Transport,Department for Transport,17/03/2015,Agency Staff Costs,Rail Franchising,Experis Ltd,2000025615,5526.72,#,EC2M 2RB,
Department for Transport,Department for Transport,17/03/2015,Agency Staff Costs,Rail Franchising,Experis Ltd,2000025615,5526.72,#,EC2M 2RB,
Department for Transport,Department for Transport,17/03/2015,Agency Staff Costs,Rail Franchising,Experis Ltd,2000025615,-5526.72,#,EC2M 2RB,
Department for Transport,Department for Transport,17/03/2015,Cap Grt Loc Auth,Maritime,MOUNTAIN RESCUE COMMITTEE,2000025638,41053.07,Mountain Rescue Committee of Scotland,PA24 8AH,
Department for Transport,Department for Transport,17/03/2015,Cap Grt NDPBs & CG,Strategic Roads & Smart Ticketing,SUSSEX POLICE AUTHORITY,2000025629,750000,Funding to purchase laser scanning technology,BN7 2DZ,
Department for Transport,Department for Transport,17/03/2015,Cap Grt Pri Sec-Cos.,"Energy, Technology and International",BMW UK Ltd,2000025644,1590000,"""PiCG BMW Feb 2015 #1,590,000k""",RG12 8TA,
Department for Transport,Department for Transport,17/03/2015,Cap Grt Pri Sec-Cos.,"Energy, Technology and International",MERCEDES BENZ UK LTD,2000025635,72815,"""PiCG Mercedes Feb 2015 #72,815""",MK15 8BA,
Department for Transport,Department for Transport,17/03/2015,Cap Grt Pri Sec-Cos.,"Energy, Technology and International",Porsche,2000025645,60000,"""PiCG Porsche Feb 2015 #60,000""",RG31 7SE,
Department for Transport,Department for Transport,17/03/2015,Cap Grt Pri Sec-Cos.,"Energy, Technology and International",RENAULT,2000025637,655574.53,"""PiCG Renault Feb 2015 #655,574.53""",WD3 9YS,
Department for Transport,Department for Transport,17/03/2015,Cap Grt Pri Sec-Cos.,"Energy, Technology and International",Tesla Motors Limited GBP,2000025647,600000,"""PiCG TESLA Feb 2015 #600,000""",UB7 8JD,
Department for Transport,Department for Transport,17/03/2015,Cap Grt Pri Sec-Cos.,"Energy, Technology and International",Volkswagen UK,2000025646,25000,"""PiCg VW Feb 2015 #25,000k""",MK14 5AN,
Department for Transport,Department for Transport,17/03/2015,Cap Grt Pri Sec-Cos.,"Energy, Technology and International",Volvo Car UK Limited,2000025641,65000,"""PiCG Volvo Feb 2015  #65,000k""",SL6 4FJ,
Department for Transport,Department for Transport,17/03/2015,CurrGrtOth to NDPBs,Strategic Roads & Smart Ticketing,SUSSEX POLICE AUTHORITY,2000025629,750000,Funding to purchase laser scanning technology,BN7 2DZ,
Department for Transport,Department for Transport,17/03/2015,Financial Consultanc,Rail Commercial & Programme Office,ERNST & YOUNG LLP,2000025616,43722.05,#,SE1 2AF,
Department for Transport,Department for Transport,17/03/2015,Financial Consultanc,Rail Franchising,GRANT THORNTON UK LLP,2000025631,32383.85,#,NN4 7YE,
Department for Transport,Department for Transport,17/03/2015,Financial Consultanc,Rail Franchising,GRANT THORNTON UK LLP,2000025631,17947.9,#,NN4 7YE,
Department for Transport,Department for Transport,17/03/2015,Grt Aid to NDPBs,Rail NDPB's,RAIL PASSENGER COUNCIL,2000025606,627000,PC March 15 Claim,M1 1LQ,
Department for Transport,Department for Transport,17/03/2015,Investigation Servic,Analysis & Strategy,ATKINS LTD (TRANSPORT PLANNING),2000025610,7452,#,WR5 1TX,
Department for Transport,Department for Transport,17/03/2015,Investigation Servic,Motoring Services,Procordia Ltd,2000025643,510.89,#,TN39 4SR,
Department for Transport,Department for Transport,17/03/2015,IT Equip Cap Cost,Motoring Services,Probrand Ltd,2000025609,5345.86,#,B1 3BP,
Department for Transport,Department for Transport,17/03/2015,IT Ser Running Costs,Group Communication,RACKSPACE LTD,2000025624,1137.08,#,UB3 4AZ,
Department for Transport,Department for Transport,17/03/2015,Legal Consultancy,Rail Franchising,DLA PIPER UK LLP,2000025614,48152.28,#,M2 3DL,
Department for Transport,Department for Transport,17/03/2015,Legal Consultancy,Rail Franchising,Eversheds LLP,2000025634,7494.24,#,EC2V 7WS,
Department for Transport,Department for Transport,17/03/2015,Legal Consultancy,Rail Franchising,Eversheds LLP,2000025634,116388,#,EC2V 7WS,
Department for Transport,Department for Transport,17/03/2015,Maintenance Other,"Motoring, Freight & London",TDC SYSTEMS LIMITED,2000025626,16250,#,BS24 9BP,
Department for Transport,Department for Transport,17/03/2015,Maintenance Other,"Motoring, Freight & London",TDC SYSTEMS LIMITED,2000025626,720,#,BS24 9BP,
Department for Transport,Department for Transport,17/03/2015,OffEquip (Non-Cap),Group Communication,CREATIVE VIDEO PRODUCTIONS LIMITED,2000025628,859.87,#,TW8 9EX,
Department for Transport,Department for Transport,17/03/2015,Property Maintenance,"Policy, Legislation and Funding",High Speed Two (HS2) Ltd,2000025639,20900.95,#,E14 5AB,
Department for Transport,Department for Transport,17/03/2015,Publications for Res,Maritime,CREATIVE CHOICE CIC,2000025636,753,#,SW1H 0DJ,
Department for Transport,Department for Transport,17/03/2015,Publications for Res,Aviation,CREATIVE CHOICE CIC,2000025636,1025,#,SW1H 0DJ,
Department for Transport,Department for Transport,17/03/2015,Publications for Res,Rail Franchising,Domarn Limited,2000025625,3915,#,EC1A 4EN,
Department for Transport,Department for Transport,17/03/2015,Research,Rail Strategy & Funding,BRITISH TRANSPORT POLICE FEDERATION,100032385,-59966.4,#,NW1 9LN,
Department for Transport,Department for Transport,17/03/2015,Research,Rail Strategy & Funding,BRITISH TRANSPORT POLICE FEDERATION,100032385,59966.4,#,NW1 9LN,
Department for Transport,Department for Transport,17/03/2015,Small Software,Aviation,CONNECT INTERNET SOLUTIONS LTD,2000025612,900,#,L2 6SG,
Department for Transport,Department for Transport,17/03/2015,Storage & Distributi,General Counsel's Office,IRON MOUNTAIN,2000025617,2159.52,#,EH54 7DF,
Department for Transport,Department for Transport,17/03/2015,Support Services,Aviation,Civil Aviation Authority,2000025611,48000,#,RH6 0YR,
Department for Transport,Department for Transport,17/03/2015,Support Services,Group Finance,DD ACCRAILWAY PENS TRUSTEE,2000025630,1237.37,#,DL3 6XR,
Department for Transport,Department for Transport,17/03/2015,Support Services,Strategy and Engagement,DFT ONE TIME VENDOR,2000025648,52000,#,SW1P 4DR,
Department for Transport,Department for Transport,17/03/2015,Support Services,"Policy, Legislation and Funding",High Speed Two (HS2) Ltd,2000025639,101785.42,#,E14 5AB,
Department for Transport,Department for Transport,17/03/2015,Support Services,"Policy, Legislation and Funding",TREASURY SOLICITOR,2000025604,150,#,WC2B 4TS,
Department for Transport,Department for Transport,17/03/2015,Telephone charges,Motoring Services,VERIZON BUSINESS,2000025627,13748.09,Verizon - internet charges - 04.03.2015,RG2 6DA,
Department for Transport,Department for Transport,17/03/2015,Telephone charges,Motoring Services,VERIZON BUSINESS,2000025627,26430.67,Verizon - internet charges - 02.03.2015,RG2 6DA,
Department for Transport,Department for Transport,17/03/2015,Training,Marine Accident Investigation Branch,Fire Service College Ltd,2000025633,2300,#,GL56 0RH,
Department for Transport,Department for Transport,17/03/2015,Training,Group Human Resource,Capita Business Services Ltd,2000025607,796,#,B1 3RB,
Department for Transport,Department for Transport,17/03/2015,Training,Group Human Resource,Capita Business Services Ltd,2000025607,3102,#,B1 3RB,
Department for Transport,Department for Transport,17/03/2015,Transport  Consult,Commercial & Technical,LOCAL PARTNERSHIPS LLP,2000025623,11916,#,EC1M 5LG,
Department for Transport,Department for Transport,17/03/2015,Transport  Consult,Aviation,JACOBS UK LTD,2000025618,115746.85,#,G2 7HX,
Department for Transport,Department for Transport,17/03/2015,Transport  Consult,Strategy and Engagement,KPMG,2000025619,303853.2,#,WD17 1DE,
Department for Transport,Department for Transport,17/03/2015,Transport  Consult,Rail Franchising,PARSONS BRINCKERHOFF LTD,2000025622,269179.9,#,NE4 7YQ,
Department for Transport,Department for Transport,17/03/2015,Transport  Consult,Major Projects & Growth,United Kingdom Accreditation,2000025632,41472,#,TW13 4UN,
Department for Transport,Department for Transport,17/03/2015,Treasury Solicitors,General Counsel's Office,TREASURY SOLICITOR,2000025604,13643.15,#,WC2B 4TS,
Department for Transport,Department for Transport,17/03/2015,Treasury Solicitors,General Counsel's Office,TREASURY SOLICITOR,2000025604,4173.12,#,WC2B 4TS,
Department for Transport,Department for Transport,17/03/2015,Treasury Solicitors,"Policy, Legislation and Funding",TREASURY SOLICITOR,2000025604,11933.37,#,WC2B 4TS,
Department for Transport,Department for Transport,18/03/2015,Agency Staff Costs,Local,BROOK STREET (UK) LIMITED,2000025704,905.52,#,AL1 4JB,
Department for Transport,Department for Transport,18/03/2015,Agency Staff Costs,Group Finance,Allen Lane,2000025689,4036.38,#,SW1Y 6RJ,
Department for Transport,Department for Transport,18/03/2015,Agency Staff Costs,Group Finance,NETWORKERS INTERNATIONAL (UK) PLC,2000025707,3391.26,#,BR1 1HP,
Department for Transport,Department for Transport,18/03/2015,Agency Staff Costs,Group Human Resource,NETWORKERS INTERNATIONAL (UK) PLC,2000025707,1013.52,#,BR1 1HP,
Department for Transport,Department for Transport,18/03/2015,Agency Staff Costs,Environment & International Transport Analysis,CAPITA BUSINESS SERVICES LTD,2000025686,3573.24,#,DL1 9HN,
Department for Transport,Department for Transport,18/03/2015,Agency Staff Costs,Major Projects & Growth,BROOK STREET (UK) LIMITED,2000025704,923.16,#,AL1 4JB,
Department for Transport,Department for Transport,18/03/2015,Agency Staff Costs,Major Projects & Growth,CAPITA BUSINESS SERVICES LTD,2000025686,3961.14,#,DL1 9HN,
Department for Transport,Department for Transport,18/03/2015,Agency Staff Costs,Group Finance,Allen Lane,2000025689,1478.3,#,SW1Y 6RJ,
Department for Transport,Department for Transport,18/03/2015,Agency Staff Costs,Group Finance,NETWORKERS INTERNATIONAL (UK) PLC,2000025707,688.8,#,BR1 1HP,
Department for Transport,Department for Transport,18/03/2015,Agency Staff Costs,Group Finance,NETWORKERS INTERNATIONAL (UK) PLC,2000025707,1540.56,#,BR1 1HP,
Department for Transport,Department for Transport,18/03/2015,Agency Staff Costs,Rail Franchising,Experis Ltd,2000025695,5526.72,#,EC2M 2RB,
Department for Transport,Department for Transport,18/03/2015,Agency Staff Costs,Strategic Roads & Smart Ticketing,Experis Ltd,2000025695,14165.26,#,EC2M 2RB,
Department for Transport,Department for Transport,18/03/2015,Agency Staff Costs,Rail Strategy & Funding,NETWORKERS INTERNATIONAL (UK) PLC,2000025707,959.46,#,BR1 1HP,
Department for Transport,Department for Transport,18/03/2015,Cap Grt Loc Auth,Strategic Roads & Smart Ticketing,NORFOLK COUNTY COUNCIL,2000025734,45000,Norfolk Smart Enablement & Smart Ticketing Pilot,NR1 2UG,
Department for Transport,Department for Transport,18/03/2015,Cap Grt Pri Sec-Cos.,"Policy, Legislation and Funding",Eversheds LLP,2000025725,475000,#,CF10 5BT,
Department for Transport,Department for Transport,18/03/2015,Cap Grt Pri Sec-Cos.,"Energy, Technology and International",Audi UK,2000025728,195000,"""PiCG Audi Feb 2015 #195,000k""",MK14 5AN,
Department for Transport,Department for Transport,18/03/2015,Cap Grt Pri Sec-Cos.,"Energy, Technology and International",Castle Building Services,2000025726,2000,"""#2,000 Castle B Srvs (now withholding #14k)""",NE31 2EX,
Department for Transport,Department for Transport,18/03/2015,Cap Grt Pri Sec-Cos.,"Policy, Legislation and Funding",Eversheds LLP,2000025725,1899420,#,CF10 5BT,
Department for Transport,Department for Transport,18/03/2015,Cap Grt Pri Sec-Cos.,"Policy, Legislation and Funding",Eversheds LLP,2000025725,438455.89,#,CF10 5BT,
Department for Transport,Department for Transport,18/03/2015,Cap Grt Pri Sec-Cos.,"Policy, Legislation and Funding",Eversheds LLP,2000025733,757933.05,HS2 Property purchase,CF10 5BT,
Department for Transport,Department for Transport,18/03/2015,Cap Grt Pri Sec-Cos.,"Energy, Technology and International",NISSAN MOTOR GB LTD,2000025711,2415552.61,"""PiCG Nissan Feb 2015 #2,415,552.61""",WD3 9YS,
Department for Transport,Department for Transport,18/03/2015,Cap Grt Pri Sec-Cos.,"Energy, Technology and International",PEUGEOT MOTOR COMPANY,2000025714,19535,"""PiCG Peugeot Feb 2015 #19,535""",CV3 1ND,
Department for Transport,Department for Transport,18/03/2015,Cap Grt Pri Sec-Cos.,"Energy, Technology and International",THE COLT CAR COMPANY LTD,2000025710,4576990,"""PiCG Mitsubishi FEB2015 #4,576,990""",GL7 1LF,
Department for Transport,Department for Transport,18/03/2015,Cap Grt Pri Sec-Cos.,"Energy, Technology and International",TOYOTA (GB) PLC,2000025717,40000,"""PiCG Toyota Feb 2015 #40,000k""",KT18 5XS,
Department for Transport,Department for Transport,18/03/2015,Cap Grt Pri Sec-Cos.,"Energy, Technology and International",VAUXHALL MOTORS,2000025716,80000,"""PiCG Vauxhall FEB2015 #80,000""",LU1 3YT,
Department for Transport,Department for Transport,18/03/2015,Cars Maintenance,Motoring Services,Goodyear Dunlop Tyres UK Ltd,2000025721,3945.58,#,B24 9HY,
Department for Transport,Department for Transport,18/03/2015,Computer equipment,Air Accident Investigation Branch,Videocall Limited,2000025729,11873.64,#,GU15 3NY,
Department for Transport,Department for Transport,18/03/2015,CurrGrt Las in AEF/A,Strategic Roads & Smart Ticketing,NORFOLK COUNTY COUNCIL,2000025734,51434,Norfolk Smart Enablement & Smart Ticketing Pilot,NR1 2UG,
Department for Transport,Department for Transport,18/03/2015,CurrGrtPriSec-P&NPIS,Rail Strategy & Funding,ASSOCIATION OF COMMUNITY,2000025706,55000,final Instalment of annual DCRDF grant 2014/15,HD1 1JF,
Department for Transport,Department for Transport,18/03/2015,CurrGrtPriSec-P&NPIS,"Energy, Technology and International",ENERGY SAVING TRUST,2000025705,48400,PIFI JJan 2015 #48400,SW1H 9BP,
Department for Transport,Department for Transport,18/03/2015,Data Supply - TD,Marine Accident Investigation Branch,MET OFFICE,2000025697,630,Marine Weather Data,EX1 3PB,
Department for Transport,Department for Transport,18/03/2015,Gas,Rail Accident Investigation Branch,CORONA ENERGY RETAIL 4 LTD,2000025693,784.12,#,WD17 1JW,
Department for Transport,Department for Transport,18/03/2015,IT Ser Running Costs,Group Communication,Kainos Software Ltd,2000025696,1134,#,BT7 1NT,
Department for Transport,Department for Transport,18/03/2015,Legal Consultancy,Rail Franchising,Eversheds LLP,2000025709,37610.4,#,EC2V 7WS,
Department for Transport,Department for Transport,18/03/2015,Maintenance Other,"Motoring, Freight & London",TDC SYSTEMS LIMITED,2000025700,720,#,BS24 9BP,
Department for Transport,Department for Transport,18/03/2015,Management Consultan,General Counsel's Office,Crawford & Co Adjusters (UK) Ltd,2000025724,17401.2,#,B2 2PF,
Department for Transport,Department for Transport,18/03/2015,Media & Press,Group Communication,"GORKANA GROUP LTD (""GCL"")",2000025713,3588.57,#,EC1Y 8QE,
Department for Transport,Department for Transport,18/03/2015,Printing,Air Accident Investigation Branch,WILLIAMS LEA LIMITED,2000025715,2822.04,#,NR3 1PD,
Department for Transport,Department for Transport,18/03/2015,Printing,Air Accident Investigation Branch,WILLIAMS LEA LIMITED,2000025715,1142.16,#,NR3 1PD,
Department for Transport,Department for Transport,18/03/2015,Printing,Group Communication,WILLIAMS LEA LIMITED,2000025715,828.36,#,NR3 1PD,
Department for Transport,Department for Transport,18/03/2015,Printing,Group Communication,WILLIAMS LEA LIMITED,2000025715,828.36,#,NR3 1PD,
Department for Transport,Department for Transport,18/03/2015,Printing,"Energy, Technology and International",WILLIAMS LEA LIMITED,2000025715,1143.32,#,NR3 1PD,
Department for Transport,Department for Transport,18/03/2015,Property Maintenance,"Policy, Legislation and Funding",High Speed Two (HS2) Ltd,2000025718,26043.27,#,E14 5AB,
Department for Transport,Department for Transport,18/03/2015,Property Maintenance,"Policy, Legislation and Funding",High Speed Two (HS2) Ltd,2000025718,38822.47,#,E14 5AB,
Department for Transport,Department for Transport,18/03/2015,Publicity,Group Communication,ABBOTT MEAD VICKERS BBDO LTD,2000025688,9590,#,NW1 5QE,
Department for Transport,Department for Transport,18/03/2015,Publicity,Group Communication,ABBOTT MEAD VICKERS BBDO LTD,2000025688,9560,#,NW1 5QE,
Department for Transport,Department for Transport,18/03/2015,Publicity,Group Communication,ABBOTT MEAD VICKERS BBDO LTD,2000025688,43225,#,NW1 5QE,
Department for Transport,Department for Transport,18/03/2015,Publicity,Group Communication,ABBOTT MEAD VICKERS BBDO LTD,2000025688,1891.27,#,NW1 5QE,
Department for Transport,Department for Transport,18/03/2015,Publicity,Group Communication,ABBOTT MEAD VICKERS BBDO LTD,2000025688,3200,#,NW1 5QE,
Department for Transport,Department for Transport,18/03/2015,Recruitment,Analysis & Strategy,H M TREASURY,2000025732,4248,#,SW1A 2HQ,
Department for Transport,Department for Transport,18/03/2015,Research,Transport Security Strategy,DEFENCE SCIENCE & TECHNOLOGY,2000025694,5520,#,PO14 9HL,
Department for Transport,Department for Transport,18/03/2015,Research,Transport Security Strategy,DEFENCE SCIENCE & TECHNOLOGY,2000025694,19200,#,PO14 9HL,
Department for Transport,Department for Transport,18/03/2015,Research,Transport Security Strategy,DEFENCE SCIENCE & TECHNOLOGY,2000025694,6000,#,PO14 9HL,
Department for Transport,Department for Transport,18/03/2015,Research,Transport Security Strategy,DEFENCE SCIENCE & TECHNOLOGY,2000025694,5520,#,PO14 9HL,
Department for Transport,Department for Transport,18/03/2015,Research,Rail Strategy & Funding,BRITISH TRANSPORT POLICE FEDERATION,2000025691,49972,#,NW1 9LN,
Department for Transport,Department for Transport,18/03/2015,Research,Analysis & Strategy,ATKINS LTD (TRANSPORT PLANNING),2000025690,11935.78,#,WR5 1TX,
Department for Transport,Department for Transport,18/03/2015,Stationery (Non-stk),General Counsel's Office,Banner Business Services Ltd,2000025719,48.96,0080429 Post It Index Flag Dispenser Pur,NR3 1QU,
Department for Transport,Department for Transport,18/03/2015,Stationery (Non-stk),General Counsel's Office,Banner Business Services Ltd,2000025719,456.58,#,NR3 1QU,
Department for Transport,Department for Transport,18/03/2015,Support Services,"Policy, Legislation and Funding",High Speed Two (HS2) Ltd,2000025718,192833.4,#,E14 5AB,
Department for Transport,Department for Transport,18/03/2015,Support Services,"Policy, Legislation and Funding",High Speed Two (HS2) Ltd,2000025718,180957.58,#,E14 5AB,
Department for Transport,Department for Transport,18/03/2015,Support Services,"Policy, Legislation and Funding",High Speed Two (HS2) Ltd,2000025718,4201.66,#,E14 5AB,
Department for Transport,Department for Transport,19/03/2015,Agency Staff Costs,Group Internal Audit,CAPITA BUSINESS SERVICES LTD,2000025782,2615.51,#,DL1 9HN,
Department for Transport,Department for Transport,19/03/2015,Agency Staff Costs,Group Finance,MICHAEL PAGE INTERNATIONAL,2000025801,3240,#,SL1 3SA,
Department for Transport,Department for Transport,19/03/2015,Agency Staff Costs,Group Finance,MICHAEL PAGE INTERNATIONAL,2000025801,3420,#,SL1 3SA,
Department for Transport,Department for Transport,19/03/2015,Agency Staff Costs,Programme Office,High Speed Two (HS2) Ltd,2000025809,27021,#,E14 5AB,
Department for Transport,Department for Transport,19/03/2015,Agency Staff Costs,Programme Office,High Speed Two (HS2) Ltd,2000025809,6900,#,E14 5AB,
Department for Transport,Department for Transport,19/03/2015,Agency Staff Costs,Programme Office,High Speed Two (HS2) Ltd,2000025809,29490,#,E14 5AB,
Department for Transport,Department for Transport,19/03/2015,Agency Staff Costs,Programme Office,High Speed Two (HS2) Ltd,2000025809,23898,#,E14 5AB,
Department for Transport,Department for Transport,19/03/2015,Agency Staff Costs,Motoring Services,BROOK STREET (UK) LIMITED,2000025797,895.55,#,AL1 4JB,
Department for Transport,Department for Transport,19/03/2015,Agency Staff Costs,Group Finance,Allen Lane,2000025786,2463.84,#,SW1Y 6RJ,
Department for Transport,Department for Transport,19/03/2015,Agency Staff Costs,Rail Franchising,BROOK STREET (UK) LIMITED,2000025797,823.2,#,AL1 4JB,
Department for Transport,Department for Transport,19/03/2015,Agency Staff Costs,Rail Strategy & Funding,CAPITA BUSINESS SERVICES LTD,2000025782,4874.64,#,DL1 9HN,
Department for Transport,Department for Transport,19/03/2015,Agency Staff Costs,Rail Franchising,CAPITA BUSINESS SERVICES LTD,2000025782,4061.28,#,DL1 9HN,
Department for Transport,Department for Transport,19/03/2015,Agency Staff Costs,Rail Franchising,CAPITA BUSINESS SERVICES LTD,2000025782,4187.4,#,DL1 9HN,
Department for Transport,Department for Transport,19/03/2015,Agency Staff Costs,Rail Franchising,CAPITA BUSINESS SERVICES LTD,2000025782,7652.28,#,DL1 9HN,
Department for Transport,Department for Transport,19/03/2015,Agency Staff Costs,Rail Commercial & Programme Office,CAPITA BUSINESS SERVICES LTD,2000025782,2310.34,#,DL1 9HN,
Department for Transport,Department for Transport,19/03/2015,Agency Staff Costs,Network Rail Sponsorship,CAPITA BUSINESS SERVICES LTD,2000025782,554.66,#,DL1 9HN,
Department for Transport,Department for Transport,19/03/2015,Agency Staff Costs,Highspeed 2,SPRING TECHNOLOGY LTD  ALSO T/A,2000025802,4200,#,B37 7YE,
Department for Transport,Department for Transport,19/03/2015,Agency Staff Costs,Highspeed 2,SPRING TECHNOLOGY LTD  ALSO T/A,2000025802,4650,#,B37 7YE,
Department for Transport,Department for Transport,19/03/2015,Cap Grt Loc Auth,Local,Brighton & Hove City Council,2000025773,882500,2014-15 Payments to National Parks Q3,BN3 2SR,
Department for Transport,Department for Transport,19/03/2015,Cap Grt Loc Auth,Local,DERBYSHIRE COUNTY COUNCIL,2000025774,242478.85,2014-15 Payments to National Parks Q3,DE4 3AH,
Department for Transport,Department for Transport,19/03/2015,Cap Grt Loc Auth,Local,DEVON COUNTY COUNCIL,2000025775,904200,2014-15 Payments to National Parks Q3,EX2 4QJ,
Department for Transport,Department for Transport,19/03/2015,Cap Grt Loc Auth,Local,HAMPSHIRE COUNTY COUNCIL,2000025776,55286.38,2014-15 Payments to National Parks Q3,SO23 8UB,
Department for Transport,Department for Transport,19/03/2015,Cap Grt Pri Sec-Cos.,Rail Strategy & Funding,NETWORK RAIL INFRASTRUCTURE LTD,2000025804,4231385.39,Gospel Oak to Barking Electrification,M60 7WY,
Department for Transport,Department for Transport,19/03/2015,Cap Grt Pri Sec-Cos.,Network Rail Sponsorship,Network Rail Infstrcture (Treasury),2000025779,180000000,Network Rail Loan Payment,NW1 2DN,
Department for Transport,Department for Transport,19/03/2015,Computer equipment,Marine Accident Investigation Branch,Computer Network Solutions Ltd,2000025818,642.48,UPS 192V for New Office,PO16 9QD,
Department for Transport,Department for Transport,19/03/2015,Computer equipment,Marine Accident Investigation Branch,Computer Network Solutions Ltd,2000025818,2181.13,#,PO16 9QD,
Department for Transport,Department for Transport,19/03/2015,Electricity,Air Accident Investigation Branch,Watson Petroleum T/A Hall Fuels,2000025813,3940.44,#,TW19 7LN,
Department for Transport,Department for Transport,19/03/2015,Financial Consultanc,Rail Franchising,Pricewaterhouse Coopers LLP,2000025794,62098.8,#,SE1 2RD,
Department for Transport,Department for Transport,19/03/2015,Furniture & Fittings,Air Accident Investigation Branch,SENATOR INTERNATIONAL LTD,2000025795,1200.96,#,BB5 5YE,
Department for Transport,Department for Transport,19/03/2015,IT Equip Cap Cost,Motoring Services,Probrand Ltd,2000025784,1683.6,#,B1 3BP,
Department for Transport,Department for Transport,19/03/2015,Legal Consultancy,Rail Franchising,ADDLESHAW GODDARD LIMITED,2000025805,6587.4,#,M2 3AB,
Department for Transport,Department for Transport,19/03/2015,Legal Consultancy,Rail Franchising,DLA PIPER UK LLP,2000025791,12804,#,M2 3DL,
Department for Transport,Department for Transport,19/03/2015,Legal Consultancy,"Policy, Legislation and Funding",xxxxxx,2000025810,10200,#,xxxxx,
Department for Transport,Department for Transport,19/03/2015,Occup Health Scheme,Group Human Resource,Incorpore Limited,2000025817,1215.08,#,RH16 4ND,
Department for Transport,Department for Transport,19/03/2015,Printing,Group Communication,WILLIAMS LEA LIMITED,2000025808,1059.48,#,NR3 1PD,
Department for Transport,Department for Transport,19/03/2015,Printing,Group Communication,WILLIAMS LEA LIMITED,2000025808,2511,#,NR3 1PD,
Department for Transport,Department for Transport,19/03/2015,Printing,Group Communication,WILLIAMS LEA LIMITED,2000025808,659.88,#,NR3 1PD,
Department for Transport,Department for Transport,19/03/2015,Printing,Strategy and Engagement,WILLIAMS LEA LIMITED,2000025808,977.24,#,NR3 1PD,
Department for Transport,Department for Transport,19/03/2015,Property Maintenance,"Policy, Legislation and Funding",High Speed Two (HS2) Ltd,2000025809,24586.17,#,E14 5AB,
Department for Transport,Department for Transport,19/03/2015,Property Maintenance,"Policy, Legislation and Funding",High Speed Two (HS2) Ltd,2000025809,21259.2,#,E14 5AB,
Department for Transport,Department for Transport,19/03/2015,Property Maintenance,"Policy, Legislation and Funding",High Speed Two (HS2) Ltd,2000025809,21559.56,#,E14 5AB,
Department for Transport,Department for Transport,19/03/2015,Publicity,Group Communication,ABBOTT MEAD VICKERS BBDO LTD,2000025785,3433,#,NW1 5QE,
Department for Transport,Department for Transport,19/03/2015,Publicity,Group Communication,TNS UK LTD,2000025796,49140,#,W5 1UA,
Department for Transport,Department for Transport,19/03/2015,Rates,Air Accident Investigation Branch,RUSHMOOR BOROUGH COUNCIL,2000025800,110432,#,GU14 7JU,
Department for Transport,Department for Transport,19/03/2015,Research,"Motoring, Freight & London",HEALTH & SAFETY LABORATORIES,2000025792,293328,#,SK17 9JN,
Department for Transport,Department for Transport,19/03/2015,Research,"Motoring, Freight & London",OVE ARUP & PARTNERS,2000025793,36814.29,#,NE1 3PL,
Department for Transport,Department for Transport,19/03/2015,Research,Anallysis & Strategy,Brook Lyndhurst Ltd,2000025815,12000,#,W6 0LE,
Department for Transport,Department for Transport,19/03/2015,Small Software,General Counsel's Office,Workshare Limited,2000025814,2205,#,E1 6PX,
Department for Transport,Department for Transport,19/03/2015,Support Services,Local,PLANNING INSPECTORATE,2000025778,4032.48,#,BS1 6PN,
Department for Transport,Department for Transport,19/03/2015,Support Services,Local,PLANNING INSPECTORATE,2000025778,3985.73,#,BS1 6PN,
Department for Transport,Department for Transport,19/03/2015,Support Services,Local,PLANNING INSPECTORATE,2000025778,4245.28,#,BS1 6PN,
Department for Transport,Department for Transport,19/03/2015,Support Services,Local,PLANNING INSPECTORATE,2000025778,4589.51,#,BS1 6PN,
Department for Transport,Department for Transport,19/03/2015,Support Services,Local,PLANNING INSPECTORATE,2000025778,3758.06,#,BS1 6PN,
Department for Transport,Department for Transport,19/03/2015,Support Services,Aviation,CAA INTERNATIONAL LTD,2000025788,172032,#,RH6 0YR,
Department for Transport,Department for Transport,19/03/2015,Support Services,General Counsel's Office,Archers Law LLP,2000025819,108699.2,INDUSTRIAL INJURY CLAIM,TS18 3NB,
Department for Transport,Department for Transport,19/03/2015,Support Services,General Counsel's Office,Charles Lucas & Marshall,2000025812,69884,#,RG14 5EU,
Department for Transport,Department for Transport,19/03/2015,Support Services,"Policy, Legislation and Funding",High Speed Two (HS2) Ltd,2000025809,186887.8,#,E14 5AB,
Department for Transport,Department for Transport,19/03/2015,Support Services,"Policy, Legislation and Funding",High Speed Two (HS2) Ltd,2000025809,119545.37,#,E14 5AB,
Department for Transport,Department for Transport,19/03/2015,Support Services,"Policy, Legislation and Funding",High Speed Two (HS2) Ltd,2000025809,96420.79,#,E14 5AB,
Department for Transport,Department for Transport,19/03/2015,Support Services,"Policy, Legislation and Funding",High Speed Two (HS2) Ltd,2000025809,101115.1,#,E14 5AB,
Department for Transport,Department for Transport,19/03/2015,Training,Aviation,xxxxxx,2000025807,750,#,xxxxx,
Department for Transport,Department for Transport,19/03/2015,Training,Group Human Resource,Capita Business Services Ltd,2000025780,1621.95,#,B1 3RB,
Department for Transport,Department for Transport,19/03/2015,Training,Group Human Resource,Capita Business Services Ltd,2000025780,780.49,#,B1 3RB,
Department for Transport,Department for Transport,19/03/2015,Training,Group Human Resource,Capita Business Services Ltd,2000025780,1567.06,#,B1 3RB,
Department for Transport,Department for Transport,19/03/2015,Training,Group Human Resource,Capita Business Services Ltd,2000025780,4216,#,B1 3RB,
Department for Transport,Department for Transport,19/03/2015,Training,Group Human Resource,Capita Business Services Ltd,2000025780,1390.24,#,B1 3RB,
Department for Transport,Department for Transport,19/03/2015,Training,Rail Accident Investigation Branch,Characters Drama Based Learning Ltd,2000025789,992,#,SE18 4LE,
Department for Transport,Department for Transport,19/03/2015,Transport  Consult,Rail Strategy & Funding,OVE ARUP & PARTNERS,2000025793,8238.4,#,NE1 3PL,
Department for Transport,Department for Transport,19/03/2015,Transport  Consult,Rail Franchising,ATKINS LTD (TRANSPORT PLANNING),2000025787,86014.15,#,WR5 1TX,
Department for Transport,Department for Transport,19/03/2015,Transport  Consult,Rail Franchising,The Nichols Group,100032482,27825,See credit 5106013589,W1C 1AY,
Department for Transport,Department for Transport,19/03/2015,Transport  Consult,Rail Franchising,The Nichols Group,100032482,11550,See credit 5106013586,W1C 1AY,
Department for Transport,Department for Transport,19/03/2015,Transport  Consult,Rail Franchising,The Nichols Group,100032482,34125,See credit 5106013588,W1C 1AY,
Department for Transport,Department for Transport,19/03/2015,Transport  Consult,Rail Franchising,The Nichols Group,100032482,10500,See credit 5106013587,W1C 1AY,
Department for Transport,Department for Transport,19/03/2015,Transport  Consult,Rail Franchising,The Nichols Group,100032482,-11550,5106006142,W1C 1AY,
Department for Transport,Department for Transport,19/03/2015,Transport  Consult,Rail Franchising,The Nichols Group,100032482,-10500,Credit re 5106006144,W1C 1AY,
Department for Transport,Department for Transport,19/03/2015,Transport  Consult,Rail Franchising,The Nichols Group,100032482,-34125,Credit re 5106006143,W1C 1AY,
Department for Transport,Department for Transport,19/03/2015,Transport  Consult,Rail Franchising,The Nichols Group,100032482,-27825,Credit re 5106006141,W1C 1AY,
Department for Transport,Department for Transport,20/03/2015,Agency Staff Costs,Group Finance,MICHAEL PAGE INTERNATIONAL,2000025895,3594,#,SL1 3SA,
Department for Transport,Department for Transport,20/03/2015,Agency Staff Costs,Group Finance,MICHAEL PAGE INTERNATIONAL,2000025895,4312.8,#,SL1 3SA,
Department for Transport,Department for Transport,20/03/2015,Agency Staff Costs,Local,BROOK STREET (UK) LIMITED,2000025889,644.84,#,AL1 4JB,
Department for Transport,Department for Transport,20/03/2015,Agency Staff Costs,Major Projects & Growth,NETWORKERS INTERNATIONAL (UK) PLC,2000025901,4266.24,#,BR1 1HP,
Department for Transport,Department for Transport,20/03/2015,Agency Staff Costs,Rail Strategy & Funding,CAPITA BUSINESS SERVICES LTD,2000025868,7800,#,DL1 9HN,
Department for Transport,Department for Transport,20/03/2015,Cars Maintenance,Motoring Services,Bodyshop Repair Network Ltd,2000025911,575,#,TN16 3BW,
Department for Transport,Department for Transport,20/03/2015,Childcare Voucher Co,Group Human Resource,COMPUTERSHARE VOUCHER SERVICES,2000025867,30564,#,WS13 8SX,
Department for Transport,Department for Transport,20/03/2015,Computer equipment,Motoring Services,TORPEDO FACTORY LIMITED,2000025915,7355.47,#,NW10 6ST,
Department for Transport,Department for Transport,20/03/2015,Computer equipment,Motoring Services,SOFTWARE BOX LTD,2000025885,50293.38,#,YO61 1ET,
Department for Transport,Department for Transport,20/03/2015,CurrGrtOth to NDPBs,Strategic Roads & Smart Ticketing,GREATER LONDON AUTHORITY,2000025893,2884134.02,ITSO on Prestige operating costs 2014/15,SE10 1AP,
Department for Transport,Department for Transport,20/03/2015,CurrGrtPriSec-P&NPIS,"Motoring, Freight & London",LGC Limited,2000025914,117933,FSP: LGC 2nd Payment,TW11 0LY,
Department for Transport,Department for Transport,20/03/2015,CurrGrtPriSec-P&NPIS,"Motoring, Freight & London",Police & Crime Commisssioner for,2000025892,12082.36,PLO -Glyn Jones: January to March 2015,GL2 2AN,
Department for Transport,Department for Transport,20/03/2015,Data Supply - TD,Group Human Resource,ECA International Ltd,2000025878,13267.2,#,WC2B 5DG,
Department for Transport,Department for Transport,20/03/2015,Financial Consultanc,Major Projects & Growth,Pricewaterhouse Coopers LLP,2000025884,78147.6,#,SE1 2RD,
Department for Transport,Department for Transport,20/03/2015,Grant Payments,Rail Commercial & Programme Office,Transport for Greater Manchester,2000025899,3937570.07,1513 Wk3 Northern IFA - Franchise Payment Incl Ind,M1 3BG,
Department for Transport,Department for Transport,20/03/2015,Grant Payments,Rail Commercial & Programme Office,MERSEYTRAVEL,2000025896,780643.39,1513 Wk3 Northern IFA - Franchise Payment 14-15 -,L3 2AN,
Department for Transport,Department for Transport,20/03/2015,Grant Payments,Rail Commercial & Programme Office,NEXUS (TYNE & WEAR),2000025897,232762.76,1513 Wk3 Northern IFA - Franchise Payments 14-15 -,NE1 4AX,
Department for Transport,Department for Transport,20/03/2015,Grant Payments,Rail Commercial & Programme Office,SOUTH YORKSHIRE PTE,2000025898,1493561.06,1513 Wk3 Northern IFA - Franchise Payment Incl Ind,S2 5YT,
Department for Transport,Department for Transport,20/03/2015,Grant Payments,Rail Commercial & Programme Office,WEST YORKSHIRE PTA,2000025900,3588425.93,1513 Wk3 Northern IFA - Franchise Payment Incl Ind,LS1 2DE,
Department for Transport,Department for Transport,20/03/2015,Grt Aid to NDPBs,"Policy, Legislation and Funding",High Speed Two (HS2) Ltd,2000025859,8000000,HS2 March 15 - 2nd Tranche,E14 5AB,
Department for Transport,Department for Transport,20/03/2015,Investigation Servic,General Counsel's Office,CESG,2000025860,6000,#,GL51 0EX,
Department for Transport,Department for Transport,20/03/2015,IT Ser Running Costs,"Motoring, Freight & London",TRAFFICMASTER PLC,2000025886,53487,#,MK43 0TR,
Department for Transport,Department for Transport,20/03/2015,Management Consultan,"Energy, Technology and International",EURO NCAP,2000025861,115150.2,#,1050,
Department for Transport,Department for Transport,20/03/2015,Occup Health Scheme,Air Accident Investigation Branch,xxxxxx,2000025905,630,#,xxxxx,
Department for Transport,Department for Transport,20/03/2015,Office Fur & Equip,Maritime,CAPITA PROPERTY & INFRASTRUCTURE,2000025873,1440,#,DL1 9HN,
Department for Transport,Department for Transport,20/03/2015,Other Professional F,Group Human Resource,COMPUTERSHARE VOUCHER SERVICES,2000025867,733.54,#,WS13 8SX,
Department for Transport,Department for Transport,20/03/2015,Postage,Air Accident Investigation Branch,PITNEY BOWES LTD,2000025883,1012,#,CM20 2GZ,
Department for Transport,Department for Transport,20/03/2015,Prog&ProjMgmt Consul,Project Sponsorship ,PARSONS BRINCKERHOFF LTD,2000025882,5121.94,#,NE4 7YQ,
Department for Transport,Department for Transport,20/03/2015,Prog&ProjMgmt Consul,Project Sponsorship ,PARSONS BRINCKERHOFF LTD,2000025882,141203.64,#,NE4 7YQ,
Department for Transport,Department for Transport,20/03/2015,Prog&ProjMgmt Consul,Project Sponsorship ,PARSONS BRINCKERHOFF LTD,2000025882,48880.12,#,NE4 7YQ,
Department for Transport,Department for Transport,20/03/2015,Prog&ProjMgmt Consul,Project Sponsorship ,PARSONS BRINCKERHOFF LTD,2000025882,12401.42,#,NE4 7YQ,
Department for Transport,Department for Transport,20/03/2015,Pte Cost Of Servs Ch,Rail Commercial & Programme Office,Transport for Greater Manchester,2000025899,127910.11,1513 Wk3 Admin Grant 14-15 - Transport for Greater,M1 3BG,
Department for Transport,Department for Transport,20/03/2015,Pte Cost Of Servs Ch,Rail Commercial & Programme Office,NEXUS (TYNE & WEAR),2000025897,21813.24,1513 Wk3 Admin Grant 14-15 - Nexus,NE1 4AX,
Department for Transport,Department for Transport,20/03/2015,Pte Cost Of Servs Ch,Rail Commercial & Programme Office,SOUTH YORKSHIRE PTE,2000025898,105183.23,1513 Wk3 Admin Grant 14-15 - South Yorkshire PTE,S2 5YT,
Department for Transport,Department for Transport,20/03/2015,Pte Cost Of Servs Ch,Rail Commercial & Programme Office,WEST YORKSHIRE PTA,2000025900,76631.86,1513 Wk3 Admin Grant 14-15 - West Yorkshire PTE,LS1 2DE,
Department for Transport,Department for Transport,20/03/2015,Publicity,Group Communication,ABBOTT MEAD VICKERS BBDO LTD,2000025870,4207,#,NW1 5QE,
Department for Transport,Department for Transport,20/03/2015,Publicity,Group Communication,ABBOTT MEAD VICKERS BBDO LTD,2000025870,9783,#,NW1 5QE,
Department for Transport,Department for Transport,20/03/2015,Publicity,Group Communication,ABBOTT MEAD VICKERS BBDO LTD,2000025870,2100,#,NW1 5QE,
Department for Transport,Department for Transport,20/03/2015,Publicity,Group Communication,ABBOTT MEAD VICKERS BBDO LTD,2000025870,5040,#,NW1 5QE,
Department for Transport,Department for Transport,20/03/2015,Research,"Energy, Technology and International",TRANSPORT RESEARCH LABORATORY,2000025887,145957.22,#,RG40 3GA,
Department for Transport,Department for Transport,20/03/2015,Research,Transport Security Strategy,DEFENCE SCIENCE & TECHNOLOGY,2000025876,873324,#,PO14 9HL,
Department for Transport,Department for Transport,20/03/2015,Research,Rail Strategy & Funding,OVE ARUP & PARTNERS,2000025881,19550,#,NE1 3PL,
Department for Transport,Department for Transport,20/03/2015,Research,Rail Strategy & Funding,PARSONS BRINCKERHOFF LTD,2000025882,2199,#,NE4 7YQ,
Department for Transport,Department for Transport,20/03/2015,Research,Rail Strategy & Funding,PARSONS BRINCKERHOFF LTD,2000025882,38014.75,#,NE4 7YQ,
Department for Transport,Department for Transport,20/03/2015,Research,Rail Strategy & Funding,PARSONS BRINCKERHOFF LTD,2000025882,3845.31,#,NE4 7YQ,
Department for Transport,Department for Transport,20/03/2015,Research,Aviation,YORK AVIATION LLP,2000025902,37285,#,LS2 7PN,
Department for Transport,Department for Transport,20/03/2015,Small Software,Motoring Services,SOFTWARE BOX LTD,2000025885,-0.01,#,YO61 1ET,
Department for Transport,Department for Transport,20/03/2015,Subsidies Private Se,"Motoring, Freight & London",Mode Shift Grant Payment,2000025890,74550.03,#,#,
Department for Transport,Department for Transport,20/03/2015,Subsidies Private Se,"Motoring, Freight & London",Mode Shift Grant Payment,2000025890,79530.58,#,#,
Department for Transport,Department for Transport,20/03/2015,Subsidies Private Se,"Motoring, Freight & London",Mode Shift Grant Payment,2000025890,24041.86,#,#,
Department for Transport,Department for Transport,20/03/2015,Subsidies Private Se,"Motoring, Freight & London",Mode Shift Grant Payment,2000025890,21885.13,#,#,
Department for Transport,Department for Transport,20/03/2015,Subsidies Private Se,"Motoring, Freight & London",Mode Shift Grant Payment,2000025890,35938.45,#,#,
Department for Transport,Department for Transport,20/03/2015,Subsidies Private Se,"Motoring, Freight & London",Mode Shift Grant Payment,2000025891,237201,#,#,
Department for Transport,Department for Transport,20/03/2015,Subsidies Private Se,"Motoring, Freight & London",Mode Shift Grant Payment,2000025894,61158,#,#,
Department for Transport,Department for Transport,20/03/2015,Subsidies Private Se,"Motoring, Freight & London",Mode Shift Grant Payment,2000025910,72722,#,#,
Department for Transport,Department for Transport,20/03/2015,Support Services,Air Accident Investigation Branch,SOFTWARE BOX LTD,2000025866,1886.54,SBL NON ETHOS 2 MONITORS 09/03/15,YO61 1ET,
Department for Transport,Department for Transport,20/03/2015,Support Services,Aviation,Civil Aviation Authority,2000025874,141313.98,#,RH6 0YR,
Department for Transport,Department for Transport,20/03/2015,Training,Air Accident Investigation Branch,Nederlands Forensisch Instituut,2000025863,708.96,#,2490,
Department for Transport,Department for Transport,20/03/2015,Training,Group Human Resource,SCT CONSULTANTS LTD,2000025907,4000,#,W8 5RL,
Department for Transport,Department for Transport,20/03/2015,Training,Environment & International Transport Analysis,UK NETWORK OF ENVIRO ECONOMISTS,2000025904,1700,#,W1W 7SQ,
Department for Transport,Department for Transport,20/03/2015,Training,Group Human Resource,Capita Business Services Ltd,2000025864,53437.56,#,B1 3RB,
Department for Transport,Department for Transport,20/03/2015,Training,Group Human Resource,Capita Business Services Ltd,2000025864,592,#,B1 3RB,
Department for Transport,Department for Transport,20/03/2015,Training,Group Human Resource,Capita Business Services Ltd,2000025864,614,#,B1 3RB,
Department for Transport,Department for Transport,20/03/2015,Training,Group Human Resource,Capita Business Services Ltd,2000025864,44175.07,#,B1 3RB,
Department for Transport,Department for Transport,20/03/2015,Training,Group Human Resource,Capita Business Services Ltd,2000025864,3372,#,B1 3RB,
Department for Transport,Department for Transport,20/03/2015,Training,Group Human Resource,Capita Business Services Ltd,2000025864,4189,#,B1 3RB,
Department for Transport,Department for Transport,20/03/2015,Training,Group Human Resource,Capita Business Services Ltd,2000025864,603.66,#,B1 3RB,
Department for Transport,Department for Transport,20/03/2015,Training,Group Human Resource,Capita Business Services Ltd,2000025864,45454.55,#,B1 3RB,
Department for Transport,Department for Transport,20/03/2015,Training,Group Human Resource,Capita Business Services Ltd,2000025864,3500,#,B1 3RB,
Department for Transport,Department for Transport,20/03/2015,Transport  Consult,Local,ATKINS LTD (TRANSPORT PLANNING),2000025871,7228.96,#,WR5 1TX,
Department for Transport,Department for Transport,20/03/2015,Transport  Consult,Major Projects & Growth,JACOBS UK LTD,2000025880,148581.93,#,G2 7HX,
Department for Transport,Department for Transport,20/03/2015,Transport  Consult,Major Projects & Growth,PARSONS BRINCKERHOFF LTD,2000025882,3915.05,#,NE4 7YQ,
Department for Transport,Department for Transport,20/03/2015,Transport  Consult,Rail Commercial & Programme Office,PARSONS BRINCKERHOFF LTD,2000025882,583.12,#,NE4 7YQ,
Department for Transport,Department for Transport,20/03/2015,Transport  Consult,Rail Strategy & Funding,PARSONS BRINCKERHOFF LTD,2000025882,757.1,#,NE4 7YQ,
Department for Transport,Department for Transport,20/03/2015,Transport  Consult,Rail Franchising,ATKINS LTD (TRANSPORT PLANNING),2000025871,58590.54,#,WR5 1TX,
Department for Transport,Department for Transport,20/03/2015,Transport  Consult,Rail Franchising,ATKINS LTD (TRANSPORT PLANNING),2000025871,8006.04,#,WR5 1TX,
Department for Transport,Department for Transport,20/03/2015,Transport  Consult,Rail Franchising,PARSONS BRINCKERHOFF LTD,2000025882,40074.22,#,NE4 7YQ,
Department for Transport,Department for Transport,20/03/2015,Transport  Consult,Rail Commercial & Programme Office,PARSONS BRINCKERHOFF LTD,2000025882,12283.46,#,NE4 7YQ,
Department for Transport,Department for Transport,20/03/2015,Travel Expenses UK,Motoring Services,Driver & Vehicle Licensing Agency,2000025877,1388.46,#,SA6 7JL,
Department for Transport,Department for Transport,23/03/2015,Agency Staff Costs,Group Communication,MICHAEL PAGE INTERNATIONAL,2000026005,2288.16,#,SL1 3SA,
Department for Transport,Department for Transport,23/03/2015,Agency Staff Costs,Group Communication,MICHAEL PAGE INTERNATIONAL,2000026005,2288.16,#,SL1 3SA,
Department for Transport,Department for Transport,23/03/2015,Agency Staff Costs,Group Communication,MICHAEL PAGE INTERNATIONAL,2000026005,4576.32,#,SL1 3SA,
Department for Transport,Department for Transport,23/03/2015,Agency Staff Costs,Group Communication,MICHAEL PAGE INTERNATIONAL,2000026005,2288.16,#,SL1 3SA,
Department for Transport,Department for Transport,23/03/2015,Agency Staff Costs,Group Communication,MICHAEL PAGE INTERNATIONAL,2000026005,1144.08,#,SL1 3SA,
Department for Transport,Department for Transport,23/03/2015,Agency Staff Costs,Group Communication,MICHAEL PAGE INTERNATIONAL,2000026005,9152.64,#,SL1 3SA,
Department for Transport,Department for Transport,23/03/2015,Agency Staff Costs,Group Communication,CAPITA BUSINESS SERVICES LTD,2000025985,910.58,#,DL1 9HN,
Department for Transport,Department for Transport,23/03/2015,Agency Staff Costs,Local,BROOK STREET (UK) LIMITED,2000026003,582.12,#,AL1 4JB,
Department for Transport,Department for Transport,23/03/2015,Agency Staff Costs,"Policy, Legislation and Funding",ADVANTAGE RESOURCING UK LTD,2000026018,4752,#,RG21 4FF,
Department for Transport,Department for Transport,23/03/2015,Agency Staff Costs,Rail Commercial & Programme Office,CAPITA BUSINESS SERVICES LTD,2000025985,5300.28,#,DL1 9HN,
Department for Transport,Department for Transport,23/03/2015,Agency Staff Costs,Rail Commercial & Programme Office,CAPITA BUSINESS SERVICES LTD,2000025985,2650.14,#,DL1 9HN,
Department for Transport,Department for Transport,23/03/2015,Agency Staff Costs,Rail Commercial & Programme Office,CAPITA BUSINESS SERVICES LTD,2000025985,2650.14,#,DL1 9HN,
Department for Transport,Department for Transport,23/03/2015,Agency Staff Costs,Rail Franchising,Capita Resourcing Limited,2000026006,16263.92,#,EC4A 1EN,
Department for Transport,Department for Transport,23/03/2015,Basic Franchise Rec,Rail Commercial & Programme Office,LONDON & SOUTH EASTERN RAILWAY,2000026008,39416341.47,1513 Wk3 HS1 TAC Advance Payment Periods P1601 - P,SE1 8PG,
Department for Transport,Department for Transport,23/03/2015,Cap Grt Loc Auth,Strategic Roads & Smart Ticketing,WEST MIDLANDS ITA,2000026014,207586,Developing ITSO Smart Ticketing in the West Mids,B19 3SD,
Department for Transport,Department for Transport,23/03/2015,Cap Grt Pri Sec-Cos.,Network Rail Sponsorship,Network Rail Infstrcture (Treasury),2000025954,154000000,Network Rail Loan Payment,NW1 2DN,
Department for Transport,Department for Transport,23/03/2015,Computer equipment,Group Communication,Probrand Ltd,2000025987,924.9,#,B1 3BP,
Department for Transport,Department for Transport,23/03/2015,CurrGrtPriSec-P&NPIS,Rail Strategy & Funding,West Yorkshire Combined Authority,2000026025,50000,Syster Study-Northern ETF,LS1 2DE,
Department for Transport,Department for Transport,23/03/2015,Financial Consultanc,Group Finance,GOVERNMENT ACTUARY'S DEPARTMENT,2000025982,40331.76,#,EC4A 1AB,
Department for Transport,Department for Transport,23/03/2015,Financial Consultanc,Rail Franchising,Pricewaterhouse Coopers LLP,2000025996,9442.5,#,SE1 2RD,
Department for Transport,Department for Transport,23/03/2015,Financial Consultanc,Rail Franchising,Pricewaterhouse Coopers LLP,2000025996,48547.2,#,SE1 2RD,
Department for Transport,Department for Transport,23/03/2015,Legal Consultancy,Major Projects & Growth,WINCKWORTH SHERWOOD,2000026001,1923.6,#,SE1 9BB,
Department for Transport,Department for Transport,23/03/2015,Maintenance Other,"Motoring, Freight & London",TDC SYSTEMS LIMITED,2000025999,108670,#,BS24 9BP,
Department for Transport,Department for Transport,23/03/2015,Maintenance Other,"Motoring, Freight & London",TDC SYSTEMS LIMITED,2000025999,4139.4,#,BS24 9BP,
Department for Transport,Department for Transport,23/03/2015,Maintenance Other,"Motoring, Freight & London",TDC SYSTEMS LIMITED,2000025999,4753.88,#,BS24 9BP,
Department for Transport,Department for Transport,23/03/2015,Marketing,Analysis & Strategy,OVE ARUP & PARTNERS,2000025994,9946.57,#,NE1 3PL,
Department for Transport,Department for Transport,23/03/2015,Mobile Phone charges,Centrally held prog-NATs,VODAFONE LTD,2000026004,7424.91,Vodafone - Various March 2015,RG14 5FF,
Department for Transport,Department for Transport,23/03/2015,Mobile Phone charges,Group Finance,VODAFONE LTD,2000026004,2687.62,vodafone - 150 mobiles - 14.03.2015,RG14 5FF,
Department for Transport,Department for Transport,23/03/2015,Mobile Phone charges,Group Finance,VODAFONE LTD,2000026004,4318.12,vodafone - 129 mobiles - 14.03.2015,RG14 5FF,
Department for Transport,Department for Transport,23/03/2015,Mobile Phone charges,Group Finance,VODAFONE LTD,2000026004,11977.91,Vodafone - Various March 2015,RG14 5FF,
Department for Transport,Department for Transport,23/03/2015,Mobile Phone charges,Group Finance,VODAFONE LTD,2000026004,6919.3,vodafone - 392 mobiles - 14.03.2015,RG14 5FF,
Department for Transport,Department for Transport,23/03/2015,Other Advertising,Local,PENNA COMMUNICATIONS,2000026011,13264.23,#,EC4M 7RD,
Department for Transport,Department for Transport,23/03/2015,Other Professional F,"Motoring, Freight & London",ORDNANCE SURVEY,2000025993,1200000,#,SO16 4XH,
Department for Transport,Department for Transport,23/03/2015,Property Maintenance,Rail Accident Investigation Branch,AMBER ELECTRICAL (DERBYSHIRE) LTD,2000026028,539.8,#,DE1 3GA,
Department for Transport,Department for Transport,23/03/2015,Publications for Res,Strategic Roads & Smart Ticketing,WILLIAMS LEA LIMITED,2000026016,1489.54,#,NR3 1PD,
Department for Transport,Department for Transport,23/03/2015,Rent - L&B (non-PFI),Rail Commercial & Programme Office,EUROSTAR (UK) LTD,2000026007,7554928.66,#,SE1 8SE,
Department for Transport,Department for Transport,23/03/2015,Research,Strategic Roads & Smart Ticketing,OFFICE OF RAIL REGULATION,2000025983,58563.62,#,WC2B 4AN,
Department for Transport,Department for Transport,23/03/2015,Research,"Motoring, Freight & London",WSP UK Limited T/A WSP Civils,2000026002,15000,See credit 69024008,GL20 8SJ,
Department for Transport,Department for Transport,23/03/2015,Research,"Motoring, Freight & London",WSP UK Limited T/A WSP Civils,2000026002,12000,#,GL20 8SJ,
Department for Transport,Department for Transport,23/03/2015,Research,"Motoring, Freight & London",WSP UK Limited T/A WSP Civils,2000026002,-15000,Credit re 64216776,GL20 8SJ,
Department for Transport,Department for Transport,23/03/2015,Research,Transport Security Strategy,DEFENCE SCIENCE & TECHNOLOGY,2000025989,60000,#,PO14 9HL,
Department for Transport,Department for Transport,23/03/2015,Research,Transport Security Strategy,DEFENCE SCIENCE & TECHNOLOGY,2000025989,6000,#,PO14 9HL,
Department for Transport,Department for Transport,23/03/2015,Research,Rail Strategy & Funding,PARSONS BRINCKERHOFF LTD,2000025995,7462.64,#,NE4 7YQ,
Department for Transport,Department for Transport,23/03/2015,Research,Anallysis & Strategy,IPSOS UK,2000026009,6050,#,HA1 1PT,
Department for Transport,Department for Transport,23/03/2015,Research,"Motoring, Freight & London",Systra Ltd,2000025992,14258.16,#,GU21 5BH,
Department for Transport,Department for Transport,23/03/2015,Small Software,Environment & International Transport Analysis,ESRI (UK) LIMITED,2000025990,16014,#,HP21 7QG,
Department for Transport,Department for Transport,23/03/2015,Small Software,Motoring Services,Vodafone Ltd (ex C&W W'wide Div.),2000025984,21000,#,MK3 5JP,
Department for Transport,Department for Transport,23/03/2015,Subscriptions to Pro,Group Human Resource,UBM INFORMATION LTD,2000025988,4320,#,TN9 1YT,
Department for Transport,Department for Transport,23/03/2015,Support Services,"Motoring, Freight & London",Environmental Scientifics Group,2000025986,5952,#,OX9 3SZ,
Department for Transport,Department for Transport,23/03/2015,Telecom Equipment,Motoring Services,Azzuri Communications Ltd,2000026015,2357.39,Azzurri - Maintenance BRI Card - 14.01.2015,BB11 5FH,
Department for Transport,Department for Transport,23/03/2015,Telecom Equipment,Motoring Services,BT IT Services Ltd,2000026013,36488.5,#,OX4 2RW,
Department for Transport,Department for Transport,23/03/2015,Telephone charges,Motoring Services,Vodafone Ltd (ex C&W W'wide Div.),2000025984,-18353.24,C&W - Credit  - 01.01.2014 to 01.02.2015,MK3 5JP,
Department for Transport,Department for Transport,23/03/2015,Transport  Consult,Aviation,MANCHESTER METROPOLITAN UNIV,2000025991,114019.5,#,M1 5GD,
Department for Transport,Department for Transport,23/03/2015,Transport  Consult,Rail Strategy & Funding,OVE ARUP & PARTNERS,2000025994,67128.6,#,NE1 3PL,
Department for Transport,Department for Transport,23/03/2015,Transport  Consult,Rail Strategy & Funding,PARSONS BRINCKERHOFF LTD,2000025995,1373.76,#,NE4 7YQ,
Department for Transport,Department for Transport,23/03/2015,Transport  Consult,Rail Commercial & Programme Office,PARSONS BRINCKERHOFF LTD,2000025995,5516.82,#,NE4 7YQ,
Department for Transport,Department for Transport,23/03/2015,Transport  Consult,Rail Strategy & Funding,PARSONS BRINCKERHOFF LTD,2000025995,16047.69,#,NE4 7YQ,
Department for Transport,Department for Transport,23/03/2015,Transport  Consult,Aviation,xxxxxx,2000026026,4200,#,xxxxxx,
Department for Transport,Department for Transport,23/03/2015,Transport  Consult,Rail Commercial & Programme Office,PARSONS BRINCKERHOFF LTD,2000025995,5079.21,#,NE4 7YQ,
Department for Transport,Department for Transport,23/03/2015,Transport  Consult,Rail Franchising,PARSONS BRINCKERHOFF LTD,2000025995,371198.51,#,NE4 7YQ,
Department for Transport,Department for Transport,23/03/2015,Transport  Consult,Rail Commercial & Programme Office,PARSONS BRINCKERHOFF LTD,2000025995,29914.3,#,NE4 7YQ,
Department for Transport,Department for Transport,23/03/2015,Transport  Consult,Rail Commercial & Programme Office,PARSONS BRINCKERHOFF LTD,2000025995,2537.52,#,NE4 7YQ,
Department for Transport,Department for Transport,23/03/2015,Transport  Consult,Aviation,Systra Ltd,2000025992,28428.2,#,GU21 5BH,
Department for Transport,Department for Transport,23/03/2015,Transport  Consult,Rail Franchising,TRANSPORT RESEARCH LABORATORY,2000026000,50992.31,#,RG40 3GA,
Department for Transport,Department for Transport,23/03/2015,Travel Exp Overseas,"Motoring, Freight & London",Environmental Scientifics Group,2000025986,693.25,#,OX9 3SZ,
Department for Transport,Department for Transport,24/03/2015,Agency Staff Costs,Group Internal Audit,CAPITA BUSINESS SERVICES LTD,2000026099,1868.22,#,DL1 9HN,
Department for Transport,Department for Transport,24/03/2015,Agency Staff Costs,Local,BROOK STREET (UK) LIMITED,2000026112,987.84,#,AL1 4JB,
Department for Transport,Department for Transport,24/03/2015,Agency Staff Costs,Group Finance,NETWORKERS INTERNATIONAL (UK) PLC,2000026119,3391.26,#,BR1 1HP,
Department for Transport,Department for Transport,24/03/2015,Agency Staff Costs,Motoring Services,BROOK STREET (UK) LIMITED,2000026112,895.55,#,AL1 4JB,
Department for Transport,Department for Transport,24/03/2015,Agency Staff Costs,Major Projects & Growth,Experis Ltd,2000026103,6040.02,#,EC2M 2RB,
Department for Transport,Department for Transport,24/03/2015,Agency Staff Costs,Rail Commercial & Programme Office,CAPITA BUSINESS SERVICES LTD,2000026099,2637.7,#,DL1 9HN,
Department for Transport,Department for Transport,24/03/2015,Agency Staff Costs,Rail Commercial & Programme Office,CAPITA BUSINESS SERVICES LTD,2000026099,12445.74,#,DL1 9HN,
Department for Transport,Department for Transport,24/03/2015,Agency Staff Costs,Rail Commercial & Programme Office,MORGAN HUNT UK LTD,2000026106,3919.44,#,EC4M 7EG,
Department for Transport,Department for Transport,24/03/2015,Agency Staff Costs,Motoring Services,CAPITA BUSINESS SERVICES LTD,2000026099,4436.02,#,DL1 9HN,
Department for Transport,Department for Transport,24/03/2015,Agency Staff Costs,Group Finance,CAPITA BUSINESS SERVICES LTD,2000026099,2144.11,#,DL1 9HN,
Department for Transport,Department for Transport,24/03/2015,Agency Staff Costs,Group Finance,NETWORKERS INTERNATIONAL (UK) PLC,2000026119,861,#,BR1 1HP,
Department for Transport,Department for Transport,24/03/2015,Agency Staff Costs,Group Finance,NETWORKERS INTERNATIONAL (UK) PLC,2000026119,1925.7,#,BR1 1HP,
Department for Transport,Department for Transport,24/03/2015,Agency Staff Costs,Group Finance,CAPITA BUSINESS SERVICES LTD,2000026099,2650.14,#,DL1 9HN,
Department for Transport,Department for Transport,24/03/2015,Agency Staff Costs,Group Finance,CAPITA BUSINESS SERVICES LTD,2000026099,3329.64,#,DL1 9HN,
Department for Transport,Department for Transport,24/03/2015,Agency Staff Costs,Rail Strategy & Funding,CAPITA BUSINESS SERVICES LTD,2000026099,3899.71,#,DL1 9HN,
Department for Transport,Department for Transport,24/03/2015,Agency Staff Costs,Rail Strategy & Funding,CAPITA BUSINESS SERVICES LTD,2000026099,9184.42,#,DL1 9HN,
Department for Transport,Department for Transport,24/03/2015,Agency Staff Costs,Rail Strategy & Funding,CAPITA BUSINESS SERVICES LTD,2000026099,5286.42,#,DL1 9HN,
Department for Transport,Department for Transport,24/03/2015,Agency Staff Costs,Network Rail Sponsorship,CAPITA BUSINESS SERVICES LTD,2000026099,1386.66,#,DL1 9HN,
Department for Transport,Department for Transport,24/03/2015,Agency Staff Costs,Rail Strategy & Funding,CAPITA BUSINESS SERVICES LTD,2000026099,2160.54,#,DL1 9HN,
Department for Transport,Department for Transport,24/03/2015,Agency Staff Costs,Rail Strategy & Funding,CAPITA BUSINESS SERVICES LTD,2000026099,4510.62,#,DL1 9HN,
Department for Transport,Department for Transport,24/03/2015,Agency Staff Costs,Group Finance,CAPITA BUSINESS SERVICES LTD,2000026099,8757.6,#,DL1 9HN,
Department for Transport,Department for Transport,24/03/2015,Agency Staff Costs,Group Finance,CAPITA BUSINESS SERVICES LTD,2000026099,1093.5,#,DL1 9HN,
Department for Transport,Department for Transport,24/03/2015,Agency Staff Costs,Rail Strategy & Funding,CAPITA BUSINESS SERVICES LTD,2000026099,2144.11,#,DL1 9HN,
Department for Transport,Department for Transport,24/03/2015,Agency Staff Costs,Rail Franchising,Experis Ltd,2000026103,4470.72,#,EC2M 2RB,
Department for Transport,Department for Transport,24/03/2015,Agency Staff Costs,Rail Franchising,Experis Ltd,2000026103,4896.14,#,EC2M 2RB,
Department for Transport,Department for Transport,24/03/2015,Agency Staff Costs,Rail Strategy & Funding,NETWORKERS INTERNATIONAL (UK) PLC,2000026119,959.46,#,BR1 1HP,
Department for Transport,Department for Transport,24/03/2015,Cap Grt Loc Auth,Local,COVENTRY CITY COUNCIL,2000026113,100000,Local Pinch Point Fund Grant for underspend 2015,CV1 2QL,
Department for Transport,Department for Transport,24/03/2015,Cap Grt Loc Auth,Local,HAMPSHIRE COUNTY COUNCIL,2000026090,400000,Local Pinch Point Fund Grant for underspend 2015,SO23 8UB,
Department for Transport,Department for Transport,24/03/2015,Cap Grt Loc Auth,Local,PETERBOROUGH CITY COUNCIL,2000026091,900000,Local Pinch Point Fund Grant for underspend 2015,PE1 1FF,
Department for Transport,Department for Transport,24/03/2015,Cap Grt Loc Auth,Local,WINDSOR & MAIDENHEAD,2000026092,800000,Local Pinch Point Fund Grant for underspend 2015,SL6 1RF,
Department for Transport,Department for Transport,24/03/2015,Cap Grt Loc Auth,Highspeed 2,CORNWALL COUNTY COUNCIL,2000026093,3000000,Cornwall Council - Long Rock Depot Upgrade,TR1 38D,
Department for Transport,Department for Transport,24/03/2015,Computer equipment,Motoring Services,Misco UK Limited,2000026101,1536,#,NN8 6XH,
Department for Transport,Department for Transport,24/03/2015,Contract Cleaning,Air Accident Investigation Branch,SIRIUS CARPETCARE LTD,2000026109,680,#,E17 5DY,
Department for Transport,Department for Transport,24/03/2015,CurrGrt Las in AEF/A,Rail Strategy & Funding,MERSEY TRAVEL,2000026116,7325018.8,Mersey Grant P 12 Payment,L3   2AN,
Department for Transport,Department for Transport,24/03/2015,CurrGrtOth to NDPBs,Aviation,CIVIL AVIATION AUTHORITY,2000025903,28000,S12 grant for commissioning TIP reports,RH6 0YR,
Department for Transport,Department for Transport,24/03/2015,Data Supply - TD,"Motoring, Freight & London",TRL LTD,2000026096,7533.6,#,RG40 3GA,
Department for Transport,Department for Transport,24/03/2015,Financial Consultanc,Rail Strategy & Funding,Pricewaterhouse Coopers LLP,2000026108,47041.2,#,SE1 2RD,
Department for Transport,Department for Transport,24/03/2015,Investigation Servic,Motoring Services,CH&I Associates Ltd,2000026133,3249.48,#,SK11 8AA,
Department for Transport,Department for Transport,24/03/2015,IT Equip Cap Cost,Motoring Services,Probrand Ltd,2000026100,325.01,Lenovo Accessories - Dock Stations,B1 3BP,
Department for Transport,Department for Transport,24/03/2015,IT Equip Cap Cost,Motoring Services,Probrand Ltd,2000026100,693,Lenovo Accessories - Quickshot Jackets,B1 3BP,
Department for Transport,Department for Transport,24/03/2015,IT Equip Cap Cost,Motoring Services,Probrand Ltd,2000026100,6,Lenovo Accessories - Shipping,B1 3BP,
Department for Transport,Department for Transport,24/03/2015,IT Equip Cap Cost,Motoring Services,Probrand Ltd,2000026100,782.24,Lenovo Accessories Keyboards,B1 3BP,
Department for Transport,Department for Transport,24/03/2015,IT Equip Cap Cost,Motoring Services,Probrand Ltd,2000026100,1390.66,#,B1 3BP,
Department for Transport,Department for Transport,24/03/2015,L&B Excl Dwellings,Maritime,Guideline Lift Services Ltd,2000026134,19206,#,BR8 7AG,
Department for Transport,Department for Transport,24/03/2015,Legal Consultancy,Group Procurement & Estate,Field Fisher Waterhouse LLP,2000026118,30529.2,#,EC4R 3TT,
Department for Transport,Department for Transport,24/03/2015,Non Stock Machine Co,Motoring Services,XMA LIMITED GOSC,2000026127,553.08,A33K450 Konica Minolta Bizhub C224e /C28,NG11 7EP,
Department for Transport,Department for Transport,24/03/2015,Printing,Group Communication,WILLIAMS LEA LIMITED,2000026124,1030.32,#,NR3 1PD,
Department for Transport,Department for Transport,24/03/2015,Prog&ProjMgmt Consul,"Energy, Technology and International",OVE ARUP & PARTNERS,2000026107,78115.44,#,NE1 3PL,
Department for Transport,Department for Transport,24/03/2015,Publications for Res,Group Communication,CREATIVE CHOICE CIC,2000026123,4650,#,SW1H 0DJ,
Department for Transport,Department for Transport,24/03/2015,Publications for Res,Aviation,CREATIVE CHOICE CIC,2000026123,6400,#,SW1H 0DJ,
Department for Transport,Department for Transport,24/03/2015,Publications for Res,"Energy, Technology and International",CREATIVE CHOICE CIC,2000026123,3550,#,SW1H 0DJ,
Department for Transport,Department for Transport,24/03/2015,Rent - L&B (non-PFI),Maritime,INT OIL POLLUTION COMPENSATION FUND,2000026104,95300,#,SW1E 5PN,
Department for Transport,Department for Transport,24/03/2015,Research,Aviation,Civil Aviation Authority,2000026102,48234,#,RH6 0YR,
Department for Transport,Department for Transport,24/03/2015,Research,Aviation,Civil Aviation Authority,2000026102,63575,#,RH6 0YR,
Department for Transport,Department for Transport,24/03/2015,Research,"Energy, Technology and International",LOUGHBOROUGH UNIVERSITY,2000026105,256584.06,#,LE11 3TU,
Department for Transport,Department for Transport,24/03/2015,Research,Major Projects & Growth,TRANSPORT RESEARCH LABORATORY,2000026110,12414.03,#,RG40 3GA,
Department for Transport,Department for Transport,24/03/2015,Research,Local,DFT ONE TIME VENDOR,2000026094,1000,#,SW1P 4DR,
Department for Transport,Department for Transport,24/03/2015,Services prov by OGD,"Motoring, Freight & London",VEHICLE CERTIFICATION AGENCY,2000026111,20600,#,BS5 6XX,
Department for Transport,Department for Transport,24/03/2015,Storage & Distributi,Group Communication,WILLIAMS LEA LIMITED,2000026124,8421.02,#,NR3 1PD,
Department for Transport,Department for Transport,24/03/2015,Support Services,Local,PLANNING INSPECTORATE,2000026097,5744.95,#,BS1 6PN,
Department for Transport,Department for Transport,24/03/2015,Support Services,Local,PLANNING INSPECTORATE,2000026097,512.54,#,BS1 6PN,
Department for Transport,Department for Transport,24/03/2015,Support Services,Aviation,ENVIRONMENT AGENCY,2000026120,22850,#,PE2 8YD,
Department for Transport,Department for Transport,24/03/2015,Support Services,Aviation,ENVIRONMENT AGENCY,2000026120,38500,#,PE2 8YD,
Department for Transport,Department for Transport,24/03/2015,Support Services,Aviation,ENVIRONMENT AGENCY,2000026120,15020,#,PE2 8YD,
Department for Transport,Department for Transport,24/03/2015,Support Services,Group Finance,DD ACCRAILWAY PENS TRUSTEE,2000026114,3380.61,#,DL3 6XR,
Department for Transport,Department for Transport,24/03/2015,Support Services,"Policy, Legislation and Funding",Supreme Court of the United Kingdom,2000026098,1298.11,#,SW1P 3BD,
Department for Transport,Department for Transport,24/03/2015,Telecom Equipment,Motoring Services,Azzuri Communications Ltd,2000026122,546,Azzurri - Damaged Headsets 26.12.14,BB11 5FH,
Department for Transport,Department for Transport,24/03/2015,Telephone charges,Motoring Services,Azzuri Communications Ltd,2000026122,780,Azzurri - CCD 8269 Empowered  Installation,BB11 5FH,
Department for Transport,Department for Transport,24/03/2015,Training,Air Accident Investigation Branch,WESTERN AIR (THRUXTON) LTD,2000026125,833.75,#,SP11 8PW,
Department for Transport,Department for Transport,24/03/2015,Training,Aviation,ENGINEERS EMPLOYERS FEDERATION,2000026115,1090,#,SW1H 9NQ,
Department for Transport,Department for Transport,24/03/2015,Transport  Consult,Rail Commercial & Programme Office,TRANSPORT RESEARCH LABORATORY,2000026110,3301,#,RG40 3GA,
Department for Transport,Department for Transport,24/03/2015,Transport  Consult,Analysis & Strategy,OVE ARUP & PARTNERS,2000026107,30842.87,#,NE1 3PL,
Department for Transport,Department for Transport,24/03/2015,Transport  Consult,Rail Commercial & Programme Office,TRANSPORT RESEARCH LABORATORY,2000026110,31798.33,#,RG40 3GA,
Department for Transport,Department for Transport,24/03/2015,Transport  Consult,Rail Commercial & Programme Office,TRANSPORT RESEARCH LABORATORY,2000026110,8140.09,#,RG40 3GA,
Department for Transport,Department for Transport,25/03/2015,Agency Staff Costs,Local,BROOK STREET (UK) LIMITED,2000026194,642.02,#,AL1 4JB,
Department for Transport,Department for Transport,25/03/2015,Agency Staff Costs,Group Human Resource,CAPITA BUSINESS SERVICES LTD,2000026178,1179.4,#,DL1 9HN,
Department for Transport,Department for Transport,25/03/2015,Agency Staff Costs,Group Finance,CAPITA BUSINESS SERVICES LTD,2000026178,1647.04,#,DL1 9HN,
Department for Transport,Department for Transport,25/03/2015,Agency Staff Costs,Local,BROOK STREET (UK) LIMITED,2000026194,808.92,#,AL1 4JB,
Department for Transport,Department for Transport,25/03/2015,Agency Staff Costs,Local,CAPITA BUSINESS SERVICES LTD,2000026178,1498.92,#,DL1 9HN,
Department for Transport,Department for Transport,25/03/2015,Agency Staff Costs,Major Projects & Growth,BROOK STREET (UK) LIMITED,2000026194,752.64,#,AL1 4JB,
Department for Transport,Department for Transport,25/03/2015,Agency Staff Costs,Rail Strategy & Funding,CAPITA BUSINESS SERVICES LTD,2000026178,4833.9,#,DL1 9HN,
Department for Transport,Department for Transport,25/03/2015,Agency Staff Costs,Rail Franchising,CAPITA BUSINESS SERVICES LTD,2000026178,13350.42,#,DL1 9HN,
Department for Transport,Department for Transport,25/03/2015,Agency Staff Costs,Rail Strategy & Funding,CAPITA BUSINESS SERVICES LTD,2000026178,-4833.9,#,DL1 9HN,
Department for Transport,Department for Transport,25/03/2015,Agency Staff Costs,Rail Franchising,CAPITA BUSINESS SERVICES LTD,2000026178,2777.52,#,DL1 9HN,
Department for Transport,Department for Transport,25/03/2015,Agency Staff Costs,Rail Franchising,CAPITA BUSINESS SERVICES LTD,2000026178,2030.64,#,DL1 9HN,
Department for Transport,Department for Transport,25/03/2015,Agency Staff Costs,Rail Commercial & Programme Office,CAPITA BUSINESS SERVICES LTD,2000026178,3654.36,#,DL1 9HN,
Department for Transport,Department for Transport,25/03/2015,Agency Staff Costs,Rail Commercial & Programme Office,CAPITA BUSINESS SERVICES LTD,2000026178,2890.14,#,DL1 9HN,
Department for Transport,Department for Transport,25/03/2015,Agency Staff Costs,Rail Franchising,CAPITA BUSINESS SERVICES LTD,2000026178,12535.91,#,DL1 9HN,
Department for Transport,Department for Transport,25/03/2015,Agency Staff Costs,Rail Strategy & Funding,CAPITA BUSINESS SERVICES LTD,2000026178,3608.5,#,DL1 9HN,
Department for Transport,Department for Transport,25/03/2015,Agency Staff Costs,Rail Franchising,CAPITA BUSINESS SERVICES LTD,2000026178,4187.4,#,DL1 9HN,
Department for Transport,Department for Transport,25/03/2015,Basic Franchise Pay,Rail Commercial & Programme Office,LONDON MIDLAND RAILWAY,2000026200,4708519,1513 Wk3 Basic Franchise Payment - LONDON MIDLAND,B2 4JB,
Department for Transport,Department for Transport,25/03/2015,Basic Franchise Pay,Rail Commercial & Programme Office,LONDON MIDLAND RAILWAY,2000026200,515770.37,1513 Wk3 CP5 Rev. Inputs to FM letter dt. 18-09-20,B2 4JB,
Department for Transport,Department for Transport,25/03/2015,Basic Franchise Pay,Rail Commercial & Programme Office,LONDON MIDLAND RAILWAY,2000026200,81958.9,1513 Wk3 Fares Flex + RPI Interim Adjustment 14/15,B2 4JB,
Department for Transport,Department for Transport,25/03/2015,Basic Franchise Pay,Rail Commercial & Programme Office,FIRST KEOLIS TRANSPENNINE,2000026197,900000,1513 Wk3 BTP Adjustment 2014-15 - TRANSPENNINE EXP,M1 6LT,
Department for Transport,Department for Transport,25/03/2015,Basic Franchise Pay,Rail Commercial & Programme Office,FIRST KEOLIS TRANSPENNINE,2000026197,4303095,1513 Wk3 Basic Franchise Payment - TRANSPENNINE EX,M1 6LT,
Department for Transport,Department for Transport,25/03/2015,Basic Franchise Pay,Rail Commercial & Programme Office,FIRST KEOLIS TRANSPENNINE,2000026197,-1959759.61,1513 Wk3 CP5 Interim Determination - DfT email dat,M1 6LT,
Department for Transport,Department for Transport,25/03/2015,Basic Franchise Pay,Rail Commercial & Programme Office,FIRST KEOLIS TRANSPENNINE,2000026197,13887.79,1513 Wk3 RPI+0 letter dt. 09-Sept.-2014_P1513 - TR,M1 6LT,
Department for Transport,Department for Transport,25/03/2015,Basic Franchise Pay,Rail Commercial & Programme Office,NORTHERN RAIL LTD,2000026198,13931309.85,1513 Wk3 IFA - Franchise Payment - NORTHERN RAIL L,YO1 6HT,
Department for Transport,Department for Transport,25/03/2015,Basic Franchise Pay,Rail Commercial & Programme Office,NORTHERN RAIL LTD,2000026198,-4295621.17,1513 Wk3 IFA - Franchise Payment CP5 Interim Deter,YO1 6HT,
Department for Transport,Department for Transport,25/03/2015,Basic Franchise Pay,Rail Commercial & Programme Office,NORTHERN RAIL LTD,2000026198,298046.23,1513 Wk3 NW Electrics Subsidy (DOA dt. 25/04/2014),YO1 6HT,
Department for Transport,Department for Transport,25/03/2015,Basic Franchise Rec,Rail Commercial & Programme Office,FIRST KEOLIS TRANSPENNINE,2000026197,145542.37,1513 Wk3 2015 Fares Change_Int Determination _P151,M1 6LT,
Department for Transport,Department for Transport,25/03/2015,Basic Franchise Rec,Rail Commercial & Programme Office,FIRST GREATER WESTERN,2000026199,-2694743,1513 Wk3 Basic Franchise premium_P1513 - FIRST GRE,SN1 1HL,
Department for Transport,Department for Transport,25/03/2015,Basic Franchise Rec,Rail Commercial & Programme Office,FIRST GREATER WESTERN,2000026199,175439,1513 Wk3 EMU DMU Driver and Engineering Training D,SN1 1HL,
Department for Transport,Department for Transport,25/03/2015,Basic Franchise Rec,Rail Commercial & Programme Office,FIRST GREATER WESTERN,2000026199,199249.35,1513 Wk3 Fares Flex + RPI Interim Adjustment 14/15,SN1 1HL,
Department for Transport,Department for Transport,25/03/2015,Basic Franchise Rec,Rail Commercial & Programme Office,FIRST GREATER WESTERN,2000026199,361531,1513 Wk3 HST Reseating P1513 - FIRST GREATER WESTE,SN1 1HL,
Department for Transport,Department for Transport,25/03/2015,Basic Franchise Rec,Rail Commercial & Programme Office,FIRST GREATER WESTERN,2000026199,18340000,1513 Wk3 Reading Depot SoSRA - Revised input Wash-,SN1 1HL,
Department for Transport,Department for Transport,25/03/2015,Basic Franchise Rec,Rail Commercial & Programme Office,FIRST GREATER WESTERN,2000026199,-4475919.92,1513 Wk3 Revised CP5 Interim Adjustment  - p1513 -,SN1 1HL,
Department for Transport,Department for Transport,25/03/2015,Cap Grt Loc Auth,"Energy, Technology and International",LONDON BOROUGH OF BEXLEY,2000026201,100000,CVTF Underspend payment - Bexley #100k,DA6 7LB,
Department for Transport,Department for Transport,25/03/2015,Computer equipment,Air Accident Investigation Branch,ESSENTIAL COMPUTING LTD,2000026187,763.92,#,BS21 7NE,
Department for Transport,Department for Transport,25/03/2015,Contract Cleaning,Air Accident Investigation Branch,Interserve,2000026208,2328.63,#,B70 1DA,
Department for Transport,Department for Transport,25/03/2015,Contract Cleaning,Rail Accident Investigation Branch,OFFICE CARE LTD,2000026207,1303.52,#,DE24 8AN,
Department for Transport,Department for Transport,25/03/2015,Court Costs/Warrants,Group Procurement & Estate,DFT ONE TIME VENDOR,2000026226,16000000,#,SW1P 4DR,
Department for Transport,Department for Transport,25/03/2015,Data Supply - TD,Rail Strategy & Funding,Rail Settlement Plan,2000026192,27870.72,#,EC1A 4HD,
Department for Transport,Department for Transport,25/03/2015,Financial Consultanc,Rail Franchising,ERNST & YOUNG LLP,2000026186,2245.2,#,SE1 2AF,
Department for Transport,Department for Transport,25/03/2015,Financial Consultanc,Rail Commercial & Programme Office,ERNST & YOUNG LLP,2000026186,38253.63,#,SE1 2AF,
Department for Transport,Department for Transport,25/03/2015,Financial Consultanc,Network Rail Sponsorship,ERNST & YOUNG LLP,2000026186,87888.64,#,SE1 2AF,
Department for Transport,Department for Transport,25/03/2015,Indexation Receipts,Rail Commercial & Programme Office,FIRST GREATER WESTERN,2000026199,-321338,1513 Wk3 Franchise Payment Indexation P1513 - FIRS,SN1 1HL,
Department for Transport,Department for Transport,25/03/2015,IT Consultancy,Marine Accident Investigation Branch,ACT SEVEN TECHNOLOGY LIMITED,2000026203,5760,#,SO15 0HW,
Department for Transport,Department for Transport,25/03/2015,IT Equip Cap Cost,Motoring Services,MICROSOFT LTD,2000026176,48384,#,RG6 1WG,
Department for Transport,Department for Transport,25/03/2015,IT Ser Running Costs,Motoring Services,PROCESSFLOWS (UK) LTD,2000026181,1320,#,SO23 8RY,
Department for Transport,Department for Transport,25/03/2015,Legal Consultancy,Rail Franchising,Eversheds LLP,2000026206,65483.02,#,EC2V 7WS,
Department for Transport,Department for Transport,25/03/2015,Legal Consultancy,"Policy, Legislation and Funding",xxxxxx,2000026211,9696,#,xxxxxx,
Department for Transport,Department for Transport,25/03/2015,Maintenance Other,Principal Priv. Secretary & Head of Private Office,Keltec Ltd,2000026221,3825,#,RG12 1NF,
Department for Transport,Department for Transport,25/03/2015,Management Consultan,"Motoring, Freight & London",JMP Consultants Limited,2000026209,13278,#,M1 4BT,
Department for Transport,Department for Transport,25/03/2015,Newspapers,Maritime,THE STATIONERY OFFICE LTD,2000026195,330,#,NR3 1PD,
Department for Transport,Department for Transport,25/03/2015,Other Professional F,Motoring Services,GOVERNMENT ACTUARY'S DEPARTMENT,2000026228,477.42,#,EC4A 1AB,
Department for Transport,Department for Transport,25/03/2015,Other Professional F,Motoring Services,GOVERNMENT ACTUARY'S DEPARTMENT,2000026228,1671.75,#,EC4A 1AB,
Department for Transport,Department for Transport,25/03/2015,Other Professional F,Motoring Services,GOVERNMENT ACTUARY'S DEPARTMENT,2000026228,2122.5,#,EC4A 1AB,
Department for Transport,Department for Transport,25/03/2015,Other Sprs - Ptoc,Rail Commercial & Programme Office,LONDON MIDLAND RAILWAY,2000026200,70908.04,1513 Wk3 RPI+0 for Jan 2015 fares estimated_P1513,B2 4JB,
Department for Transport,Department for Transport,25/03/2015,Other Sprs - Ptoc,Rail Commercial & Programme Office,FIRST KEOLIS TRANSPENNINE,2000026197,-80878.29,1513 Wk3 Huddersfield Station SCPF Award_2013-14 -,M1 6LT,
Department for Transport,Department for Transport,25/03/2015,Other Sprs - Ptoc,Rail Commercial & Programme Office,FIRST KEOLIS TRANSPENNINE,2000026197,-84535.06,1513 Wk3 Huddersfield Station SCPF Award_2014-15 -,M1 6LT,
Department for Transport,Department for Transport,25/03/2015,Periodicals & Subs,Maritime,THE STATIONERY OFFICE LTD,2000026195,260,#,NR3 1PD,
Department for Transport,Department for Transport,25/03/2015,Pip - Ptoc,Rail Commercial & Programme Office,FIRST KEOLIS TRANSPENNINE,2000026197,117683.09,1513 Wk3 PIP Adjustment 2014-15 per letter dt. 17/,M1 6LT,
Department for Transport,Department for Transport,25/03/2015,Pip - Ptoc,Rail Commercial & Programme Office,FIRST KEOLIS TRANSPENNINE,2000026197,1133.29,1513 Wk3 PIP_1511 - TRANSPENNINE EXPRESS (FIRST KE,M1 6LT,
Department for Transport,Department for Transport,25/03/2015,Pip - Ptoc,Rail Commercial & Programme Office,FIRST KEOLIS TRANSPENNINE,2000026197,-249143.36,1513 Wk3 PIP_1512 - TRANSPENNINE EXPRESS (FIRST KE,M1 6LT,
Department for Transport,Department for Transport,25/03/2015,Property Maintenance,Air Accident Investigation Branch,Interserve,2000026208,21924.17,#,B70 1DA,
Department for Transport,Department for Transport,25/03/2015,Recruitment Fees,Portfolio Office,Criterion Partnership Limited,2000026222,950.4,#,BN3 1AS,
Department for Transport,Department for Transport,25/03/2015,Research,Local,INTEGRATED TRANSPORT PLANNING LTD,2000026189,14991,#,MK9 3BP,
Department for Transport,Department for Transport,25/03/2015,Research,Local,INTEGRATED TRANSPORT PLANNING LTD,2000026189,3500,#,MK9 3BP,
Department for Transport,Department for Transport,25/03/2015,Research,Transport Security Strategy,DEFENCE SCIENCE & TECHNOLOGY,2000026184,26505.08,#,PO14 9HL,
Department for Transport,Department for Transport,25/03/2015,Research,Transport Security Strategy,DEFENCE SCIENCE & TECHNOLOGY,2000026184,48754.56,#,PO14 9HL,
Department for Transport,Department for Transport,25/03/2015,Services prov by OGD,Group Human Resource,CABINET OFFICE,2000026227,43699,#,CF14 3UW,
Department for Transport,Department for Transport,25/03/2015,Sprs Indexation Pay-,Rail Commercial & Programme Office,LONDON MIDLAND RAILWAY,2000026200,122580,1513 Wk3 Franchise Payment Indexation - LONDON MID,B2 4JB,
Department for Transport,Department for Transport,25/03/2015,Sprs Indexation Pay-,Rail Commercial & Programme Office,FIRST KEOLIS TRANSPENNINE,2000026197,144682,1513 Wk3 Franchise Payment Indexation - TRANSPENNI,M1 6LT,
Department for Transport,Department for Transport,25/03/2015,Sprs Indexation Pay-,Rail Commercial & Programme Office,NORTHERN RAIL LTD,2000026198,254593.84,1513 Wk3 IFA - Franchise Payment Indexation - NORT,YO1 6HT,
Department for Transport,Department for Transport,25/03/2015,Sprs Indexation Pay-,Rail Commercial & Programme Office,NORTHERN RAIL LTD,2000026198,7490,1513 Wk3 NW Electrics Indexation (DOA dt. 25/04/20,YO1 6HT,
Department for Transport,Department for Transport,25/03/2015,Stationery (Non-stk),Rail Strategy & Funding,Banner Business Services Ltd,2000026212,133.56,0570466 Rapesco Flat Clinch Top Stapler,NR3 1QU,
Department for Transport,Department for Transport,25/03/2015,Stationery (Non-stk),Rail Strategy & Funding,Banner Business Services Ltd,2000026212,299.52,1230137 A4 Prem Multipunched Pockets 120,NR3 1QU,
Department for Transport,Department for Transport,25/03/2015,Stationery (Non-stk),Rail Strategy & Funding,Banner Business Services Ltd,2000026212,20.88,5000505 Graffico A5 Polypropylene Notebo,NR3 1QU,
Department for Transport,Department for Transport,25/03/2015,Stationery (Non-stk),Rail Strategy & Funding,Banner Business Services Ltd,2000026212,4.68,8280007 Spiral Ruled Shorthand Notebook,NR3 1QU,
Department for Transport,Department for Transport,25/03/2015,Stationery (Non-stk),Rail Strategy & Funding,Banner Business Services Ltd,2000026212,30.72,9000003 Banner Recycled Envelope 110 x 2,NR3 1QU,
Department for Transport,Department for Transport,25/03/2015,Stationery (Non-stk),Rail Strategy & Funding,Banner Business Services Ltd,2000026212,49.5,9012534 Banner Recycled Envelope 229 x 1,NR3 1QU,
Department for Transport,Department for Transport,25/03/2015,Stationery (Non-stk),Rail Strategy & Funding,Banner Business Services Ltd,2000026212,48.42,9012536 Banner Recycled Envelope 324 x 2,NR3 1QU,
Department for Transport,Department for Transport,25/03/2015,Stationery (Non-stk),Rail Strategy & Funding,Banner Business Services Ltd,2000026212,37.87,9015011 Banner Envelope 406 x 305mm Plai,NR3 1QU,
Department for Transport,Department for Transport,25/03/2015,Stationery (Non-stk),Rail Strategy & Funding,Banner Business Services Ltd,2000026212,38.88,9095021 SELF-STICK NOTES 76 X 127MM PALE,NR3 1QU,
Department for Transport,Department for Transport,25/03/2015,Support Services,Aviation,DURHAM TEES VALLEY AIRPORT LIMITED,2000026185,30378,#,DL2 1LU,
Department for Transport,Department for Transport,25/03/2015,Training,Air Accident Investigation Branch,QA Ltd,2000026213,5412,QA NGB TRAINING VIRTUAL ADM AIW 03/15,LS12 6BD,
Department for Transport,Department for Transport,25/03/2015,Training,RTL DG's Office,HOME OFFICE,2000026188,11600,#,NP20 9BB,
Department for Transport,Department for Transport,25/03/2015,Transport  Consult,Major Projects & Growth,FIRST CLASS PARTNERSHIPS LTD,2000026196,38340,#,YO10 3EB,
Department for Transport,Department for Transport,25/03/2015,Transport  Consult,Major Projects & Growth,PARSONS BRINCKERHOFF LTD,2000026191,25821.89,#,NE4 7YQ,
Department for Transport,Department for Transport,25/03/2015,Transport  Consult,Major Projects & Growth,PARSONS BRINCKERHOFF LTD,2000026191,14923.31,#,NE4 7YQ,
Department for Transport,Department for Transport,25/03/2015,Transport  Consult,Major Projects & Growth,PARSONS BRINCKERHOFF LTD,2000026191,12012.97,#,NE4 7YQ,
Department for Transport,Department for Transport,25/03/2015,Transport  Consult,Major Projects & Growth,PARSONS BRINCKERHOFF LTD,2000026191,13342.94,#,NE4 7YQ,
Department for Transport,Department for Transport,25/03/2015,Transport  Consult,Major Projects & Growth,PARSONS BRINCKERHOFF LTD,2000026191,16905.03,#,NE4 7YQ,
Department for Transport,Department for Transport,25/03/2015,Transport  Consult,Rail Franchising,ATKINS LTD (TRANSPORT PLANNING),2000026180,43974.62,#,WR5 1TX,
Department for Transport,Department for Transport,25/03/2015,Transport  Consult,Aviation,NATS (EN ROUTE) PLC,2000026205,30389.23,#,PO15 7FI,
Department for Transport,Department for Transport,25/03/2015,Transport  Consult,Aviation,NATS (EN ROUTE) PLC,2000026205,16003.58,#,PO15 7FI,
Department for Transport,Department for Transport,26/03/2015,Agency Staff Costs,Group Finance,MICHAEL PAGE INTERNATIONAL,2000026295,5031.6,#,SL1 3SA,
Department for Transport,Department for Transport,26/03/2015,Agency Staff Costs,Group Human Resource,NETWORKERS INTERNATIONAL (UK) PLC,2000026296,1013.52,#,BR1 1HP,
Department for Transport,Department for Transport,26/03/2015,Agency Staff Costs,Major Projects & Growth,Experis Ltd,2000026281,4793.46,#,EC2M 2RB,
Department for Transport,Department for Transport,26/03/2015,Agency Staff Costs,Network Rail Sponsorship,CAPITA BUSINESS SERVICES LTD,2000026275,1174.61,#,DL1 9HN,
Department for Transport,Department for Transport,26/03/2015,Agency Staff Costs,Rail Commercial & Programme Office,CAPITA BUSINESS SERVICES LTD,2000026275,2650.14,#,DL1 9HN,
Department for Transport,Department for Transport,26/03/2015,Agency Staff Costs,Rail Franchising,Experis Ltd,2000026281,5526.72,#,EC2M 2RB,
Department for Transport,Department for Transport,26/03/2015,Cap Grt Loc Auth,"Energy, Technology and International",BRISTOL CITY COUNCIL,2000026311,46726,201415 Bristol Council #46726 Rapid Chargepoints,BS99 7BL,
Department for Transport,Department for Transport,26/03/2015,Cap Grt Loc Auth,"Energy, Technology and International",SLOUGH BC,2000026312,37500,201314 #37500 Rapid Chargepoints Slough,SL1 3UF,
Department for Transport,Department for Transport,26/03/2015,Cap Grt NDPBs & CG,"Energy, Technology and International",SLOUGH BC,2000026312,30000,201314 Slough #30k Public Sector Chargepoints,SL1 3UF,
Department for Transport,Department for Transport,26/03/2015,Cap Grt NDPBs & CG,"Energy, Technology and International",TRANSPORT FOR LONDON,2000026294,31184,201314 TfL #31184 Public Sector Chargepoints,SE10 1AJ,
Department for Transport,Department for Transport,26/03/2015,Cap Grt NDPBs & CG,"Energy, Technology and International","Wrightington, Wigan &",2000026307,29032,WWL NHS Public Sector Chargepoints #29k,WN1 1XX,
Department for Transport,Department for Transport,26/03/2015,Cap Grt Pri Sec-Cos.,"Policy, Legislation and Funding",Bircham Dyson Bell LLP,2000026273,2850000,#,SW1H 0BL,
Department for Transport,Department for Transport,26/03/2015,Cap Grt Pri Sec-Cos.,"Policy, Legislation and Funding",Eversheds LLP,2000026272,624294.63,#,CF10 5BT,
Department for Transport,Department for Transport,26/03/2015,Cap Grt Pri Sec-Cos.,"Policy, Legislation and Funding",Eversheds LLP,2000026313,1213,HS2 Property Purchase,CF10 5BT,
Department for Transport,Department for Transport,26/03/2015,Cap Grt Pri Sec-Cos.,"Policy, Legislation and Funding",Eversheds LLP,2000026313,2328200,HS2 Property Purchase ,CF10 5BT,
Department for Transport,Department for Transport,26/03/2015,Cap Grt Pri Sec-Cos.,"Policy, Legislation and Funding",Eversheds LLP,2000026313,340000,HS2 Property Purchase,CF10 5BT,
Department for Transport,Department for Transport,26/03/2015,Cap Grt Pri Sec-Cos.,"Policy, Legislation and Funding",Eversheds LLP,2000026313,320690,HS2 Property Purchase ,CF10 5BT,
Department for Transport,Department for Transport,26/03/2015,Cap Grt Pri Sec-Cos.,Network Rail Infrastructure Ltd,NETWORK RAIL INFRASTRUCTURE LTD,2000026298,6000000,Chesterton Station Grant,M60 7WY,
Department for Transport,Department for Transport,26/03/2015,Cap Grt Pri Sec-Cos.,"Energy, Technology and International",Renewable Energy Installers,2000026305,22000,"""#22,000 REI August 2014 claim""",DL13 3AE,
Department for Transport,Department for Transport,26/03/2015,Computer equipment,Air Accident Investigation Branch,Videocall Limited,2000026310,1170,VIDEOCALL NON ETHOS ONSITE ENG 05/03/15,GU15 3NY,
Department for Transport,Department for Transport,26/03/2015,Computer equipment,Motoring Services,KELWAY LTD,2000026299,3215.5,#,SA1 8PL,
Department for Transport,Department for Transport,26/03/2015,IT Equip Cap Cost,Air Accident Investigation Branch,BASSOM COMPUTER CONSULTANCY,2000026279,13203.43,#,GU9 8LS,
Department for Transport,Department for Transport,26/03/2015,IT Ser Running Costs,"Energy, Technology and International",TRIAD GROUP PLC,2000026290,13162.5,#,GU7 1XE,
Department for Transport,Department for Transport,26/03/2015,IT Ser Running Costs,"Energy, Technology and International",TRIAD GROUP PLC,2000026290,6000,#,GU7 1XE,
Department for Transport,Department for Transport,26/03/2015,Marketing,Analysis & Strategy,OVE ARUP & PARTNERS,2000026286,267926.33,#,NE1 3PL,
Department for Transport,Department for Transport,26/03/2015,Media & Press,Aviation,Brunswick Group LLP,2000026308,12500,#,WC2A 3ED,
Department for Transport,Department for Transport,26/03/2015,OffEquip (Non-Cap),Group Communication,Probrand Ltd,2000026276,503.12,#,B1 3BP,
Department for Transport,Department for Transport,26/03/2015,Other Professional F,Group Finance,Arvato Ltd,2000026303,14630,#,HU10 6FE,
Department for Transport,Department for Transport,26/03/2015,Property Consultancy,Maritime,FAITHFUL & GOULD LTD,2000026274,4143.76,#,CF24 0AD,
Department for Transport,Department for Transport,26/03/2015,Property Maintenance,Air Accident Investigation Branch,TEAM Q MAINTENANCE LIMITED,2000026278,10468.8,#,SG13 7AX,
Department for Transport,Department for Transport,26/03/2015,Rates,Air Accident Investigation Branch,VODAFONE LTD,2000026293,1611.72,#,RG14 5FF,
Department for Transport,Department for Transport,26/03/2015,Research,"Motoring, Freight & London",OVE ARUP & PARTNERS,2000026286,-36814.29,#,NE1 3PL,
Department for Transport,Department for Transport,26/03/2015,Research,Transport Security Strategy,HOME OFFICE SHARED SERVICE CENTRE,2000026314,103963.2,#,NP20 9BB,
Department for Transport,Department for Transport,26/03/2015,Research,Local,WSP UK Limited T/A WSP Civils,2000026291,1835.11,#,GL20 8SJ,
Department for Transport,Department for Transport,26/03/2015,Research,Local,OECD RUE ANDRE PASCAL 2,2000026315,3613.28,#,75775,
Department for Transport,Department for Transport,26/03/2015,Support Services,Air Accident Investigation Branch,BASSOM COMPUTER CONSULTANCY,2000026279,637.92,#,GU9 8LS,
Department for Transport,Department for Transport,26/03/2015,Support Services,Air Accident Investigation Branch,BUCKHICKMAN INONE,2000026280,2419.21,B&H IMAGING CAMERA 20/02/15,CV3 4ZW,
Department for Transport,Department for Transport,26/03/2015,Traffic Survey & Cou,"Motoring, Freight & London",PARSONS BRINCKERHOFF LTD,2000026288,55338.38,#,NE4 7YQ,
Department for Transport,Department for Transport,26/03/2015,Traffic Survey & Cou,Marine Accident Investigation Branch,DEFENCE BUSINESS SERVICES,2000026301,21378.46,#,YO10 4AS,
Department for Transport,Department for Transport,26/03/2015,Training,Group Human Resource,THE MANCHESTER COLLEGE,2000026297,7995,#,M11 2WH,
Department for Transport,Department for Transport,26/03/2015,Training,Air Accident Investigation Branch,Cae Training & Services UK Ltd,2000026287,2640,#,RH10 9UH,
Department for Transport,Department for Transport,26/03/2015,Training,Air Accident Investigation Branch,Cae Training & Services UK Ltd,2000026287,7920,#,RH10 9UH,
Department for Transport,Department for Transport,26/03/2015,Training,Rail Accident Investigation Branch,Neway Training Solutions,2000026285,1515,#,DE24 8UP,
Department for Transport,Department for Transport,26/03/2015,Transport  Consult,Aviation,HEALTH & SAFETY LABORATORIES,2000026283,30600,#,SK17 9JN,
Department for Transport,Department for Transport,26/03/2015,Transport  Consult,Aviation,xxxxxx,2000026306,1750,#,xxxxxx,
Department for Transport,Department for Transport,26/03/2015,Transport  Consult,Rail Franchising,PARSONS BRINCKERHOFF LTD,100032843,20000,#,NE4 7YQ,
Department for Transport,Department for Transport,26/03/2015,Transport  Consult,Rail Franchising,PARSONS BRINCKERHOFF LTD,100032843,-20000,#,NE4 7YQ,
Department for Transport,Department for Transport,26/03/2015,Transport  Consult,Rail Franchising,PARSONS BRINCKERHOFF LTD,2000026288,63541.39,#,NE4 7YQ,
Department for Transport,Department for Transport,26/03/2015,Transport  Consult,Rail Franchising,PARSONS BRINCKERHOFF LTD,2000026288,-63541.39,#,NE4 7YQ,
Department for Transport,Department for Transport,26/03/2015,Transport  Consult,Aviation,Systra Ltd,2000026284,8715.8,#,GU21 5BH,
Department for Transport,Department for Transport,26/03/2015,Transport  Consult,Rail Franchising,TRANSPORT RESEARCH LABORATORY,2000026289,7409.88,#,RG40 3GA,
Department for Transport,Department for Transport,26/03/2015,Travel Expenses UK,Local,Bus Users UK Ltd,2000026304,85000,#,TW17 8AS,
Department for Transport,Department for Transport,27/03/2015,Agency Staff Costs,Group Finance,Allen Lane,2000026431,3229.1,#,SW1Y 6RJ,
Department for Transport,Department for Transport,27/03/2015,Agency Staff Costs,Group Finance,Allen Lane,2000026431,4036.38,#,SW1Y 6RJ,
Department for Transport,Department for Transport,27/03/2015,Agency Staff Costs,Group Finance,MICHAEL PAGE INTERNATIONAL,2000026465,3210,#,SL1 3SA,
Department for Transport,Department for Transport,27/03/2015,Agency Staff Costs,Group Finance,MICHAEL PAGE INTERNATIONAL,2000026465,6840,#,SL1 3SA,
Department for Transport,Department for Transport,27/03/2015,Agency Staff Costs,Group Finance,MICHAEL PAGE INTERNATIONAL,2000026465,3210,#,SL1 3SA,
Department for Transport,Department for Transport,27/03/2015,Agency Staff Costs,Group Finance,MICHAEL PAGE INTERNATIONAL,2000026465,3240,#,SL1 3SA,
Department for Transport,Department for Transport,27/03/2015,Agency Staff Costs,Major Projects & Growth,Experis Ltd,2000026437,6040.02,#,EC2M 2RB,
Department for Transport,Department for Transport,27/03/2015,Agency Staff Costs,Rail Commercial & Programme Office,Experis Ltd,2000026437,10271.7,#,EC2M 2RB,
Department for Transport,Department for Transport,27/03/2015,Agency Staff Costs,Group Finance,Allen Lane,2000026431,1971.07,#,SW1Y 6RJ,
Department for Transport,Department for Transport,27/03/2015,Agency Staff Costs,Highspeed 2,Experis Ltd,2000026437,4108.68,#,EC2M 2RB,
Department for Transport,Department for Transport,27/03/2015,Agency Staff Costs,Strategic Roads & Smart Ticketing,Experis Ltd,2000026437,22664.4,#,EC2M 2RB,
Department for Transport,Department for Transport,27/03/2015,Agency Staff Costs,Group Finance,Experis Ltd,2000026437,5390.45,#,EC2M 2RB,
Department for Transport,Department for Transport,27/03/2015,Agency Staff Costs,Rail Commercial & Programme Office,MICHAEL PAGE INTERNATIONAL,2000026465,723.9,#,SL1 3SA,
Department for Transport,Department for Transport,27/03/2015,Agency Staff Costs,Highspeed 2,SPRING TECHNOLOGY LTD  ALSO T/A,2000026471,4200,#,B37 7YE,
Department for Transport,Department for Transport,27/03/2015,Agency Staff Costs,Highspeed 2,SPRING TECHNOLOGY LTD  ALSO T/A,2000026471,4650,#,B37 7YE,
Department for Transport,Department for Transport,27/03/2015,Building Service Cha,Group Procurement & Estate,Amey Community Ltd,2000026524,41346.9,#,OX4 4DQ,
Department for Transport,Department for Transport,27/03/2015,Cap Grt Loc Auth,Local,Centro,2000026474,3000000,Low Impact Light Rail Demonstrator Project,B19 3SD,
Department for Transport,Department for Transport,27/03/2015,Cap Grt Loc Auth,Major Projects & Growth,NEXUS,2000026456,2606000,Nexus P10 capital,NE1 4AX,
Department for Transport,Department for Transport,27/03/2015,Cap Grt Loc Auth,Major Projects & Growth,SOUTH YORKSHIRE PTE,2000026475,1285904.42,SL0068195- CLAIM33 - February 15 exp.,S1 2BQ,
